Workbook

Sheet 8.1
A1: Table with row headings in column A and column headings in rows 5 to 10.
A2: Percentage of People in Poverty by State Using 2- and 3-Year Averages: 2010-2011 and 2012-2013 | K2: Get the data: | M2: page: | N2: https://goo.gl/NVHjAn | Q2: XLS: | R2: https://goo.gl/RlQyUf
A3: (People as of March of the following year. For information on confidentiality protection, sampling error, nonsampling error, and definitions, see see ftp://ftp2.census.gov/programs-surveys/cps/techdocs/cpsmar14.pdf)
D4: 2-year average | H4: Change in percentage points
B5: 3-year average | H5: (2012-2013 average less
A6: State | B6: 2011-20131 | D6: 2010–2011 | F6: 2012–2013 | H6: 2010-2011 average)3 | L6: PERCENTAGE OF PEOPLE IN POVERTY
C7: 90 percent | E7: 90 percent | G7: 90 percent | I7: 90 percent | L7: UNITED STATES | Q7: MARYLAND
C8: confidence | E8: confidence | G8: confidence | I8: confidence
B9: Percentage | C9: interval2 (+/-) | D9: Percentage | E9: interval2 (+/-) | F9: Percentage | G9: interval2 (+/-) | H9: Percentage | I9: interval2 (+/-)
A11: United States……. | B11: 14.8 | C11: 0.2 | D11: 15.1 | E11: 0.2 | F11: 14.7 | G11: 0.2 | H11: *-0.3 | I11: 0.3
A12: Alabama | B12: 16.1 | C12: 1.2 | D12: 16.3 | E12: 2.1 | F12: 16.4 | G12: 1.3 | H12: 0.2 | I12: 2.3 | J12: =VLOOKUP(A12,'US Regions'!$B$23:$F$73,5,FALSE) -> AL
A13: Alaska | B13: 10.9 | C13: 1.5 | D13: 12.1 | E13: 1.9 | F13: 10.5 | G13: 1.9 | H13: -1.6 | I13: 2.5 | J13: =VLOOKUP(A13,'US Regions'!$B$23:$F$73,5,FALSE) -> AK
A14: Arizona | B14: 18.8 | C14: 1.9 | D14: 18 | E14: 2.3 | F14: 19.6 | G14: 2.1 | H14: 1.6 | I14: 2.1 | J14: =VLOOKUP(A14,'US Regions'!$B$23:$F$73,5,FALSE) -> AZ
A15: Arkansas | B15: 18.7 | C15: 2.3 | D15: 17 | E15: 2.1 | F15: 18.6 | G15: 2.7 | H15: 1.6 | I15: 2.3 | J15: =VLOOKUP(A15,'US Regions'!$B$23:$F$73,5,FALSE) -> AR
A16: California | B16: 15.9 | C16: 0.5 | D16: 16.6 | E16: 0.7 | F16: 15.4 | G16: 0.6 | H16: *-1.2 | I16: 0.8 | J16: =VLOOKUP(A16,'US Regions'!$B$23:$F$73,5,FALSE) -> CA
A17: Colorado | B17: 11.9 | C17: 1.2 | D17: 12.7 | E17: 1.5 | F17: 11.2 | G17: 1.4 | H17: -1.5 | I17: 1.5 | J17: =VLOOKUP(A17,'US Regions'!$B$23:$F$73,5,FALSE) -> CO
A18: Connecticut | B18: 10.6 | C18: 1 | D18: 9.3 | E18: 1.2 | F18: 10.8 | G18: 1.1 | H18: *1.5 | I18: 1.3 | J18: =VLOOKUP(A18,'US Regions'!$B$23:$F$73,5,FALSE) -> CT
A19: Delaware | B19: 13.7 | C19: 1.2 | D19: 12.9 | E19: 1.3 | F19: 13.7 | G19: 1.5 | H19: 0.8 | I19: 2 | J19: =VLOOKUP(A19,'US Regions'!$B$23:$F$73,5,FALSE) -> DE
A20: District of Columbia | B20: 19.9 | C20: 1.5 | D20: 19.7 | E20: 1.8 | F20: 19.9 | G20: 1.8 | H20: 0.2 | I20: 2.3 | J20: =VLOOKUP(A20,'US Regions'!$B$23:$F$73,5,FALSE) -> DC | L20: PERCENTAGE OF PEOPLE IN POVERTY BY STATE
A21: Florida | B21: 15 | C21: 0.8 | D21: 15.4 | E21: 0.9 | F21: 15.1 | G21: 0.9 | H21: -0.4 | I21: 1.1 | J21: =VLOOKUP(A21,'US Regions'!$B$23:$F$73,5,FALSE) -> FL
A22: Georgia | B22: 17.6 | C22: 1.2 | D22: 18.6 | E22: 1.5 | F22: 17.2 | G22: 1.5 | H22: -1.4 | I22: 2.1 | J22: =VLOOKUP(A22,'US Regions'!$B$23:$F$73,5,FALSE) -> GA
A23: Hawaii | B23: 12.3 | C23: 1.4 | D23: 12.2 | E23: 1.7 | F23: 12.5 | G23: 1.7 | H23: 0.2 | I23: 1.9 | J23: =VLOOKUP(A23,'US Regions'!$B$23:$F$73,5,FALSE) -> HI
A24: Idaho | B24: 14.4 | C24: 2 | D24: 14.8 | E24: 2.3 | F24: 13.7 | G24: 2.2 | H24: -1.1 | I24: 2.7 | J24: =VLOOKUP(A24,'US Regions'!$B$23:$F$73,5,FALSE) -> ID
A25: Illinois | B25: 13.4 | C25: 1 | D25: 14.1 | E25: 1 | F25: 12.9 | G25: 1.1 | H25: -1.2 | I25: 1.3 | J25: =VLOOKUP(A25,'US Regions'!$B$23:$F$73,5,FALSE) -> IL
A26: Indiana | B26: 14.1 | C26: 1.3 | D26: 15.9 | E26: 1.9 | F26: 13.4 | G26: 1.4 | H26: *-2.5 | I26: 2 | J26: =VLOOKUP(A26,'US Regions'!$B$23:$F$73,5,FALSE) -> IN
A27: Iowa | B27: 10.5 | C27: 0.9 | D27: 10.4 | E27: 1.1 | F27: 10.5 | G27: 1 | H27: 0.2 | I27: 1.2 | J27: =VLOOKUP(A27,'US Regions'!$B$23:$F$73,5,FALSE) -> IA
A28: Kansas | B28: 13.8 | C28: 1.3 | D28: 14.4 | E28: 2 | F28: 13.6 | G28: 1.3 | H28: -0.8 | I28: 1.9 | J28: =VLOOKUP(A28,'US Regions'!$B$23:$F$73,5,FALSE) -> KS
A29: Kentucky | B29: 18 | C29: 1.6 | D29: 16.8 | E29: 2 | F29: 18.9 | G29: 1.8 | H29: 2.1 | I29: 2.3 | J29: =VLOOKUP(A29,'US Regions'!$B$23:$F$73,5,FALSE) -> KY
A30: Louisiana | B30: 20.5 | C30: 2.6 | D30: 21.3 | E30: 2.1 | F30: 20.2 | G30: 2.9 | H30: -1.1 | I30: 2.4 | J30: =VLOOKUP(A30,'US Regions'!$B$23:$F$73,5,FALSE) -> LA
A31: Maine | B31: 12.8 | C31: 1.2 | D31: 13 | E31: 1.5 | F31: 12.5 | G31: 1.4 | H31: -0.5 | I31: 1.8 | J31: =VLOOKUP(A31,'US Regions'!$B$23:$F$73,5,FALSE) -> ME
A32: Maryland | B32: 9.8 | C32: 0.8 | D32: 10.1 | E32: 1.1 | F32: 10.1 | G32: 1 | H32: 0.1 | I32: 1.5 | J32: =VLOOKUP(A32,'US Regions'!$B$23:$F$73,5,FALSE) -> MD | L32: Source: U.S. Census Bureau
A33: Massachusetts | B33: 11.3 | C33: 1.1 | D33: 10.7 | E33: 1.3 | F33: 11.6 | G33: 1.4 | H33: 0.9 | I33: 1.8 | J33: =VLOOKUP(A33,'US Regions'!$B$23:$F$73,5,FALSE) -> MA
A34: Michigan | B34: 14.4 | C34: 1.2 | D34: 15.3 | E34: 1.4 | F34: 14.1 | G34: 1.4 | H34: -1.2 | I34: 1.9 | J34: =VLOOKUP(A34,'US Regions'!$B$23:$F$73,5,FALSE) -> MI
A35: Minnesota | B35: 10.7 | C35: 1 | D35: 10.4 | E35: 1.2 | F35: 11 | G35: 1.1 | H35: 0.6 | I35: 1.4 | J35: =VLOOKUP(A35,'US Regions'!$B$23:$F$73,5,FALSE) -> MN
A36: Mississippi | B36: 20.6 | C36: 2.1 | D36: 20 | E36: 1.7 | F36: 22.2 | G36: 2.4 | H36: *2.3 | I36: 2.1 | J36: =VLOOKUP(A36,'US Regions'!$B$23:$F$73,5,FALSE) -> MS
A37: Missouri | B37: 14.8 | C37: 1.9 | D37: 15.2 | E37: 2.2 | F37: 14.5 | G37: 2.1 | H37: -0.7 | I37: 2.2 | J37: =VLOOKUP(A37,'US Regions'!$B$23:$F$73,5,FALSE) -> MO
A38: Montana | B38: 14.8 | C38: 2 | D38: 15.5 | E38: 2.4 | F38: 14 | G38: 2.2 | H38: -1.5 | I38: 2.3 | J38: =VLOOKUP(A38,'US Regions'!$B$23:$F$73,5,FALSE) -> MT
A39: Nebraska | B39: 11.2 | C39: 1.5 | D39: 10.2 | E39: 1.7 | F39: 11.6 | G39: 1.6 | H39: 1.4 | I39: 1.9 | J39: =VLOOKUP(A39,'US Regions'!$B$23:$F$73,5,FALSE) -> NE
A40: Nevada | B40: 16.2 | C40: 1.4 | D40: 16 | E40: 1.8 | F40: 16.6 | G40: 1.8 | H40: 0.6 | I40: 2.5 | J40: =VLOOKUP(A40,'US Regions'!$B$23:$F$73,5,FALSE) -> NV
A41: New Hampshire | B41: 8.3 | C41: 0.9 | D41: 7.1 | E41: 1 | F41: 8.6 | G41: 1 | H41: *1.5 | I41: 1.3 | J41: =VLOOKUP(A41,'US Regions'!$B$23:$F$73,5,FALSE) -> NH
A42: New Jersey | B42: 10.6 | C42: 1 | D42: 11.2 | E42: 1.3 | F42: 10.2 | G42: 1.2 | H42: -1 | I42: 1.6 | J42: =VLOOKUP(A42,'US Regions'!$B$23:$F$73,5,FALSE) -> NJ
A43: New Mexico | B43: 21.4 | C43: 2.2 | D43: 20.2 | E43: 2.2 | F43: 21 | G43: 2.8 | H43: 0.8 | I43: 3.4 | J43: =VLOOKUP(A43,'US Regions'!$B$23:$F$73,5,FALSE) -> NM
A44: New York | B44: 15.9 | C44: 0.7 | D44: 16 | E44: 1 | F44: 15.9 | G44: 0.9 | H44: -0.1 | I44: 1.3 | J44: =VLOOKUP(A44,'US Regions'!$B$23:$F$73,5,FALSE) -> NY
A45: North Carolina | B45: 17 | C45: 1.7 | D45: 16.4 | E45: 1.6 | F45: 17.9 | G45: 2 | H45: 1.5 | I45: 2 | J45: =VLOOKUP(A45,'US Regions'!$B$23:$F$73,5,FALSE) -> NC
A46: North Dakota | B46: 10.4 | C46: 1.4 | D46: 11.3 | E46: 1.5 | F46: 10.6 | G46: 1.2 | H46: -0.6 | I46: 1.3 | J46: =VLOOKUP(A46,'US Regions'!$B$23:$F$73,5,FALSE) -> ND
A47: Ohio | B47: 14.7 | C47: 1.3 | D47: 15.2 | E47: 1.6 | F47: 14.5 | G47: 1.4 | H47: -0.7 | I47: 1.5 | J47: =VLOOKUP(A47,'US Regions'!$B$23:$F$73,5,FALSE) -> OH
A48: Oklahoma | B48: 15.3 | C48: 1.5 | D48: 15.1 | E48: 2 | F48: 16 | G48: 2.1 | H48: 0.9 | I48: 2.8 | J48: =VLOOKUP(A48,'US Regions'!$B$23:$F$73,5,FALSE) -> OK
A49: Oregon | B49: 14.3 | C49: 1.4 | D49: 14.3 | E49: 1.7 | F49: 14.3 | G49: 1.5 | H49: -0.1 | I49: 1.8 | J49: =VLOOKUP(A49,'US Regions'!$B$23:$F$73,5,FALSE) -> OR
A50: Pennsylvania | B50: 13 | C50: 1.1 | D50: 12.4 | E50: 1 | F50: 13.1 | G50: 1.3 | H50: 0.7 | I50: 1.4 | J50: =VLOOKUP(A50,'US Regions'!$B$23:$F$73,5,FALSE) -> PA
A51: Rhode Island | B51: 13.5 | C51: 1.2 | D51: 13.7 | E51: 1.4 | F51: 13.6 | G51: 1.4 | H51: -0.1 | I51: 1.7 | J51: =VLOOKUP(A51,'US Regions'!$B$23:$F$73,5,FALSE) -> RI
A52: South Carolina | B52: 17.2 | C52: 1.4 | D52: 18 | E52: 1.6 | F52: 16.3 | G52: 1.5 | H52: -1.7 | I52: 2 | J52: =VLOOKUP(A52,'US Regions'!$B$23:$F$73,5,FALSE) -> SC
A53: South Dakota | B53: 12.5 | C53: 2.3 | D53: 14.1 | E53: 2.6 | F53: 11.5 | G53: 1.8 | H53: *-2.5 | I53: 2.1 | J53: =VLOOKUP(A53,'US Regions'!$B$23:$F$73,5,FALSE) -> SD
A54: Tennessee | B54: 17.7 | C54: 2 | D54: 16.5 | E54: 2.1 | F54: 18.4 | G54: 2.3 | H54: 1.9 | I54: 2.5 | J54: =VLOOKUP(A54,'US Regions'!$B$23:$F$73,5,FALSE) -> TN
A55: Texas | B55: 17.1 | C55: 0.9 | D55: 17.9 | E55: 1.1 | F55: 16.9 | G55: 1 | H55: -1 | I55: 1.3 | J55: =VLOOKUP(A55,'US Regions'!$B$23:$F$73,5,FALSE) -> TX
A56: Utah | B56: 10.1 | C56: 1.3 | D56: 10.5 | E56: 1.4 | F56: 9.6 | G56: 1.6 | H56: -0.9 | I56: 2 | J56: =VLOOKUP(A56,'US Regions'!$B$23:$F$73,5,FALSE) -> UT
A57: Vermont | B57: 10.5 | C57: 1 | D57: 11.2 | E57: 1.4 | F57: 10 | G57: 1.1 | H57: -1.2 | I57: 1.7 | J57: =VLOOKUP(A57,'US Regions'!$B$23:$F$73,5,FALSE) -> VT
A58: Virginia | B58: 10.8 | C58: 1 | D58: 11 | E58: 1.1 | F58: 10.5 | G58: 1.2 | H58: -0.5 | I58: 1.2 | J58: =VLOOKUP(A58,'US Regions'!$B$23:$F$73,5,FALSE) -> VA
A59: Washington | B59: 12 | C59: 1.2 | D59: 12.1 | E59: 1.5 | F59: 11.8 | G59: 1.3 | H59: -0.3 | I59: 1.6 | J59: =VLOOKUP(A59,'US Regions'!$B$23:$F$73,5,FALSE) -> WA
A60: West Virginia | B60: 17.2 | C60: 2.7 | D60: 17.2 | E60: 2.1 | F60: 17 | G60: 2.9 | H60: -0.1 | I60: 2.5 | J60: =VLOOKUP(A60,'US Regions'!$B$23:$F$73,5,FALSE) -> WV
A61: Wisconsin | B61: 11.8 | C61: 1.1 | D61: 11.6 | E61: 1.4 | F61: 11.2 | G61: 1.3 | H61: -0.4 | I61: 1.6 | J61: =VLOOKUP(A61,'US Regions'!$B$23:$F$73,5,FALSE) -> WI
A62: Wyoming | B62: 10.7 | C62: 1.3 | D62: 10.1 | E62: 1.5 | F62: 10.7 | G62: 1.4 | H62: 0.6 | I62: 1.9 | J62: =VLOOKUP(A62,'US Regions'!$B$23:$F$73,5,FALSE) -> WY
A63: *An asterisk preceding an estimate indicates change is statistically different from zero at the 90 percent confidence level
A65: 1Data are based on the CPS ASEC sample of 68,000 addresses. The 2014 CPS ASEC included redesigned questions for income and health insurance coverage. All of the approximately 98,000 addresses were eligible to receive the redesigned set of health insurance coverage questions. The redesigned income questions were implemented to a subsample of these 98,000 addresses using a probability split panel design. Approximately 68,000 addresses were eligible to receive a set of income questions similar to those used in the 2013 CPS ASEC and the remaining 30,000 addresses were eligible to receive the redesigned income questions. The source of the 2013 data for this table is the portion of the CPS ASEC sample which received the income questions consistent with the 2013 CPS ASEC, approximately 68,000 addresses
A66: 2A 90 percent confidence interval is a measure of an estimate's variability. The larger the confidence interval in relation to the size of the estimate, the less reliable the estimate. Confidence interval shown in this table are based on standard errors calculated using replicate weights. Fore more information, see "Standard Errors and Their Use" at <ftp://ftp2.census.gov/library/publications/2014/demo/p60-249sa.pdf>.
A67: 3Details may not sum to totals because of rounding.
A69: Source: U.S. Census Bureau, Current Population Survey, 2011 to 2014 Annual Social and Economic Supplements.

Sheet 8.2-8.3
J1: Item | K1: Expenditure | M1: Horizontal reference lines
J4: Food | K4: 6665 | M4: 6665 | N4: 450 | O4: 17377 | P4: 1674 | Q4: 9104 | R4: 3919 | S4: 2560 | T4: 602 | U4: 101 | V4: 1143 | W4: 315 | X4: 683 | Y4: 1790 | Z4: 5551
J5: Alcoholic beverages | K5: 450 | M5: 6665 | N5: 450 | O5: 17377 | P5: 1674 | Q5: 9104 | R5: 3919 | S5: 2560 | T5: 602 | U5: 101 | V5: 1143 | W5: 315 | X5: 683 | Y5: 1790 | Z5: 5551
J6: Housing | K6: 17377 | M6: =NA() ->  | N6: 450 | O6: 17377 | P6: 1674 | Q6: 9104 | R6: 3919 | S6: 2560 | T6: 602 | U6: 101 | V6: 1143 | W6: 315 | X6: 683 | Y6: 1790 | Z6: 5551
J7: Apparel and services | K7: 1674 | M7: =NA() ->  | N7: =NA() ->  | O7: 17377 | P7: 1674 | Q7: 9104 | R7: 3919 | S7: 2560 | T7: 602 | U7: 101 | V7: 1143 | W7: 315 | X7: 683 | Y7: 1790 | Z7: 5551
B8: ANNUAL MEAN EXPENDITURE | J8: Transportation | K8: 9104 | M8: =NA() ->  | N8: =NA() ->  | O8: =NA() ->  | P8: 1674 | Q8: 9104 | R8: 3919 | S8: 2560 | T8: 602 | U8: 101 | V8: 1143 | W8: 315 | X8: 683 | Y8: 1790 | Z8: 5551
B9: Consumer Expenditure Survey, 3rd quarter 2013 through 2nd quarter 2014 | J9: Healthcare | K9: 3919 | M9: =NA() ->  | N9: =NA() ->  | O9: =NA() ->  | P9: =NA() ->  | Q9: 9104 | R9: 3919 | S9: 2560 | T9: 602 | U9: 101 | V9: 1143 | W9: 315 | X9: 683 | Y9: 1790 | Z9: 5551
J10: Entertainment | K10: 2560 | M10: =NA() ->  | N10: =NA() ->  | O10: =NA() ->  | P10: =NA() ->  | Q10: =NA() ->  | R10: 3919 | S10: 2560 | T10: 602 | U10: 101 | V10: 1143 | W10: 315 | X10: 683 | Y10: 1790 | Z10: 5551
J11: Personal care | K11: 602 | M11: =NA() ->  | N11: =NA() ->  | O11: =NA() ->  | P11: =NA() ->  | Q11: =NA() ->  | R11: =NA() ->  | S11: 2560 | T11: 602 | U11: 101 | V11: 1143 | W11: 315 | X11: 683 | Y11: 1790 | Z11: 5551
J12: Reading | K12: 101 | M12: =NA() ->  | N12: =NA() ->  | O12: =NA() ->  | P12: =NA() ->  | Q12: =NA() ->  | R12: =NA() ->  | S12: =NA() ->  | T12: 602 | U12: 101 | V12: 1143 | W12: 315 | X12: 683 | Y12: 1790 | Z12: 5551
J13: Education | K13: 1143 | M13: =NA() ->  | N13: =NA() ->  | O13: =NA() ->  | P13: =NA() ->  | Q13: =NA() ->  | R13: =NA() ->  | S13: =NA() ->  | T13: =NA() ->  | U13: 101 | V13: 1143 | W13: 315 | X13: 683 | Y13: 1790 | Z13: 5551
J14: Tobacco products | K14: 315 | M14: =NA() ->  | N14: =NA() ->  | O14: =NA() ->  | P14: =NA() ->  | Q14: =NA() ->  | R14: =NA() ->  | S14: =NA() ->  | T14: =NA() ->  | U14: =NA() ->  | V14: 1143 | W14: 315 | X14: 683 | Y14: 1790 | Z14: 5551
J15: Miscellaneous | K15: 683 | M15: =NA() ->  | N15: =NA() ->  | O15: =NA() ->  | P15: =NA() ->  | Q15: =NA() ->  | R15: =NA() ->  | S15: =NA() ->  | T15: =NA() ->  | U15: =NA() ->  | V15: =NA() ->  | W15: 315 | X15: 683 | Y15: 1790 | Z15: 5551
J16: Cash contributions | K16: 1790 | M16: =NA() ->  | N16: =NA() ->  | O16: =NA() ->  | P16: =NA() ->  | Q16: =NA() ->  | R16: =NA() ->  | S16: =NA() ->  | T16: =NA() ->  | U16: =NA() ->  | V16: =NA() ->  | W16: =NA() ->  | X16: 683 | Y16: 1790 | Z16: 5551
J17: Insurance and pensions | K17: 5551 | M17: =NA() ->  | N17: =NA() ->  | O17: =NA() ->  | P17: =NA() ->  | Q17: =NA() ->  | R17: =NA() ->  | S17: =NA() ->  | T17: =NA() ->  | U17: =NA() ->  | V17: =NA() ->  | W17: =NA() ->  | X17: =NA() ->  | Y17: 1790 | Z17: 5551
M18: =NA() ->  | N18: =NA() ->  | O18: =NA() ->  | P18: =NA() ->  | Q18: =NA() ->  | R18: =NA() ->  | S18: =NA() ->  | T18: =NA() ->  | U18: =NA() ->  | V18: =NA() ->  | W18: =NA() ->  | X18: =NA() ->  | Y18: =NA() ->  | Z18: 5551
B31: Source: Bureau of Labor Statistics
BY35: Diversos | BZ35: 1277 | CA35: 3 | CB35: =IF(CA35=1,BZ35,NA()) ->  | CC35: =IF(CA35=2,BZ35,NA()) ->  | CD35: =IF(CA35=3,BZ35,NA()) -> 1277
BY36: Saúde | BZ36: 1186 | CA36: 1 | CB36: 1186
BY37: Lazer | BZ37: 1073 | CA37: 3 | CD37: 1073
BY38: Acessórios lar | BZ38: 864 | CA38: 2 | CC38: 864
B39: ANNUAL MEAN EXPENDITURE | BY39: Vestuário | BZ39: 757 | CA39: 1 | CB39: 757
B40: Consumer Expenditure Survey, 3rd quarter 2013 through 2nd quarter 2014 | BY40: Comunicações | BZ40: 680 | CA40: 2 | CC40: 680
BY41: Educação | BZ41: 441 | CA41: 3 | CD41: 441
BY42: Bebidas | BZ42: 384 | CA42: 1 | CB42: 384
B59: Source: Bureau of Labor Statistics

Sheet 8.4
A1: Table with row headings in column A and column headings in rows 5 to 10.
A2: Percentage of People in Poverty by State Using 2- and 3-Year Averages: 2010-2011 and 2012-2013
A3: (People as of March of the following year. For information on confidentiality protection, sampling error, nonsampling error, and definitions, see see ftp://ftp2.census.gov/programs-surveys/cps/techdocs/cpsmar14.pdf)
D4: 2-year average | H4: Change in percentage points
B5: 3-year average | H5: (2012-2013 average less
A6: State | B6: 2011-20131 | D6: 2010-2011 | F6: 2012-2013 | H6: 2010-2011 average)3
C7: 90 percent | E7: 90 percent | G7: 90 percent | I7: 90 percent
C8: confidence | E8: confidence | G8: confidence | I8: confidence | K8: Series for the middle chart
B9: Percentage | C9: interval2 (+/-) | D9: Percentage | E9: interval2 (+/-) | F9: Percentage | G9: interval2 (+/-) | H9: Percentage | I9: interval2 (+/-) | J9: x-label
K10: Northeast | L10: Midwest | M10: South | N10: West | Q10: PERCENTAGE OF PEOPLE IN POVERTY BY STATE, 2012–2013
A11: United States……. | B11: 14.8 | C11: 0.2 | D11: 15.1 | E11: 0.2 | F11: 14.7 | G11: 0.2 | H11: *-0.3 | I11: 0.3 | K11: 1 | L11: 2 | M11: 3 | N11: 4
A12: New Hampshire | B12: 8.3 | C12: 0.9 | D12: 7.1 | E12: 1 | F12: 8.6 | G12: 1 | H12: *1.5 | I12: 1.3 | J12: NH | K12: =IF(VLOOKUP($A12,'US Regions'!$B$23:$E$73,4,FALSE)=K$11,$F12,NA()) -> 8.6 | L12: =IF(VLOOKUP($A12,'US Regions'!$B$23:$E$73,4,FALSE)=L$11,$F12,NA()) ->  | M12: =IF(VLOOKUP($A12,'US Regions'!$B$23:$E$73,4,FALSE)=M$11,$F12,NA()) ->  | N12: =IF(VLOOKUP($A12,'US Regions'!$B$23:$E$73,4,FALSE)=N$11,$F12,NA()) -> 
A13: Utah | B13: 10.1 | C13: 1.3 | D13: 10.5 | E13: 1.4 | F13: 9.6 | G13: 1.6 | H13: -0.9 | I13: 2 | J13: UT | K13: =IF(VLOOKUP($A13,'US Regions'!$B$23:$E$73,4,FALSE)=K$11,$F13,NA()) ->  | L13: =IF(VLOOKUP($A13,'US Regions'!$B$23:$E$73,4,FALSE)=L$11,$F13,NA()) ->  | M13: =IF(VLOOKUP($A13,'US Regions'!$B$23:$E$73,4,FALSE)=M$11,$F13,NA()) ->  | N13: =IF(VLOOKUP($A13,'US Regions'!$B$23:$E$73,4,FALSE)=N$11,$F13,NA()) -> 9.6
A14: Vermont | B14: 10.5 | C14: 1 | D14: 11.2 | E14: 1.4 | F14: 10 | G14: 1.1 | H14: -1.2 | I14: 1.7 | J14: VT | K14: =IF(VLOOKUP($A14,'US Regions'!$B$23:$E$73,4,FALSE)=K$11,$F14,NA()) -> 10 | L14: =IF(VLOOKUP($A14,'US Regions'!$B$23:$E$73,4,FALSE)=L$11,$F14,NA()) ->  | M14: =IF(VLOOKUP($A14,'US Regions'!$B$23:$E$73,4,FALSE)=M$11,$F14,NA()) ->  | N14: =IF(VLOOKUP($A14,'US Regions'!$B$23:$E$73,4,FALSE)=N$11,$F14,NA()) -> 
A15: Maryland | B15: 9.8 | C15: 0.8 | D15: 10.1 | E15: 1.1 | F15: 10.1 | G15: 1 | H15: 0.1 | I15: 1.5 | J15: MD | K15: =IF(VLOOKUP($A15,'US Regions'!$B$23:$E$73,4,FALSE)=K$11,$F15,NA()) ->  | L15: =IF(VLOOKUP($A15,'US Regions'!$B$23:$E$73,4,FALSE)=L$11,$F15,NA()) ->  | M15: =IF(VLOOKUP($A15,'US Regions'!$B$23:$E$73,4,FALSE)=M$11,$F15,NA()) -> 10.1 | N15: =IF(VLOOKUP($A15,'US Regions'!$B$23:$E$73,4,FALSE)=N$11,$F15,NA()) -> 
A16: New Jersey | B16: 10.6 | C16: 1 | D16: 11.2 | E16: 1.3 | F16: 10.2 | G16: 1.2 | H16: -1 | I16: 1.6 | J16: NJ | K16: =IF(VLOOKUP($A16,'US Regions'!$B$23:$E$73,4,FALSE)=K$11,$F16,NA()) -> 10.2 | L16: =IF(VLOOKUP($A16,'US Regions'!$B$23:$E$73,4,FALSE)=L$11,$F16,NA()) ->  | M16: =IF(VLOOKUP($A16,'US Regions'!$B$23:$E$73,4,FALSE)=M$11,$F16,NA()) ->  | N16: =IF(VLOOKUP($A16,'US Regions'!$B$23:$E$73,4,FALSE)=N$11,$F16,NA()) -> 
A17: Alaska | B17: 10.9 | C17: 1.5 | D17: 12.1 | E17: 1.9 | F17: 10.5 | G17: 1.9 | H17: -1.6 | I17: 2.5 | J17: AK | K17: =IF(VLOOKUP($A17,'US Regions'!$B$23:$E$73,4,FALSE)=K$11,$F17,NA()) ->  | L17: =IF(VLOOKUP($A17,'US Regions'!$B$23:$E$73,4,FALSE)=L$11,$F17,NA()) ->  | M17: =IF(VLOOKUP($A17,'US Regions'!$B$23:$E$73,4,FALSE)=M$11,$F17,NA()) ->  | N17: =IF(VLOOKUP($A17,'US Regions'!$B$23:$E$73,4,FALSE)=N$11,$F17,NA()) -> 10.5
A18: Iowa | B18: 10.5 | C18: 0.9 | D18: 10.4 | E18: 1.1 | F18: 10.5 | G18: 1 | H18: 0.2 | I18: 1.2 | J18: IA | K18: =IF(VLOOKUP($A18,'US Regions'!$B$23:$E$73,4,FALSE)=K$11,$F18,NA()) ->  | L18: =IF(VLOOKUP($A18,'US Regions'!$B$23:$E$73,4,FALSE)=L$11,$F18,NA()) -> 10.5 | M18: =IF(VLOOKUP($A18,'US Regions'!$B$23:$E$73,4,FALSE)=M$11,$F18,NA()) ->  | N18: =IF(VLOOKUP($A18,'US Regions'!$B$23:$E$73,4,FALSE)=N$11,$F18,NA()) -> 
A19: Virginia | B19: 10.8 | C19: 1 | D19: 11 | E19: 1.1 | F19: 10.5 | G19: 1.2 | H19: -0.5 | I19: 1.2 | J19: VA | K19: =IF(VLOOKUP($A19,'US Regions'!$B$23:$E$73,4,FALSE)=K$11,$F19,NA()) ->  | L19: =IF(VLOOKUP($A19,'US Regions'!$B$23:$E$73,4,FALSE)=L$11,$F19,NA()) ->  | M19: =IF(VLOOKUP($A19,'US Regions'!$B$23:$E$73,4,FALSE)=M$11,$F19,NA()) -> 10.5 | N19: =IF(VLOOKUP($A19,'US Regions'!$B$23:$E$73,4,FALSE)=N$11,$F19,NA()) -> 
A20: North Dakota | B20: 10.4 | C20: 1.4 | D20: 11.3 | E20: 1.5 | F20: 10.6 | G20: 1.2 | H20: -0.6 | I20: 1.3 | J20: ND | K20: =IF(VLOOKUP($A20,'US Regions'!$B$23:$E$73,4,FALSE)=K$11,$F20,NA()) ->  | L20: =IF(VLOOKUP($A20,'US Regions'!$B$23:$E$73,4,FALSE)=L$11,$F20,NA()) -> 10.6 | M20: =IF(VLOOKUP($A20,'US Regions'!$B$23:$E$73,4,FALSE)=M$11,$F20,NA()) ->  | N20: =IF(VLOOKUP($A20,'US Regions'!$B$23:$E$73,4,FALSE)=N$11,$F20,NA()) -> 
A21: Wyoming | B21: 10.7 | C21: 1.3 | D21: 10.1 | E21: 1.5 | F21: 10.7 | G21: 1.4 | H21: 0.6 | I21: 1.9 | J21: WY | K21: =IF(VLOOKUP($A21,'US Regions'!$B$23:$E$73,4,FALSE)=K$11,$F21,NA()) ->  | L21: =IF(VLOOKUP($A21,'US Regions'!$B$23:$E$73,4,FALSE)=L$11,$F21,NA()) ->  | M21: =IF(VLOOKUP($A21,'US Regions'!$B$23:$E$73,4,FALSE)=M$11,$F21,NA()) ->  | N21: =IF(VLOOKUP($A21,'US Regions'!$B$23:$E$73,4,FALSE)=N$11,$F21,NA()) -> 10.7
A22: Connecticut | B22: 10.6 | C22: 1 | D22: 9.3 | E22: 1.2 | F22: 10.8 | G22: 1.1 | H22: *1.5 | I22: 1.3 | J22: CT | K22: =IF(VLOOKUP($A22,'US Regions'!$B$23:$E$73,4,FALSE)=K$11,$F22,NA()) -> 10.8 | L22: =IF(VLOOKUP($A22,'US Regions'!$B$23:$E$73,4,FALSE)=L$11,$F22,NA()) ->  | M22: =IF(VLOOKUP($A22,'US Regions'!$B$23:$E$73,4,FALSE)=M$11,$F22,NA()) ->  | N22: =IF(VLOOKUP($A22,'US Regions'!$B$23:$E$73,4,FALSE)=N$11,$F22,NA()) -> 
A23: Minnesota | B23: 10.7 | C23: 1 | D23: 10.4 | E23: 1.2 | F23: 11 | G23: 1.1 | H23: 0.6 | I23: 1.4 | J23: MN | K23: =IF(VLOOKUP($A23,'US Regions'!$B$23:$E$73,4,FALSE)=K$11,$F23,NA()) ->  | L23: =IF(VLOOKUP($A23,'US Regions'!$B$23:$E$73,4,FALSE)=L$11,$F23,NA()) -> 11 | M23: =IF(VLOOKUP($A23,'US Regions'!$B$23:$E$73,4,FALSE)=M$11,$F23,NA()) ->  | N23: =IF(VLOOKUP($A23,'US Regions'!$B$23:$E$73,4,FALSE)=N$11,$F23,NA()) -> 
A24: Colorado | B24: 11.9 | C24: 1.2 | D24: 12.7 | E24: 1.5 | F24: 11.2 | G24: 1.4 | H24: -1.5 | I24: 1.5 | J24: CO | K24: =IF(VLOOKUP($A24,'US Regions'!$B$23:$E$73,4,FALSE)=K$11,$F24,NA()) ->  | L24: =IF(VLOOKUP($A24,'US Regions'!$B$23:$E$73,4,FALSE)=L$11,$F24,NA()) ->  | M24: =IF(VLOOKUP($A24,'US Regions'!$B$23:$E$73,4,FALSE)=M$11,$F24,NA()) ->  | N24: =IF(VLOOKUP($A24,'US Regions'!$B$23:$E$73,4,FALSE)=N$11,$F24,NA()) -> 11.2
A25: Wisconsin | B25: 11.8 | C25: 1.1 | D25: 11.6 | E25: 1.4 | F25: 11.2 | G25: 1.3 | H25: -0.4 | I25: 1.6 | J25: WI | K25: =IF(VLOOKUP($A25,'US Regions'!$B$23:$E$73,4,FALSE)=K$11,$F25,NA()) ->  | L25: =IF(VLOOKUP($A25,'US Regions'!$B$23:$E$73,4,FALSE)=L$11,$F25,NA()) -> 11.2 | M25: =IF(VLOOKUP($A25,'US Regions'!$B$23:$E$73,4,FALSE)=M$11,$F25,NA()) ->  | N25: =IF(VLOOKUP($A25,'US Regions'!$B$23:$E$73,4,FALSE)=N$11,$F25,NA()) -> 
A26: South Dakota | B26: 12.5 | C26: 2.3 | D26: 14.1 | E26: 2.6 | F26: 11.5 | G26: 1.8 | H26: *-2.5 | I26: 2.1 | J26: SD | K26: =IF(VLOOKUP($A26,'US Regions'!$B$23:$E$73,4,FALSE)=K$11,$F26,NA()) ->  | L26: =IF(VLOOKUP($A26,'US Regions'!$B$23:$E$73,4,FALSE)=L$11,$F26,NA()) -> 11.5 | M26: =IF(VLOOKUP($A26,'US Regions'!$B$23:$E$73,4,FALSE)=M$11,$F26,NA()) ->  | N26: =IF(VLOOKUP($A26,'US Regions'!$B$23:$E$73,4,FALSE)=N$11,$F26,NA()) -> 
A27: Massachusetts | B27: 11.3 | C27: 1.1 | D27: 10.7 | E27: 1.3 | F27: 11.6 | G27: 1.4 | H27: 0.9 | I27: 1.8 | J27: MA | K27: =IF(VLOOKUP($A27,'US Regions'!$B$23:$E$73,4,FALSE)=K$11,$F27,NA()) -> 11.6 | L27: =IF(VLOOKUP($A27,'US Regions'!$B$23:$E$73,4,FALSE)=L$11,$F27,NA()) ->  | M27: =IF(VLOOKUP($A27,'US Regions'!$B$23:$E$73,4,FALSE)=M$11,$F27,NA()) ->  | N27: =IF(VLOOKUP($A27,'US Regions'!$B$23:$E$73,4,FALSE)=N$11,$F27,NA()) -> 
A28: Nebraska | B28: 11.2 | C28: 1.5 | D28: 10.2 | E28: 1.7 | F28: 11.6 | G28: 1.6 | H28: 1.4 | I28: 1.9 | J28: NE | K28: =IF(VLOOKUP($A28,'US Regions'!$B$23:$E$73,4,FALSE)=K$11,$F28,NA()) ->  | L28: =IF(VLOOKUP($A28,'US Regions'!$B$23:$E$73,4,FALSE)=L$11,$F28,NA()) -> 11.6 | M28: =IF(VLOOKUP($A28,'US Regions'!$B$23:$E$73,4,FALSE)=M$11,$F28,NA()) ->  | N28: =IF(VLOOKUP($A28,'US Regions'!$B$23:$E$73,4,FALSE)=N$11,$F28,NA()) -> 
A29: Washington | B29: 12 | C29: 1.2 | D29: 12.1 | E29: 1.5 | F29: 11.8 | G29: 1.3 | H29: -0.3 | I29: 1.6 | J29: WA | K29: =IF(VLOOKUP($A29,'US Regions'!$B$23:$E$73,4,FALSE)=K$11,$F29,NA()) ->  | L29: =IF(VLOOKUP($A29,'US Regions'!$B$23:$E$73,4,FALSE)=L$11,$F29,NA()) ->  | M29: =IF(VLOOKUP($A29,'US Regions'!$B$23:$E$73,4,FALSE)=M$11,$F29,NA()) ->  | N29: =IF(VLOOKUP($A29,'US Regions'!$B$23:$E$73,4,FALSE)=N$11,$F29,NA()) -> 11.8
A30: Hawaii | B30: 12.3 | C30: 1.4 | D30: 12.2 | E30: 1.7 | F30: 12.5 | G30: 1.7 | H30: 0.2 | I30: 1.9 | J30: HI | K30: =IF(VLOOKUP($A30,'US Regions'!$B$23:$E$73,4,FALSE)=K$11,$F30,NA()) ->  | L30: =IF(VLOOKUP($A30,'US Regions'!$B$23:$E$73,4,FALSE)=L$11,$F30,NA()) ->  | M30: =IF(VLOOKUP($A30,'US Regions'!$B$23:$E$73,4,FALSE)=M$11,$F30,NA()) ->  | N30: =IF(VLOOKUP($A30,'US Regions'!$B$23:$E$73,4,FALSE)=N$11,$F30,NA()) -> 12.5
A31: Maine | B31: 12.8 | C31: 1.2 | D31: 13 | E31: 1.5 | F31: 12.5 | G31: 1.4 | H31: -0.5 | I31: 1.8 | J31: ME | K31: =IF(VLOOKUP($A31,'US Regions'!$B$23:$E$73,4,FALSE)=K$11,$F31,NA()) -> 12.5 | L31: =IF(VLOOKUP($A31,'US Regions'!$B$23:$E$73,4,FALSE)=L$11,$F31,NA()) ->  | M31: =IF(VLOOKUP($A31,'US Regions'!$B$23:$E$73,4,FALSE)=M$11,$F31,NA()) ->  | N31: =IF(VLOOKUP($A31,'US Regions'!$B$23:$E$73,4,FALSE)=N$11,$F31,NA()) -> 
A32: Illinois | B32: 13.4 | C32: 1 | D32: 14.1 | E32: 1 | F32: 12.9 | G32: 1.1 | H32: -1.2 | I32: 1.3 | J32: IL | K32: =IF(VLOOKUP($A32,'US Regions'!$B$23:$E$73,4,FALSE)=K$11,$F32,NA()) ->  | L32: =IF(VLOOKUP($A32,'US Regions'!$B$23:$E$73,4,FALSE)=L$11,$F32,NA()) -> 12.9 | M32: =IF(VLOOKUP($A32,'US Regions'!$B$23:$E$73,4,FALSE)=M$11,$F32,NA()) ->  | N32: =IF(VLOOKUP($A32,'US Regions'!$B$23:$E$73,4,FALSE)=N$11,$F32,NA()) -> 
A33: Pennsylvania | B33: 13 | C33: 1.1 | D33: 12.4 | E33: 1 | F33: 13.1 | G33: 1.3 | H33: 0.7 | I33: 1.4 | J33: PA | K33: =IF(VLOOKUP($A33,'US Regions'!$B$23:$E$73,4,FALSE)=K$11,$F33,NA()) -> 13.1 | L33: =IF(VLOOKUP($A33,'US Regions'!$B$23:$E$73,4,FALSE)=L$11,$F33,NA()) ->  | M33: =IF(VLOOKUP($A33,'US Regions'!$B$23:$E$73,4,FALSE)=M$11,$F33,NA()) ->  | N33: =IF(VLOOKUP($A33,'US Regions'!$B$23:$E$73,4,FALSE)=N$11,$F33,NA()) -> 
A34: Indiana | B34: 14.1 | C34: 1.3 | D34: 15.9 | E34: 1.9 | F34: 13.4 | G34: 1.4 | H34: *-2.5 | I34: 2 | J34: IN | K34: =IF(VLOOKUP($A34,'US Regions'!$B$23:$E$73,4,FALSE)=K$11,$F34,NA()) ->  | L34: =IF(VLOOKUP($A34,'US Regions'!$B$23:$E$73,4,FALSE)=L$11,$F34,NA()) -> 13.4 | M34: =IF(VLOOKUP($A34,'US Regions'!$B$23:$E$73,4,FALSE)=M$11,$F34,NA()) ->  | N34: =IF(VLOOKUP($A34,'US Regions'!$B$23:$E$73,4,FALSE)=N$11,$F34,NA()) -> 
A35: Kansas | B35: 13.8 | C35: 1.3 | D35: 14.4 | E35: 2 | F35: 13.6 | G35: 1.3 | H35: -0.8 | I35: 1.9 | J35: KS | K35: =IF(VLOOKUP($A35,'US Regions'!$B$23:$E$73,4,FALSE)=K$11,$F35,NA()) ->  | L35: =IF(VLOOKUP($A35,'US Regions'!$B$23:$E$73,4,FALSE)=L$11,$F35,NA()) -> 13.6 | M35: =IF(VLOOKUP($A35,'US Regions'!$B$23:$E$73,4,FALSE)=M$11,$F35,NA()) ->  | N35: =IF(VLOOKUP($A35,'US Regions'!$B$23:$E$73,4,FALSE)=N$11,$F35,NA()) -> 
A36: Rhode Island | B36: 13.5 | C36: 1.2 | D36: 13.7 | E36: 1.4 | F36: 13.6 | G36: 1.4 | H36: -0.1 | I36: 1.7 | J36: RI | K36: =IF(VLOOKUP($A36,'US Regions'!$B$23:$E$73,4,FALSE)=K$11,$F36,NA()) -> 13.6 | L36: =IF(VLOOKUP($A36,'US Regions'!$B$23:$E$73,4,FALSE)=L$11,$F36,NA()) ->  | M36: =IF(VLOOKUP($A36,'US Regions'!$B$23:$E$73,4,FALSE)=M$11,$F36,NA()) ->  | N36: =IF(VLOOKUP($A36,'US Regions'!$B$23:$E$73,4,FALSE)=N$11,$F36,NA()) -> 
A37: Delaware | B37: 13.7 | C37: 1.2 | D37: 12.9 | E37: 1.3 | F37: 13.7 | G37: 1.5 | H37: 0.8 | I37: 2 | J37: DE | K37: =IF(VLOOKUP($A37,'US Regions'!$B$23:$E$73,4,FALSE)=K$11,$F37,NA()) ->  | L37: =IF(VLOOKUP($A37,'US Regions'!$B$23:$E$73,4,FALSE)=L$11,$F37,NA()) ->  | M37: =IF(VLOOKUP($A37,'US Regions'!$B$23:$E$73,4,FALSE)=M$11,$F37,NA()) -> 13.7 | N37: =IF(VLOOKUP($A37,'US Regions'!$B$23:$E$73,4,FALSE)=N$11,$F37,NA()) -> 
A38: Idaho | B38: 14.4 | C38: 2 | D38: 14.8 | E38: 2.3 | F38: 13.7 | G38: 2.2 | H38: -1.1 | I38: 2.7 | J38: ID | K38: =IF(VLOOKUP($A38,'US Regions'!$B$23:$E$73,4,FALSE)=K$11,$F38,NA()) ->  | L38: =IF(VLOOKUP($A38,'US Regions'!$B$23:$E$73,4,FALSE)=L$11,$F38,NA()) ->  | M38: =IF(VLOOKUP($A38,'US Regions'!$B$23:$E$73,4,FALSE)=M$11,$F38,NA()) ->  | N38: =IF(VLOOKUP($A38,'US Regions'!$B$23:$E$73,4,FALSE)=N$11,$F38,NA()) -> 13.7
A39: Montana | B39: 14.8 | C39: 2 | D39: 15.5 | E39: 2.4 | F39: 14 | G39: 2.2 | H39: -1.5 | I39: 2.3 | J39: MT | K39: =IF(VLOOKUP($A39,'US Regions'!$B$23:$E$73,4,FALSE)=K$11,$F39,NA()) ->  | L39: =IF(VLOOKUP($A39,'US Regions'!$B$23:$E$73,4,FALSE)=L$11,$F39,NA()) ->  | M39: =IF(VLOOKUP($A39,'US Regions'!$B$23:$E$73,4,FALSE)=M$11,$F39,NA()) ->  | N39: =IF(VLOOKUP($A39,'US Regions'!$B$23:$E$73,4,FALSE)=N$11,$F39,NA()) -> 14
A40: Michigan | B40: 14.4 | C40: 1.2 | D40: 15.3 | E40: 1.4 | F40: 14.1 | G40: 1.4 | H40: -1.2 | I40: 1.9 | J40: MI | K40: =IF(VLOOKUP($A40,'US Regions'!$B$23:$E$73,4,FALSE)=K$11,$F40,NA()) ->  | L40: =IF(VLOOKUP($A40,'US Regions'!$B$23:$E$73,4,FALSE)=L$11,$F40,NA()) -> 14.1 | M40: =IF(VLOOKUP($A40,'US Regions'!$B$23:$E$73,4,FALSE)=M$11,$F40,NA()) ->  | N40: =IF(VLOOKUP($A40,'US Regions'!$B$23:$E$73,4,FALSE)=N$11,$F40,NA()) -> 
A41: Oregon | B41: 14.3 | C41: 1.4 | D41: 14.3 | E41: 1.7 | F41: 14.3 | G41: 1.5 | H41: -0.1 | I41: 1.8 | J41: OR | K41: =IF(VLOOKUP($A41,'US Regions'!$B$23:$E$73,4,FALSE)=K$11,$F41,NA()) ->  | L41: =IF(VLOOKUP($A41,'US Regions'!$B$23:$E$73,4,FALSE)=L$11,$F41,NA()) ->  | M41: =IF(VLOOKUP($A41,'US Regions'!$B$23:$E$73,4,FALSE)=M$11,$F41,NA()) ->  | N41: =IF(VLOOKUP($A41,'US Regions'!$B$23:$E$73,4,FALSE)=N$11,$F41,NA()) -> 14.3
A42: Missouri | B42: 14.8 | C42: 1.9 | D42: 15.2 | E42: 2.2 | F42: 14.5 | G42: 2.1 | H42: -0.7 | I42: 2.2 | J42: MO | K42: =IF(VLOOKUP($A42,'US Regions'!$B$23:$E$73,4,FALSE)=K$11,$F42,NA()) ->  | L42: =IF(VLOOKUP($A42,'US Regions'!$B$23:$E$73,4,FALSE)=L$11,$F42,NA()) -> 14.5 | M42: =IF(VLOOKUP($A42,'US Regions'!$B$23:$E$73,4,FALSE)=M$11,$F42,NA()) ->  | N42: =IF(VLOOKUP($A42,'US Regions'!$B$23:$E$73,4,FALSE)=N$11,$F42,NA()) -> 
A43: Ohio | B43: 14.7 | C43: 1.3 | D43: 15.2 | E43: 1.6 | F43: 14.5 | G43: 1.4 | H43: -0.7 | I43: 1.5 | J43: OH | K43: =IF(VLOOKUP($A43,'US Regions'!$B$23:$E$73,4,FALSE)=K$11,$F43,NA()) ->  | L43: =IF(VLOOKUP($A43,'US Regions'!$B$23:$E$73,4,FALSE)=L$11,$F43,NA()) -> 14.5 | M43: =IF(VLOOKUP($A43,'US Regions'!$B$23:$E$73,4,FALSE)=M$11,$F43,NA()) ->  | N43: =IF(VLOOKUP($A43,'US Regions'!$B$23:$E$73,4,FALSE)=N$11,$F43,NA()) -> 
A44: Florida | B44: 15 | C44: 0.8 | D44: 15.4 | E44: 0.9 | F44: 15.1 | G44: 0.9 | H44: -0.4 | I44: 1.1 | J44: FL | K44: =IF(VLOOKUP($A44,'US Regions'!$B$23:$E$73,4,FALSE)=K$11,$F44,NA()) ->  | L44: =IF(VLOOKUP($A44,'US Regions'!$B$23:$E$73,4,FALSE)=L$11,$F44,NA()) ->  | M44: =IF(VLOOKUP($A44,'US Regions'!$B$23:$E$73,4,FALSE)=M$11,$F44,NA()) -> 15.1 | N44: =IF(VLOOKUP($A44,'US Regions'!$B$23:$E$73,4,FALSE)=N$11,$F44,NA()) -> 
A45: California | B45: 15.9 | C45: 0.5 | D45: 16.6 | E45: 0.7 | F45: 15.4 | G45: 0.6 | H45: *-1.2 | I45: 0.8 | J45: CA | K45: =IF(VLOOKUP($A45,'US Regions'!$B$23:$E$73,4,FALSE)=K$11,$F45,NA()) ->  | L45: =IF(VLOOKUP($A45,'US Regions'!$B$23:$E$73,4,FALSE)=L$11,$F45,NA()) ->  | M45: =IF(VLOOKUP($A45,'US Regions'!$B$23:$E$73,4,FALSE)=M$11,$F45,NA()) ->  | N45: =IF(VLOOKUP($A45,'US Regions'!$B$23:$E$73,4,FALSE)=N$11,$F45,NA()) -> 15.4
A46: New York | B46: 15.9 | C46: 0.7 | D46: 16 | E46: 1 | F46: 15.9 | G46: 0.9 | H46: -0.1 | I46: 1.3 | J46: NY | K46: =IF(VLOOKUP($A46,'US Regions'!$B$23:$E$73,4,FALSE)=K$11,$F46,NA()) -> 15.9 | L46: =IF(VLOOKUP($A46,'US Regions'!$B$23:$E$73,4,FALSE)=L$11,$F46,NA()) ->  | M46: =IF(VLOOKUP($A46,'US Regions'!$B$23:$E$73,4,FALSE)=M$11,$F46,NA()) ->  | N46: =IF(VLOOKUP($A46,'US Regions'!$B$23:$E$73,4,FALSE)=N$11,$F46,NA()) -> 
A47: Oklahoma | B47: 15.3 | C47: 1.5 | D47: 15.1 | E47: 2 | F47: 16 | G47: 2.1 | H47: 0.9 | I47: 2.8 | J47: OK | K47: =IF(VLOOKUP($A47,'US Regions'!$B$23:$E$73,4,FALSE)=K$11,$F47,NA()) ->  | L47: =IF(VLOOKUP($A47,'US Regions'!$B$23:$E$73,4,FALSE)=L$11,$F47,NA()) ->  | M47: =IF(VLOOKUP($A47,'US Regions'!$B$23:$E$73,4,FALSE)=M$11,$F47,NA()) -> 16 | N47: =IF(VLOOKUP($A47,'US Regions'!$B$23:$E$73,4,FALSE)=N$11,$F47,NA()) -> 
A48: South Carolina | B48: 17.2 | C48: 1.4 | D48: 18 | E48: 1.6 | F48: 16.3 | G48: 1.5 | H48: -1.7 | I48: 2 | J48: SC | K48: =IF(VLOOKUP($A48,'US Regions'!$B$23:$E$73,4,FALSE)=K$11,$F48,NA()) ->  | L48: =IF(VLOOKUP($A48,'US Regions'!$B$23:$E$73,4,FALSE)=L$11,$F48,NA()) ->  | M48: =IF(VLOOKUP($A48,'US Regions'!$B$23:$E$73,4,FALSE)=M$11,$F48,NA()) -> 16.3 | N48: =IF(VLOOKUP($A48,'US Regions'!$B$23:$E$73,4,FALSE)=N$11,$F48,NA()) -> 
A49: Alabama | B49: 16.1 | C49: 1.2 | D49: 16.3 | E49: 2.1 | F49: 16.4 | G49: 1.3 | H49: 0.2 | I49: 2.3 | J49: AL | K49: =IF(VLOOKUP($A49,'US Regions'!$B$23:$E$73,4,FALSE)=K$11,$F49,NA()) ->  | L49: =IF(VLOOKUP($A49,'US Regions'!$B$23:$E$73,4,FALSE)=L$11,$F49,NA()) ->  | M49: =IF(VLOOKUP($A49,'US Regions'!$B$23:$E$73,4,FALSE)=M$11,$F49,NA()) -> 16.4 | N49: =IF(VLOOKUP($A49,'US Regions'!$B$23:$E$73,4,FALSE)=N$11,$F49,NA()) -> 
A50: Nevada | B50: 16.2 | C50: 1.4 | D50: 16 | E50: 1.8 | F50: 16.6 | G50: 1.8 | H50: 0.6 | I50: 2.5 | J50: NV | K50: =IF(VLOOKUP($A50,'US Regions'!$B$23:$E$73,4,FALSE)=K$11,$F50,NA()) ->  | L50: =IF(VLOOKUP($A50,'US Regions'!$B$23:$E$73,4,FALSE)=L$11,$F50,NA()) ->  | M50: =IF(VLOOKUP($A50,'US Regions'!$B$23:$E$73,4,FALSE)=M$11,$F50,NA()) ->  | N50: =IF(VLOOKUP($A50,'US Regions'!$B$23:$E$73,4,FALSE)=N$11,$F50,NA()) -> 16.6 | Q50: Source: U.S. Census Bureau
A51: Texas | B51: 17.1 | C51: 0.9 | D51: 17.9 | E51: 1.1 | F51: 16.9 | G51: 1 | H51: -1 | I51: 1.3 | J51: TX | K51: =IF(VLOOKUP($A51,'US Regions'!$B$23:$E$73,4,FALSE)=K$11,$F51,NA()) ->  | L51: =IF(VLOOKUP($A51,'US Regions'!$B$23:$E$73,4,FALSE)=L$11,$F51,NA()) ->  | M51: =IF(VLOOKUP($A51,'US Regions'!$B$23:$E$73,4,FALSE)=M$11,$F51,NA()) -> 16.9 | N51: =IF(VLOOKUP($A51,'US Regions'!$B$23:$E$73,4,FALSE)=N$11,$F51,NA()) -> 
A52: West Virginia | B52: 17.2 | C52: 2.7 | D52: 17.2 | E52: 2.1 | F52: 17 | G52: 2.9 | H52: -0.1 | I52: 2.5 | J52: WV | K52: =IF(VLOOKUP($A52,'US Regions'!$B$23:$E$73,4,FALSE)=K$11,$F52,NA()) ->  | L52: =IF(VLOOKUP($A52,'US Regions'!$B$23:$E$73,4,FALSE)=L$11,$F52,NA()) ->  | M52: =IF(VLOOKUP($A52,'US Regions'!$B$23:$E$73,4,FALSE)=M$11,$F52,NA()) -> 17 | N52: =IF(VLOOKUP($A52,'US Regions'!$B$23:$E$73,4,FALSE)=N$11,$F52,NA()) -> 
A53: Georgia | B53: 17.6 | C53: 1.2 | D53: 18.6 | E53: 1.5 | F53: 17.2 | G53: 1.5 | H53: -1.4 | I53: 2.1 | J53: GA | K53: =IF(VLOOKUP($A53,'US Regions'!$B$23:$E$73,4,FALSE)=K$11,$F53,NA()) ->  | L53: =IF(VLOOKUP($A53,'US Regions'!$B$23:$E$73,4,FALSE)=L$11,$F53,NA()) ->  | M53: =IF(VLOOKUP($A53,'US Regions'!$B$23:$E$73,4,FALSE)=M$11,$F53,NA()) -> 17.2 | N53: =IF(VLOOKUP($A53,'US Regions'!$B$23:$E$73,4,FALSE)=N$11,$F53,NA()) -> 
A54: North Carolina | B54: 17 | C54: 1.7 | D54: 16.4 | E54: 1.6 | F54: 17.9 | G54: 2 | H54: 1.5 | I54: 2 | J54: NC | K54: =IF(VLOOKUP($A54,'US Regions'!$B$23:$E$73,4,FALSE)=K$11,$F54,NA()) ->  | L54: =IF(VLOOKUP($A54,'US Regions'!$B$23:$E$73,4,FALSE)=L$11,$F54,NA()) ->  | M54: =IF(VLOOKUP($A54,'US Regions'!$B$23:$E$73,4,FALSE)=M$11,$F54,NA()) -> 17.9 | N54: =IF(VLOOKUP($A54,'US Regions'!$B$23:$E$73,4,FALSE)=N$11,$F54,NA()) -> 
A55: Tennessee | B55: 17.7 | C55: 2 | D55: 16.5 | E55: 2.1 | F55: 18.4 | G55: 2.3 | H55: 1.9 | I55: 2.5 | J55: TN | K55: =IF(VLOOKUP($A55,'US Regions'!$B$23:$E$73,4,FALSE)=K$11,$F55,NA()) ->  | L55: =IF(VLOOKUP($A55,'US Regions'!$B$23:$E$73,4,FALSE)=L$11,$F55,NA()) ->  | M55: =IF(VLOOKUP($A55,'US Regions'!$B$23:$E$73,4,FALSE)=M$11,$F55,NA()) -> 18.4 | N55: =IF(VLOOKUP($A55,'US Regions'!$B$23:$E$73,4,FALSE)=N$11,$F55,NA()) -> 
A56: Arkansas | B56: 18.7 | C56: 2.3 | D56: 17 | E56: 2.1 | F56: 18.6 | G56: 2.7 | H56: 1.6 | I56: 2.3 | J56: AR | K56: =IF(VLOOKUP($A56,'US Regions'!$B$23:$E$73,4,FALSE)=K$11,$F56,NA()) ->  | L56: =IF(VLOOKUP($A56,'US Regions'!$B$23:$E$73,4,FALSE)=L$11,$F56,NA()) ->  | M56: =IF(VLOOKUP($A56,'US Regions'!$B$23:$E$73,4,FALSE)=M$11,$F56,NA()) -> 18.6 | N56: =IF(VLOOKUP($A56,'US Regions'!$B$23:$E$73,4,FALSE)=N$11,$F56,NA()) -> 
A57: Kentucky | B57: 18 | C57: 1.6 | D57: 16.8 | E57: 2 | F57: 18.9 | G57: 1.8 | H57: 2.1 | I57: 2.3 | J57: KY | K57: =IF(VLOOKUP($A57,'US Regions'!$B$23:$E$73,4,FALSE)=K$11,$F57,NA()) ->  | L57: =IF(VLOOKUP($A57,'US Regions'!$B$23:$E$73,4,FALSE)=L$11,$F57,NA()) ->  | M57: =IF(VLOOKUP($A57,'US Regions'!$B$23:$E$73,4,FALSE)=M$11,$F57,NA()) -> 18.9 | N57: =IF(VLOOKUP($A57,'US Regions'!$B$23:$E$73,4,FALSE)=N$11,$F57,NA()) -> 
A58: Arizona | B58: 18.8 | C58: 1.9 | D58: 18 | E58: 2.3 | F58: 19.6 | G58: 2.1 | H58: 1.6 | I58: 2.1 | J58: AZ | K58: =IF(VLOOKUP($A58,'US Regions'!$B$23:$E$73,4,FALSE)=K$11,$F58,NA()) ->  | L58: =IF(VLOOKUP($A58,'US Regions'!$B$23:$E$73,4,FALSE)=L$11,$F58,NA()) ->  | M58: =IF(VLOOKUP($A58,'US Regions'!$B$23:$E$73,4,FALSE)=M$11,$F58,NA()) ->  | N58: =IF(VLOOKUP($A58,'US Regions'!$B$23:$E$73,4,FALSE)=N$11,$F58,NA()) -> 19.6
A59: District of Columbia | B59: 19.9 | C59: 1.5 | D59: 19.7 | E59: 1.8 | F59: 19.9 | G59: 1.8 | H59: 0.2 | I59: 2.3 | J59: DC | K59: =IF(VLOOKUP($A59,'US Regions'!$B$23:$E$73,4,FALSE)=K$11,$F59,NA()) ->  | L59: =IF(VLOOKUP($A59,'US Regions'!$B$23:$E$73,4,FALSE)=L$11,$F59,NA()) ->  | M59: =IF(VLOOKUP($A59,'US Regions'!$B$23:$E$73,4,FALSE)=M$11,$F59,NA()) -> 19.9 | N59: =IF(VLOOKUP($A59,'US Regions'!$B$23:$E$73,4,FALSE)=N$11,$F59,NA()) -> 
A60: Louisiana | B60: 20.5 | C60: 2.6 | D60: 21.3 | E60: 2.1 | F60: 20.2 | G60: 2.9 | H60: -1.1 | I60: 2.4 | J60: LA | K60: =IF(VLOOKUP($A60,'US Regions'!$B$23:$E$73,4,FALSE)=K$11,$F60,NA()) ->  | L60: =IF(VLOOKUP($A60,'US Regions'!$B$23:$E$73,4,FALSE)=L$11,$F60,NA()) ->  | M60: =IF(VLOOKUP($A60,'US Regions'!$B$23:$E$73,4,FALSE)=M$11,$F60,NA()) -> 20.2 | N60: =IF(VLOOKUP($A60,'US Regions'!$B$23:$E$73,4,FALSE)=N$11,$F60,NA()) -> 
A61: New Mexico | B61: 21.4 | C61: 2.2 | D61: 20.2 | E61: 2.2 | F61: 21 | G61: 2.8 | H61: 0.8 | I61: 3.4 | J61: NM | K61: =IF(VLOOKUP($A61,'US Regions'!$B$23:$E$73,4,FALSE)=K$11,$F61,NA()) ->  | L61: =IF(VLOOKUP($A61,'US Regions'!$B$23:$E$73,4,FALSE)=L$11,$F61,NA()) ->  | M61: =IF(VLOOKUP($A61,'US Regions'!$B$23:$E$73,4,FALSE)=M$11,$F61,NA()) ->  | N61: =IF(VLOOKUP($A61,'US Regions'!$B$23:$E$73,4,FALSE)=N$11,$F61,NA()) -> 21
A62: Mississippi | B62: 20.6 | C62: 2.1 | D62: 20 | E62: 1.7 | F62: 22.2 | G62: 2.4 | H62: *2.3 | I62: 2.1 | J62: MS | K62: =IF(VLOOKUP($A62,'US Regions'!$B$23:$E$73,4,FALSE)=K$11,$F62,NA()) ->  | L62: =IF(VLOOKUP($A62,'US Regions'!$B$23:$E$73,4,FALSE)=L$11,$F62,NA()) ->  | M62: =IF(VLOOKUP($A62,'US Regions'!$B$23:$E$73,4,FALSE)=M$11,$F62,NA()) -> 22.2 | N62: =IF(VLOOKUP($A62,'US Regions'!$B$23:$E$73,4,FALSE)=N$11,$F62,NA()) -> 
A63: *An asterisk preceding an estimate indicates change is statistically different from zero at the 90 percent confidence level
A65: 1Data are based on the CPS ASEC sample of 68,000 addresses. The 2014 CPS ASEC included redesigned questions for income and health insurance coverage. All of the approximately 98,000 addresses were eligible to receive the redesigned set of health insurance coverage questions. The redesigned income questions were implemented to a subsample of these 98,000 addresses using a probability split panel design. Approximately 68,000 addresses were eligible to receive a set of income questions similar to those used in the 2013 CPS ASEC and the remaining 30,000 addresses were eligible to receive the redesigned income questions. The source of the 2013 data for this table is the portion of the CPS ASEC sample which received the income questions consistent with the 2013 CPS ASEC, approximately 68,000 addresses
A66: 2A 90 percent confidence interval is a measure of an estimate's variability. The larger the confidence interval in relation to the size of the estimate, the less reliable the estimate. Confidence interval shown in this table are based on standard errors calculated using replicate weights. Fore more information, see "Standard Errors and Their Use" at <ftp://ftp2.census.gov/library/publications/2014/demo/p60-249sa.pdf>.
A67: 3Details may not sum to totals because of rounding.
A69: Source: U.S. Census Bureau, Current Population Survey, 2011 to 2014 Annual Social and Economic Supplements.

Sheet 8.5
M3: Alphanumeric
A4: State or Region | B4: 2010 | R4: Geo | Y4: Rank
B5: Population | E5: Area | J5: Alpha | L5: Population | M5: Density
A6: Alaska | B6: 710231 | C6: 1.2 | D6: =VLOOKUP(A6,'8.4'!$A$12:$J$62,10,FALSE) -> AK | E6: 570640.95 | F6: =TRIM(MID(VLOOKUP(A6,'US Regions'!$B$23:$D$73,3,FALSE),13,500)) -> Pacific | G6: =B6/E6 -> 1.244619756 | H6: 0 | J6: Central | K6: West South Central | L6: 36346202 | M6: =L6/SUMIF($F$6:$F$56,K6,$E$6:$E$56) -> 85.50719452 | N6: W-S | O6: =TRIM(Q6&" "&P6) -> Pacific | Q6: Pacific | R6: =VLOOKUP(Q6,$K$6:$M$14,3,FALSE) -> 55.71413338 | S6: 593.2 | T6: Pac | W6: Mountain | X6: 22065451 | Y6: =VLOOKUP(W6,$K$6:$M$14,3,FALSE) -> 25.78441505 | Z6: Mountain | AA6: =VLOOKUP(W6,$Q$6:$T$14,4,FALSE) -> Mnt | AB6: =TRIM(W6&" "&V6) -> Mountain
A7: Wyoming | B7: 563626 | C7: 5.8 | D7: =VLOOKUP(A7,'8.4'!$A$12:$J$62,10,FALSE) -> WY | E7: 97093.14 | F7: =TRIM(MID(VLOOKUP(A7,'US Regions'!$B$23:$D$73,3,FALSE),13,500)) -> Mountain | G7: 5.805003319 | H7: 1 | J7: Central | K7: West North Central | L7: 20505437 | M7: 40.39524402 | N7: W-N | O7: =TRIM(Q7&" "&P7) -> Mountain | Q7: Mountain | R7: 25.78441505 | S7: 211.6 | T7: Mnt | V7: Central | W7: West North Central | X7: 20505437 | Y7: 40.39524402 | Z7: =W7&" "&V7 -> West North Central Central | AA7: W-N | AB7: West North Central Central
A8: Montana | B8: 989415 | C8: 6.8 | D8: =VLOOKUP(A8,'8.4'!$A$12:$J$62,10,FALSE) -> MT | E8: 145545.8 | F8: =TRIM(MID(VLOOKUP(A8,'US Regions'!$B$23:$D$73,3,FALSE),13,500)) -> Mountain | G8: 6.797963253 | H8: 2 | J8: Atlantic | K8: South Atlantic | L8: 59777037 | M8: 225.5209696 | N8: S | O8: West North Central Central | P8: Central | Q8: West North Central | R8: 40.39524402 | S8: 287.3 | T8: W-N | W8: Pacific | X8: 49880102 | Y8: 55.71413338 | Z8: Pacific | AA8: Pac | AB8: Pacific
A9: North Dakota | B9: 672591 | C9: 9.7 | D9: =VLOOKUP(A9,'8.4'!$A$12:$J$62,10,FALSE) -> ND | E9: 69000.8 | F9: =TRIM(MID(VLOOKUP(A9,'US Regions'!$B$23:$D$73,3,FALSE),13,500)) -> West North Central | G9: 9.747582637 | H9: 3 | K9: Pacific | L9: 49880102 | M9: 55.71413338 | N9: Pac | O9: West South Central Central | P9: Central | Q9: West South Central | R9: 85.50719452 | S9: 311.9 | T9: W-S | V9: Central | W9: West South Central | X9: 36346202 | Y9: 85.50719452 | Z9: =W9&" "&V9 -> West South Central Central | AA9: W-S | AB9: West South Central Central
A10: South Dakota | B10: 814180 | C10: 10.7 | D10: =VLOOKUP(A10,'8.4'!$A$12:$J$62,10,FALSE) -> SD | E10: 75811 | F10: =TRIM(MID(VLOOKUP(A10,'US Regions'!$B$23:$D$73,3,FALSE),13,500)) -> West North Central | G10: 10.73960243 | H10: 4 | J10: England | K10: New England | L10: 14444865 | M10: 230.4230316 | N10: N.Eng | O10: East North Central Central | P10: Central | Q10: East North Central | R10: 191.1119786 | S10: 974.2 | T10: E-N | V10: Central | W10: East South Central | X10: 18432505 | Y10: 103.3850555 | Z10: East South Central Central | AA10: E-S | AB10: East South Central Central
A11: New Mexico | B11: 2059179 | C11: 17 | D11: =VLOOKUP(A11,'8.4'!$A$12:$J$62,10,FALSE) -> NM | E11: 121298.15 | F11: =TRIM(MID(VLOOKUP(A11,'US Regions'!$B$23:$D$73,3,FALSE),13,500)) -> Mountain | G11: 16.97617812 | H11: 5 | K11: Mountain | L11: 22065451 | M11: 25.78441505 | N11: Mnt | O11: East South Central Central | P11: Central | Q11: East South Central | R11: 103.3850555 | S11: 421.4 | T11: E-S | V11: Central | W11: East North Central | X11: 46421564 | Y11: 191.1119786 | Z11: East North Central Central | AA11: E-N | AB11: East North Central Central
A12: Idaho | B12: 1567582 | C12: 19 | D12: =VLOOKUP(A12,'8.4'!$A$12:$J$62,10,FALSE) -> ID | E12: 82643.12 | F12: =TRIM(MID(VLOOKUP(A12,'US Regions'!$B$23:$D$73,3,FALSE),13,500)) -> Mountain | G12: 18.96808833 | H12: 6 | J12: Atlantic | K12: Mid-Atlantic | L12: 40872375 | M12: 411.9230741 | N12: Mid-At | O12: South Atlantic Atlantic | P12: Atlantic | Q12: South Atlantic | R12: 225.5209696 | S12: 2204.3 | T12: S | V12: Atlantic | W12: South Atlantic | X12: 59777037 | Y12: 225.5209696 | Z12: South Atlantic Atlantic | AA12: S | AB12: South Atlantic Atlantic
A13: Nebraska | B13: 1826341 | C13: 23.8 | D13: =VLOOKUP(A13,'8.4'!$A$12:$J$62,10,FALSE) -> NE | E13: 76824.17 | F13: =TRIM(MID(VLOOKUP(A13,'US Regions'!$B$23:$D$73,3,FALSE),13,500)) -> West North Central | G13: 23.77300009 | H13: 7 | J13: Central | K13: East South Central | L13: 18432505 | M13: 103.3850555 | N13: E-S | O13: Mid-Atlantic Atlantic | P13: Atlantic | Q13: Mid-Atlantic | R13: 411.9230741 | S13: 1890.6 | T13: Mid-At | V13: England | W13: New England | X13: 14444865 | Y13: 230.4230316 | Z13: New England England | AA13: N.Eng | AB13: New England England
A14: Nevada | B14: 2700551 | C14: 24.6 | D14: =VLOOKUP(A14,'8.4'!$A$12:$J$62,10,FALSE) -> NV | E14: 109781.18 | F14: =TRIM(MID(VLOOKUP(A14,'US Regions'!$B$23:$D$73,3,FALSE),13,500)) -> Mountain | G14: 24.59939855 | H14: 8 | J14: Central | K14: East North Central | L14: 46421564 | M14: 191.1119786 | N14: E-N | O14: New England England | P14: England | Q14: New England | R14: 230.4230316 | S14: 2853.6 | T14: N.Eng | V14: Atlantic | W14: Mid-Atlantic | X14: 40872375 | Y14: 411.9230741 | Z14: Mid-Atlantic Atlantic | AA14: Mid-At | AB14: Mid-Atlantic Atlantic
A15: Utah | B15: 2763885 | C15: 33.6 | D15: =VLOOKUP(A15,'8.4'!$A$12:$J$62,10,FALSE) -> UT | E15: 82169.62 | F15: =TRIM(MID(VLOOKUP(A15,'US Regions'!$B$23:$D$73,3,FALSE),13,500)) -> Mountain | G15: 33.63633664 | H15: 9
A16: Kansas | B16: 2853118 | C16: 34.9 | D16: =VLOOKUP(A16,'8.4'!$A$12:$J$62,10,FALSE) -> KS | E16: 81758.72 | F16: =TRIM(MID(VLOOKUP(A16,'US Regions'!$B$23:$D$73,3,FALSE),13,500)) -> West North Central | G16: 34.89680367 | H16: 10
A17: Oregon | B17: 3831074 | C17: 39.9 | D17: =VLOOKUP(A17,'8.4'!$A$12:$J$62,10,FALSE) -> OR | E17: 95988.01 | F17: =TRIM(MID(VLOOKUP(A17,'US Regions'!$B$23:$D$73,3,FALSE),13,500)) -> Pacific | G17: 39.91200568 | H17: 11
A18: Maine | B18: 1328361 | C18: 43.1 | D18: =VLOOKUP(A18,'8.4'!$A$12:$J$62,10,FALSE) -> ME | E18: 30842.92 | F18: =TRIM(MID(VLOOKUP(A18,'US Regions'!$B$23:$D$73,3,FALSE),13,500)) -> New England | G18: 43.06858754 | H18: 12
A19: Colorado | B19: 5029196 | C19: 48.5 | D19: =VLOOKUP(A19,'8.4'!$A$12:$J$62,10,FALSE) -> CO | E19: 103641.89 | F19: =TRIM(MID(VLOOKUP(A19,'US Regions'!$B$23:$D$73,3,FALSE),13,500)) -> Mountain | G19: 48.52474226 | H19: 13
A20: Iowa | B20: 3046355 | C20: 54.5 | D20: =VLOOKUP(A20,'8.4'!$A$12:$J$62,10,FALSE) -> IA | E20: 55857.13 | F20: =TRIM(MID(VLOOKUP(A20,'US Regions'!$B$23:$D$73,3,FALSE),13,500)) -> West North Central | G20: 54.53833736 | H20: 14 | U20: POPULATION DENSITY BY DIVISION
A21: Oklahoma | B21: 3751351 | C21: 54.7 | D21: =VLOOKUP(A21,'8.4'!$A$12:$J$62,10,FALSE) -> OK | E21: 68594.92 | F21: =TRIM(MID(VLOOKUP(A21,'US Regions'!$B$23:$D$73,3,FALSE),13,500)) -> West South Central | G21: 54.68846673 | H21: 15
A22: Arkansas | B22: 2915918 | C22: 56 | D22: =VLOOKUP(A22,'8.4'!$A$12:$J$62,10,FALSE) -> AR | E22: 52035.48 | F22: =TRIM(MID(VLOOKUP(A22,'US Regions'!$B$23:$D$73,3,FALSE),13,500)) -> West South Central | G22: 56.0371116 | H22: 16
A23: Arizona | B23: 6392017 | C23: 56.3 | D23: =VLOOKUP(A23,'8.4'!$A$12:$J$62,10,FALSE) -> AZ | E23: 113594.08 | F23: =TRIM(MID(VLOOKUP(A23,'US Regions'!$B$23:$D$73,3,FALSE),13,500)) -> Mountain | G23: 56.2706877 | H23: 17
A24: Mississippi | B24: 2967297 | C24: 63.2 | D24: =VLOOKUP(A24,'8.4'!$A$12:$J$62,10,FALSE) -> MS | E24: 46923.27 | F24: =TRIM(MID(VLOOKUP(A24,'US Regions'!$B$23:$D$73,3,FALSE),13,500)) -> East South Central | G24: 63.23721684 | H24: 18
A25: Minnesota | B25: 5303925 | C25: 66.6 | D25: =VLOOKUP(A25,'8.4'!$A$12:$J$62,10,FALSE) -> MN | E25: 79626.74 | F25: =TRIM(MID(VLOOKUP(A25,'US Regions'!$B$23:$D$73,3,FALSE),13,500)) -> West North Central | G25: 66.6098474 | H25: 19
A26: Vermont | B26: 625741 | C26: 67.9 | D26: =VLOOKUP(A26,'8.4'!$A$12:$J$62,10,FALSE) -> VT | E26: 9216.66 | F26: =TRIM(MID(VLOOKUP(A26,'US Regions'!$B$23:$D$73,3,FALSE),13,500)) -> New England | G26: 67.89238184 | H26: 20
A27: West Virginia | B27: 1852994 | C27: 77.1 | D27: =VLOOKUP(A27,'8.4'!$A$12:$J$62,10,FALSE) -> WV | E27: 24038.21 | F27: =TRIM(MID(VLOOKUP(A27,'US Regions'!$B$23:$D$73,3,FALSE),13,500)) -> South Atlantic | G27: 77.08535702 | H27: 21
A28: Missouri | B28: 5988927 | C28: 87.1 | D28: =VLOOKUP(A28,'8.4'!$A$12:$J$62,10,FALSE) -> MO | E28: 68741.52 | F28: =TRIM(MID(VLOOKUP(A28,'US Regions'!$B$23:$D$73,3,FALSE),13,500)) -> West North Central | G28: 87.12241161 | H28: 22
A29: Alabama | B29: 4779736 | C29: 94.4 | D29: =VLOOKUP(A29,'8.4'!$A$12:$J$62,10,FALSE) -> AL | E29: 50645.33 | F29: =TRIM(MID(VLOOKUP(A29,'US Regions'!$B$23:$D$73,3,FALSE),13,500)) -> East South Central | G29: 94.37663848 | H29: 23
A30: Texas | B30: 25145561 | C30: 96.3 | D30: =VLOOKUP(A30,'8.4'!$A$12:$J$62,10,FALSE) -> TX | E30: 261231.71 | F30: =TRIM(MID(VLOOKUP(A30,'US Regions'!$B$23:$D$73,3,FALSE),13,500)) -> West South Central | G30: 96.25769016 | H30: 24
A31: Washington | B31: 6724540 | C31: 101.2 | D31: =VLOOKUP(A31,'8.4'!$A$12:$J$62,10,FALSE) -> WA | E31: 66455.52 | F31: =TRIM(MID(VLOOKUP(A31,'US Regions'!$B$23:$D$73,3,FALSE),13,500)) -> Pacific | G31: 101.1885845 | H31: 25
A32: Louisiana | B32: 4533372 | C32: 104.9 | D32: =VLOOKUP(A32,'8.4'!$A$12:$J$62,10,FALSE) -> LA | E32: 43203.9 | F32: =TRIM(MID(VLOOKUP(A32,'US Regions'!$B$23:$D$73,3,FALSE),13,500)) -> West South Central | G32: 104.9296938 | H32: 26
A33: Wisconsin | B33: 5686986 | C33: 105 | D33: =VLOOKUP(A33,'8.4'!$A$12:$J$62,10,FALSE) -> WI | E33: 54157.8 | F33: =TRIM(MID(VLOOKUP(A33,'US Regions'!$B$23:$D$73,3,FALSE),13,500)) -> East North Central | G33: 105.0076997 | H33: 27
A34: Kentucky | B34: 4339367 | C34: 109.9 | D34: =VLOOKUP(A34,'8.4'!$A$12:$J$62,10,FALSE) -> KY | E34: 39486.34 | F34: =TRIM(MID(VLOOKUP(A34,'US Regions'!$B$23:$D$73,3,FALSE),13,500)) -> East South Central | G34: 109.8953967 | H34: 28
A35: New Hampshire | B35: 1316470 | C35: 147 | D35: =VLOOKUP(A35,'8.4'!$A$12:$J$62,10,FALSE) -> NH | E35: 8952.65 | F35: =TRIM(MID(VLOOKUP(A35,'US Regions'!$B$23:$D$73,3,FALSE),13,500)) -> New England | G35: 147.0480807 | H35: 29
A36: South Carolina | B36: 4625364 | C36: 153.9 | D36: =VLOOKUP(A36,'8.4'!$A$12:$J$62,10,FALSE) -> SC | E36: 30060.7 | F36: =TRIM(MID(VLOOKUP(A36,'US Regions'!$B$23:$D$73,3,FALSE),13,500)) -> South Atlantic | G36: 153.8674748 | H36: 30
A37: Tennessee | B37: 6346105 | C37: 153.9 | D37: =VLOOKUP(A37,'8.4'!$A$12:$J$62,10,FALSE) -> TN | E37: 41234.9 | F37: =TRIM(MID(VLOOKUP(A37,'US Regions'!$B$23:$D$73,3,FALSE),13,500)) -> East South Central | G37: 153.9013069 | H37: 31
A38: Georgia | B38: 9687653 | C38: 168.4 | D38: =VLOOKUP(A38,'8.4'!$A$12:$J$62,10,FALSE) -> GA | E38: 57513.49 | F38: =TRIM(MID(VLOOKUP(A38,'US Regions'!$B$23:$D$73,3,FALSE),13,500)) -> South Atlantic | G38: =B38/E38 -> 168.4414039 | H38: 32
A39: Michigan | B39: 9883640 | C39: 174.8 | D39: =VLOOKUP(A39,'8.4'!$A$12:$J$62,10,FALSE) -> MI | E39: 56538.9 | F39: =TRIM(MID(VLOOKUP(A39,'US Regions'!$B$23:$D$73,3,FALSE),13,500)) -> East North Central | G39: 174.8113246 | H39: 33
A40: Indiana | B40: 6483802 | C40: 181 | D40: =VLOOKUP(A40,'8.4'!$A$12:$J$62,10,FALSE) -> IN | E40: 35826.11 | F40: =TRIM(MID(VLOOKUP(A40,'US Regions'!$B$23:$D$73,3,FALSE),13,500)) -> East North Central | G40: 180.9797938 | H40: 34
A41: North Carolina | B41: 9535483 | C41: 196.1 | D41: =VLOOKUP(A41,'8.4'!$A$12:$J$62,10,FALSE) -> NC | E41: 48617.91 | F41: =TRIM(MID(VLOOKUP(A41,'US Regions'!$B$23:$D$73,3,FALSE),13,500)) -> South Atlantic | G41: 196.131076 | H41: 35
A42: Virginia | B42: 8001024 | C42: 202.6 | D42: =VLOOKUP(A42,'8.4'!$A$12:$J$62,10,FALSE) -> VA | E42: 39490.09 | F42: =TRIM(MID(VLOOKUP(A42,'US Regions'!$B$23:$D$73,3,FALSE),13,500)) -> South Atlantic | G42: 202.6084012 | H42: 36
A43: Hawaii | B43: 1360301 | C43: 211.8 | D43: =VLOOKUP(A43,'8.4'!$A$12:$J$62,10,FALSE) -> HI | E43: 6422.63 | F43: =TRIM(MID(VLOOKUP(A43,'US Regions'!$B$23:$D$73,3,FALSE),13,500)) -> Pacific | G43: 211.7981263 | H43: 37
A44: Illinois | B44: 12830632 | C44: 231.1 | D44: =VLOOKUP(A44,'8.4'!$A$12:$J$62,10,FALSE) -> IL | E44: 55518.93 | F44: =TRIM(MID(VLOOKUP(A44,'US Regions'!$B$23:$D$73,3,FALSE),13,500)) -> East North Central | G44: 231.1037334 | H44: 38
A45: California | B45: 37253956 | C45: 239.1 | D45: =VLOOKUP(A45,'8.4'!$A$12:$J$62,10,FALSE) -> CA | E45: 155779.22 | F45: =TRIM(MID(VLOOKUP(A45,'US Regions'!$B$23:$D$73,3,FALSE),13,500)) -> Pacific | G45: 239.145863 | H45: 39
A46: Ohio | B46: 11536504 | C46: 282.3 | D46: =VLOOKUP(A46,'8.4'!$A$12:$J$62,10,FALSE) -> OH | E46: 40860.69 | F46: =TRIM(MID(VLOOKUP(A46,'US Regions'!$B$23:$D$73,3,FALSE),13,500)) -> East North Central | G46: 282.337474 | H46: 40
A47: Pennsylvania | B47: 12702379 | C47: 283.9 | D47: =VLOOKUP(A47,'8.4'!$A$12:$J$62,10,FALSE) -> PA | E47: 44742.7 | F47: =TRIM(MID(VLOOKUP(A47,'US Regions'!$B$23:$D$73,3,FALSE),13,500)) -> Mid-Atlantic | G47: 283.8983566 | H47: 41 | U47: Source: U.S. Census Bureau
A48: Florida | B48: 18801310 | C48: 350.6 | D48: =VLOOKUP(A48,'8.4'!$A$12:$J$62,10,FALSE) -> FL | E48: 53624.76 | F48: =TRIM(MID(VLOOKUP(A48,'US Regions'!$B$23:$D$73,3,FALSE),13,500)) -> South Atlantic | G48: 350.6087486 | H48: 42
A49: New York | B49: 19378102 | C49: 411.2 | D49: =VLOOKUP(A49,'8.4'!$A$12:$J$62,10,FALSE) -> NY | E49: 47126.4 | F49: =TRIM(MID(VLOOKUP(A49,'US Regions'!$B$23:$D$73,3,FALSE),13,500)) -> Mid-Atlantic | G49: 411.1941926 | H49: 43
A50: Delaware | B50: 897934 | C50: 460.8 | D50: =VLOOKUP(A50,'8.4'!$A$12:$J$62,10,FALSE) -> DE | E50: 1948.54 | F50: =TRIM(MID(VLOOKUP(A50,'US Regions'!$B$23:$D$73,3,FALSE),13,500)) -> South Atlantic | G50: 460.8240016 | H50: 44
A51: Maryland | B51: 5773552 | C51: 594.8 | D51: =VLOOKUP(A51,'8.4'!$A$12:$J$62,10,FALSE) -> MD | E51: 9707.24 | F51: =TRIM(MID(VLOOKUP(A51,'US Regions'!$B$23:$D$73,3,FALSE),13,500)) -> South Atlantic | G51: 594.7676167 | H51: 45
A52: Connecticut | B52: 3574097 | C52: 738.1 | D52: =VLOOKUP(A52,'8.4'!$A$12:$J$62,10,FALSE) -> CT | E52: 4842.36 | F52: =TRIM(MID(VLOOKUP(A52,'US Regions'!$B$23:$D$73,3,FALSE),13,500)) -> New England | G52: 738.0898983 | H52: 46
A53: Massachusetts | B53: 6547629 | C53: 839.4 | D53: =VLOOKUP(A53,'8.4'!$A$12:$J$62,10,FALSE) -> MA | E53: 7800.06 | F53: =TRIM(MID(VLOOKUP(A53,'US Regions'!$B$23:$D$73,3,FALSE),13,500)) -> New England | G53: 839.4331582 | H53: 47
A54: Rhode Island | B54: 1052567 | C54: 1018.1 | D54: =VLOOKUP(A54,'8.4'!$A$12:$J$62,10,FALSE) -> RI | E54: 1033.81 | F54: =TRIM(MID(VLOOKUP(A54,'US Regions'!$B$23:$D$73,3,FALSE),13,500)) -> New England | G54: 1018.143566 | H54: 48
A55: New Jersey | B55: 8791894 | C55: 1195.5 | D55: =VLOOKUP(A55,'8.4'!$A$12:$J$62,10,FALSE) -> NJ | E55: 7354.22 | F55: =TRIM(MID(VLOOKUP(A55,'US Regions'!$B$23:$D$73,3,FALSE),13,500)) -> Mid-Atlantic | G55: 1195.489664 | H55: 49
A56: District of Columbia | B56: 601723 | C56: 0 | D56: =VLOOKUP(A56,'8.4'!$A$12:$J$62,10,FALSE) -> DC | E56: 61.05 | F56: =TRIM(MID(VLOOKUP(A56,'US Regions'!$B$23:$D$73,3,FALSE),13,500)) -> South Atlantic | G56: 9856.232596 | H56: 50

Sheet 8.6
A1: GDP and main components - volumes [nama_gdp_k] | E1: Percentage change over previous period | G1: Get the data: | H1: http://goo.gl/ad4wQh
E2: Gross domestic product at market prices
A3: Last update | E3: 2015-06-29T14:20:21 | J3: UNIT
A4: Extracted on | E4: 2015-08-31T17:28:37.683 | J4: INDIC_NA
A5: Source of data | E5: Eurostat
A7: UNIT | E7: Million euro, chain-linked volumes, reference year 2005 (at 2005 exchange rates)
A8: INDIC_NA | E8: Gross domestic product at market prices
A10: GEO/TIME | E10: 2000 | F10: 2001 | G10: 2002 | H10: 2003 | I10: 2004 | J10: 2005 | K10: WE SPEND MUCH MORE ON TRANSPORTATION THAN ON FOOD. OR MAYBE NOT? | L10: 2007 | M10: 2008 | N10: 2009 | O10: 2010 | P10: 2011 | Q10: 2012 | R10: 2013
A11: EU28 | E11: 10128408.4 | F11: 10331500.4 | G11: 10463177.8 | H11: 10618859.8 | I11: 10892654.1 | J11: 11128703 | K11: 11503494.9 | L11: 11872177.1 | M11: 11917008.8 | N11: 11379655.3 | O11: 11608573.5 | P11: 11799895.9 | Q11: 11754459.3 | R11: 11765333.6
A12: Belgium | E12: 280340.4 | F12: 282604.5 | G12: 286447 | H12: 288758.1 | I12: 298213 | J12: 303435 | K12: 311526.2 | L12: 320508.2 | M12: 323665.7 | N12: 314601.2 | O12: 321956.1 | P12: 327604 | Q12: 327132.9 | R12: 327776.1
A13: Bulgaria | E13: 17812.3 | F13: 18551.7 | G13: 19414.4 | H13: 20483.3 | I13: 21865.6 | J13: 23255.8 | K13: 24769.9 | L13: 26367.2 | M13: 27999.4 | N13: 26466.1 | O13: 26570 | P13: 27059.2 | Q13: 27217.8 | R13: 27452.3
A14: Czech Republic | E14: 85627.2 | F14: 88279.3 | G14: 90176.7 | H14: 93572.9 | I14: 98010.7 | J14: 104628.8 | K14: 111974.2 | L14: 118396 | M14: 122065.1 | N14: 116563.5 | O14: 119441.8 | P14: 121614 | Q14: 120372.2 | R14: 119247.7
A15: Denmark | E15: 194829.6 | F15: 196202.8 | G15: 197116.8 | H15: 197873.4 | I15: 202417.5 | J15: 207366.9 | K15: 214406.5 | L15: 217801.1 | M15: 216093.8 | N15: 203849.3 | O15: 206676.4 | P15: 208890.5 | Q15: 208141.1 | R15: 209009.2
A16: Germany | E16: 2159225.1 | F16: 2191923.8 | G16: 2192146.2 | H16: 2183915.9 | I16: 2209274.1 | J16: 2224400 | K16: 2306702.8 | L16: 2382110 | M16: 2407913 | N16: 2284013.9 | O16: 2375659.2 | P16: 2454847.8 | Q16: 2471753.3 | R16: 2482430.4
A17: Estonia | E17: 7932.1 | F17: 8425.1 | G17: 8950.6 | H17: 9674.7 | I17: 10276.3 | J17: 11189.1 | K17: 12332 | L17: 13228.4 | M17: 12680.6 | N17: 10896.6 | O17: 11258.2 | P17: 12234.2 | Q17: 12786 | R17: 13073.4
A18: Ireland | E18: 128371.4 | F18: 134770.8 | G18: 142071.5 | H18: 147370.4 | I18: 153559.6 | J18: 162896.8 | K18: 171864.6 | L18: 180406.6 | M18: 176509.1 | N18: 165240 | O18: 163483.2 | P18: 167028.6 | Q18: 167290.9 | R18: 166723.4
A19: Greece | E19: 158378.3 | F19: 165025.7 | G19: 170701.6 | H19: 180847.7 | I19: 188746.4 | J19: 193049.7 | K19: 203681.9 | L19: 210884.5 | M19: 210430.8 | N19: 203830.4 | O19: 193753.6 | P19: 179985.8 | Q19: 167436.1 | R19: 160981.2
A20: Spain | E20: 774475.1 | F20: 802893.9 | G20: 824653.8 | H20: 850131 | I20: 877839.3 | J20: 909298 | K20: 946363 | L20: 979288.7 | M20: 988021 | N20: 950156.4 | O20: 948244.1 | P20: 948721.1 | Q20: 933148.3 | R20: 921738.7
A21: France | E21: 1586559.1 | F21: 1615684.1 | G21: 1630691.8 | H21: 1645359.9 | I21: 1687230 | J21: 1718047 | K21: 1760429.6 | L21: 1800662.7 | M21: 1799210.2 | N21: 1742588.1 | O21: 1772645.2 | P21: 1808574.8 | Q21: 1808825.8 | R21: 1812687
A22: Croatia | E22: 28966.4 | F22: 30025.4 | G22: 31490.1 | H22: 33181.5 | I22: 34551.4 | J22: 36030.1 | K22: 37808.3 | L22: 39721.3 | M22: 40549.3 | N22: 37732.2 | O22: 36874.8 | P22: 36788.2 | Q22: 35982.1 | R22: 35653.9
A23: Italy | E23: 1367800.9 | F23: 1393277.9 | G23: 1399567.7 | H23: 1398915.8 | I23: 1423126.4 | J23: 1436379.5 | K23: 1467964.4 | L23: 1492671.1 | M23: 1475412.4 | N23: 1394347.2 | O23: 1418375.8 | P23: 1424751.5 | Q23: 1391018 | R23: 1365226.8
A24: Cyprus | E24: 11606.7 | F24: 12073.7 | G24: 12330.7 | H24: 12561 | I24: 13093 | J24: 13598.2 | K24: 14159.7 | L24: 14881 | M24: 15414.6 | N24: 15128.7 | O24: 15326.7 | P24: 15394.2 | Q24: 15022.8 | R24: 14209.9
A25: Latvia | E25: 8715 | F25: 9355.4 | G25: 10022.3 | H25: 10789.6 | I25: 11742.1 | J25: 12927.8 | K25: 14348.3 | L25: 15781.3 | M25: 15344 | N25: 12628.2 | O25: 12463.2 | P25: 13124.6 | Q25: 13809.3 | R25: 14376.8
A26: Lithuania | E26: 14412.8 | F26: 15378.4 | G26: 16429.9 | H26: 18118.3 | I26: 19453.4 | J26: 20969.1 | K26: 22606.5 | L26: 24821.1 | M26: 25544 | N26: 21751.5 | O26: 22098.7 | P26: 23435.5 | Q26: 24293 | R26: 25102.5
A27: Luxembourg | E27: 25398.6 | F27: 26038.1 | G27: 27103.1 | H27: 27554.5 | I27: 28758.8 | J27: 30269.5 | K27: 31763.6 | L27: 33856.2 | M27: 33607.5 | N27: 31740.2 | O27: 32724.6 | P27: 33348 | Q27: 33289.4 | R27: 34000.7
A28: Hungary | E28: 72381.9 | F28: 75068.9 | G28: 78451.6 | H28: 81472.3 | I28: 85380.6 | J28: 88765.5 | K28: 92221.8 | L28: 92323.6 | M28: 93148.2 | N28: 86844.5 | O28: 87759.8 | P28: 89138.4 | Q28: 87654.7 | R28: 88618.4
A29: Malta | E29: 4627.5 | F29: 4627.4 | G29: 4740 | H29: 4774 | I29: 4760.3 | J29: 4930.9 | K29: 5058.2 | L29: 5264.1 | M29: 5468.5 | N29: 5314.7 | O29: 5541.5 | P29: 5618.6 | Q29: 5680.2 | R29: 5843.1
A30: Netherlands | E30: 480825.2 | F30: 490084.8 | G30: 490459.2 | H30: 492104.9 | I30: 503110.9 | J30: 513407 | K30: 530833 | L30: 551645.1 | M30: 561597 | N30: 541000.1 | O30: 549264.6 | P30: 554453.2 | Q30: 547538.3 | R30: 543033
A31: Austria | E31: 225655 | F31: 227589.7 | G31: 231444.5 | H31: 233448.6 | I31: 239493.9 | J31: 245243.4 | K31: 254243.3 | L31: 263665.5 | M31: 267452.4 | N31: 257230.6 | O31: 261781.5 | P31: 269201.3 | Q31: 271544.7 | R31: 272410.5
A32: Poland | E32: 209984.3 | F32: 212515.2 | G32: 215582.9 | H32: 223919.8 | I32: 235887.9 | J32: 244420.1 | K32: 259641.3 | L32: 277258.7 | M32: 291472.5 | N32: 296218.5 | O32: 307696.2 | P32: 321606.5 | Q32: 328018.3 | R32: 333111.1
A33: Portugal | E33: 148038.9 | F33: 150962.3 | G33: 152116.3 | H33: 150730.3 | I33: 153082.2 | J33: 154268.7 | K33: 156503 | L33: 160204.8 | M33: 160191.2 | N33: 155532.3 | O33: 158544 | P33: 156561.4 | Q33: 151503.7 | R33: 149374
A34: Romania | E34: 60434.5 | F34: 63866.5 | G34: 67109 | H34: 70623.3 | I34: 76619.4 | J34: 79801.9 | K34: 86086.1 | L34: 91524.3 | M34: 98250.3 | N34: 91789.3 | O34: 90734.7 | P34: 92847.7 | Q34: 93364.3 | R34: 96655.3
A35: Slovenia | E35: 24051.5 | F35: 24758.6 | G35: 25706 | H35: 26459.2 | I35: 27623.9 | J35: 28730.9 | K35: 30411.5 | L35: 32528.2 | M35: 33628.8 | N35: 30957.6 | O35: 31347.2 | P35: 31569.4 | Q35: 30766.6 | R35: 30426.1
A36: Slovakia | E36: 30293.1 | F36: 31347.9 | G36: 32784.6 | H36: 34350 | I36: 36087.4 | J36: 38489.1 | K36: 41701.2 | L36: 46077.3 | M36: 48726.9 | N36: 46321.9 | O36: 48371.8 | P36: 49814.9 | Q36: 50712.2 | R36: 51189.3
A37: Finland | E37: 138259.2 | F37: 141416.7 | G37: 144010.4 | H37: 146908.6 | I37: 152968.4 | J37: 157429 | K37: 164372.6 | L37: 173142.2 | M37: 173650.5 | N37: 158823.1 | O37: 164164.4 | P37: 168801.8 | Q37: 167100.2 | R37: 164795.1
A38: Sweden | E38: 261261 | F38: 264558.9 | G38: 271129 | H38: 277461.8 | I38: 289211.9 | J38: 298353.3 | K38: 311174.1 | L38: 321487.1 | M38: 319515.1 | N38: 303450.7 | O38: 323347.5 | P38: 332829.9 | Q38: 335919.2 | R38: 341419.4
A39: United Kingdom | E39: 1613316.9 | F39: 1648566 | G39: 1686403.9 | H39: 1752998.6 | I39: 1808623.9 | J39: 1867129.3 | K39: 1918568.7 | L39: 1984322.7 | M39: 1969053.7 | N39: 1867245.6 | O39: 1898237.2 | P39: 1919447.8 | Q39: 1924778.5 | R39: 1958337.2
A40: Iceland | E40: 10637.3 | F40: 11054.4 | G40: 11069.8 | H40: 11339.3 | I40: 12227.8 | J40: 13111.9 | K40: 13729.3 | L40: 14551 | M40: 14723.9 | N40: 13757.7 | O40: 13193.8 | P40: 13544.1 | Q40: 13742.3 | R40: 14190.7
A41: Norway | E41: 219372.2 | F41: 223738 | G41: 227098.6 | H41: 229326.1 | I41: 238409.8 | J41: 244582.1 | K41: 250204.5 | L41: 256842.5 | M41: 257016.2 | N41: 252814.1 | O41: 254022.9 | P41: 257429.8 | Q41: 264885.8 | R41: 266598.8
A42: Switzerland | E42: 289974.6 | F42: 293579.4 | G42: 294123.6 | H42: 294185.6 | I42: 301308.3 | J42: 309428.4 | K42: 321036.8 | L42: 333382.9 | M42: 340598.2 | N42: 334001.4 | O42: 343865.2 | P42: 350021.3 | Q42: 353693.4 | R42: 360511.7
A43: Montenegro | E43: 1437.3 | F43: 1597.5 | G43: 1627.9 | H43: 1668.3 | I43: 1742.2 | J43: 1815 | K43: 1970.5 | L43: 2180.5 | M43: 2331.4 | N43: 2199.5 | O43: 2253.7 | P43: 2326.5 | Q43: 2267.3 | R43: :
A44: FYR Macedonia | E44: 4453.1 | F44: 4251.5 | G44: 4287.9 | H44: 4408.7 | I44: 4612.7 | J44: 4813.5 | K44: 5055.6 | L44: 5366.5 | M44: 5632.2 | N44: 5580.4 | O44: 5741.9 | P44: 5901 | Q44: 5878.3 | R44: 6049.4
A45: Serbia | E45: : | F45: 16458.2 | G45: 17172.7 | H45: 17602.7 | I45: 19245.4 | J45: 20285.3 | K45: 21006.7 | L45: 22137.3 | M45: 22982.8 | N45: 22177.1 | O45: 22400.3 | P45: 22751.4 | Q45: 22404.9 | R45: 22964.4
A46: Turkey | E46: 314170.2 | F46: 296270.4 | G46: 314532 | H46: 331093 | I46: 362092.6 | J46: 392514.2 | K46: 419572.1 | L46: 439160.2 | M46: 442053.5 | N46: 420720.6 | O46: 458608.9 | P46: : | Q46: : | R46: :
A47: United States | E47: 9286526.4 | F47: 9377101.8 | G47: 9544647.7 | H47: 9812529 | I47: 10183998.9 | J47: 10524636.3 | K47: 10805309 | L47: 10997476.7 | M47: 10965461.1 | N47: 10661053.9 | O47: 10931005.5 | P47: 11106093.2 | Q47: 11363844.8 | R47: 11616051
A48: Japan | E48: 3469837 | F48: 3482171 | G48: 3492253.6 | H48: 3551101.9 | I48: 3634933.9 | J48: 3682287.2 | K48: 3744624.8 | L48: 3826713.9 | M48: 3786853.5 | N48: 3577555 | O48: 3743983.9 | P48: 3727034 | Q48: 3792394.6 | R48: 3853579.8
A53: UNIT | E53: Index, 2005=100
A54: INDIC_NA | E54: Gross domestic product at market prices
A56: GEO/TIME | E56: 2000 | F56: 2001 | G56: 2002 | H56: 2003 | I56: 2004 | J56: 2005 | K56: 2006 | L56: 2007 | M56: 2008 | N56: 2009 | O56: 2010 | P56: 2011 | Q56: 2012 | R56: 2013
A57: European Union (28 countries) | E57: 91 | F57: 92.8 | G57: 94 | H57: 95.4 | I57: 97.9 | J57: 100 | K57: 103.4 | L57: 106.7 | M57: 107.1 | N57: 102.3 | O57: 104.3 | P57: 106 | Q57: 105.6 | R57: 105.7
A58: European Union (27 countries) | E58: 91 | F58: 92.9 | G58: 94 | H58: 95.4 | I58: 97.9 | J58: 100 | K58: 103.4 | L58: 106.7 | M58: 107.1 | N58: 102.2 | O58: 104.3 | P58: 106 | Q58: 105.6 | R58: 105.7
A59: European Union (15 countries) | E59: 91.6 | F59: 93.4 | G59: 94.5 | H59: 95.7 | I59: 98 | J59: 100 | K59: 103.2 | L59: 106.3 | M59: 106.3 | N59: 101.5 | O59: 103.5 | P59: 105.1 | Q59: 104.6 | R59: 104.6
A60: Euro area (EA11-2000, EA12-2006, EA13-2007, EA15-2008, EA16-2010, EA17-2013, EA18-2014, EA19) | E60: 93.2 | F60: 94.8 | G60: 95.6 | H60: 96.3 | I60: 98.4 | J60: 100 | K60: 103.2 | L60: 106.2 | M60: 106.6 | N60: 102 | O60: 104 | P60: 105.6 | Q60: 104.9 | R60: 104.5
A61: Euro area (18 countries) | E61: 92.8 | F61: 94.6 | G61: 95.5 | H61: 96.2 | I61: 98.3 | J61: 100 | K61: 103.3 | L61: 106.4 | M61: 106.8 | N61: 102 | O61: 104 | P61: 105.6 | Q61: 104.9 | R61: 104.5
A62: Euro area (17 countries) | E62: 92.8 | F62: 94.7 | G62: 95.5 | H62: 96.2 | I62: 98.3 | J62: 100 | K62: 103.3 | L62: 106.3 | M62: 106.7 | N62: 102 | O62: 104 | P62: 105.6 | Q62: 104.9 | R62: 104.5
A63: Euro area (12 countries) | E63: 93 | F63: 94.8 | G63: 95.6 | H63: 96.3 | I63: 98.4 | J63: 100 | K63: 103.2 | L63: 106.2 | M63: 106.6 | N63: 101.9 | O63: 103.9 | P63: 105.5 | Q63: 104.8 | R63: 104.3
A64: Belgium | E64: 92.4 | F64: 93.1 | G64: 94.4 | H64: 95.2 | I64: 98.3 | J64: 100 | K64: 102.7 | L64: 105.6 | M64: 106.7 | N64: 103.7 | O64: 106.1 | P64: 108 | Q64: 107.8 | R64: 108
A65: Bulgaria | E65: 76.6 | F65: 79.8 | G65: 83.5 | H65: 88.1 | I65: 94 | J65: 100 | K65: 106.5 | L65: 113.4 | M65: 120.4 | N65: 113.8 | O65: 114.3 | P65: 116.4 | Q65: 117 | R65: 118
A66: Czech Republic | E66: 81.8 | F66: 84.4 | G66: 86.2 | H66: 89.4 | I66: 93.7 | J66: 100 | K66: 107 | L66: 113.2 | M66: 116.7 | N66: 111.4 | O66: 114.2 | P66: 116.2 | Q66: 115 | R66: 114
A67: Denmark | E67: 94 | F67: 94.6 | G67: 95.1 | H67: 95.4 | I67: 97.6 | J67: 100 | K67: 103.4 | L67: 105 | M67: 104.2 | N67: 98.3 | O67: 99.7 | P67: 100.7 | Q67: 100.4 | R67: 100.8
A68: Germany (until 1990 former territory of the FRG) | E68: 97.1 | F68: 98.5 | G68: 98.6 | H68: 98.2 | I68: 99.3 | J68: 100 | K68: 103.7 | L68: 107.1 | M68: 108.3 | N68: 102.7 | O68: 106.8 | P68: 110.4 | Q68: 111.1 | R68: 111.6
A69: Estonia | E69: 70.9 | F69: 75.3 | G69: 80 | H69: 86.5 | I69: 91.8 | J69: 100 | K69: 110.2 | L69: 118.2 | M69: 113.3 | N69: 97.4 | O69: 100.6 | P69: 109.3 | Q69: 114.3 | R69: 116.8
A70: Ireland | E70: 78.8 | F70: 82.7 | G70: 87.2 | H70: 90.5 | I70: 94.3 | J70: 100 | K70: 105.5 | L70: 110.7 | M70: 108.4 | N70: 101.4 | O70: 100.4 | P70: 102.5 | Q70: 102.7 | R70: 102.3
A71: Greece | E71: 82 | F71: 85.5 | G71: 88.4 | H71: 93.7 | I71: 97.8 | J71: 100 | K71: 105.5 | L71: 109.2 | M71: 109 | N71: 105.6 | O71: 100.4 | P71: 93.2 | Q71: 86.7 | R71: 83.4
A72: Spain | E72: 85.2 | F72: 88.3 | G72: 90.7 | H72: 93.5 | I72: 96.5 | J72: 100 | K72: 104.1 | L72: 107.7 | M72: 108.7 | N72: 104.5 | O72: 104.3 | P72: 104.3 | Q72: 102.6 | R72: 101.4
A73: France | E73: 92.3 | F73: 94 | G73: 94.9 | H73: 95.8 | I73: 98.2 | J73: 100 | K73: 102.5 | L73: 104.8 | M73: 104.7 | N73: 101.4 | O73: 103.2 | P73: 105.3 | Q73: 105.3 | R73: 105.5
A74: Croatia | E74: 80.4 | F74: 83.3 | G74: 87.4 | H74: 92.1 | I74: 95.9 | J74: 100 | K74: 104.9 | L74: 110.2 | M74: 112.5 | N74: 104.7 | O74: 102.3 | P74: 102.1 | Q74: 99.9 | R74: 99
A75: Italy | E75: 95.2 | F75: 97 | G75: 97.4 | H75: 97.4 | I75: 99.1 | J75: 100 | K75: 102.2 | L75: 103.9 | M75: 102.7 | N75: 97.1 | O75: 98.7 | P75: 99.2 | Q75: 96.8 | R75: 95
A76: Cyprus | E76: 85.4 | F76: 88.8 | G76: 90.7 | H76: 92.4 | I76: 96.3 | J76: 100 | K76: 104.1 | L76: 109.4 | M76: 113.4 | N76: 111.3 | O76: 112.7 | P76: 113.2 | Q76: 110.5 | R76: 104.5
A77: Latvia | E77: 67.4 | F77: 72.4 | G77: 77.5 | H77: 83.5 | I77: 90.8 | J77: 100 | K77: 111 | L77: 122.1 | M77: 118.7 | N77: 97.7 | O77: 96.4 | P77: 101.5 | Q77: 106.8 | R77: 111.2
A78: Lithuania | E78: 68.7 | F78: 73.3 | G78: 78.4 | H78: 86.4 | I78: 92.8 | J78: 100 | K78: 107.8 | L78: 118.4 | M78: 121.8 | N78: 103.7 | O78: 105.4 | P78: 111.8 | Q78: 115.9 | R78: 119.7
A79: Luxembourg | E79: 83.9 | F79: 86 | G79: 89.5 | H79: 91 | I79: 95 | J79: 100 | K79: 104.9 | L79: 111.8 | M79: 111 | N79: 104.9 | O79: 108.1 | P79: 110.2 | Q79: 110 | R79: 112.3
A80: Hungary | E80: 81.5 | F80: 84.6 | G80: 88.4 | H80: 91.8 | I80: 96.2 | J80: 100 | K80: 103.9 | L80: 104 | M80: 104.9 | N80: 97.8 | O80: 98.9 | P80: 100.4 | Q80: 98.7 | R80: 99.8
A81: Malta | E81: 93.8 | F81: 93.8 | G81: 96.1 | H81: 96.8 | I81: 96.5 | J81: 100 | K81: 102.6 | L81: 106.8 | M81: 110.9 | N81: 107.8 | O81: 112.4 | P81: 113.9 | Q81: 115.2 | R81: 118.5
A82: Netherlands | E82: 93.7 | F82: 95.5 | G82: 95.5 | H82: 95.9 | I82: 98 | J82: 100 | K82: 103.4 | L82: 107.4 | M82: 109.4 | N82: 105.4 | O82: 107 | P82: 108 | Q82: 106.6 | R82: 105.8
A83: Austria | E83: 92 | F83: 92.8 | G83: 94.4 | H83: 95.2 | I83: 97.7 | J83: 100 | K83: 103.7 | L83: 107.5 | M83: 109.1 | N83: 104.9 | O83: 106.7 | P83: 109.8 | Q83: 110.7 | R83: 111.1
A84: Poland | E84: 85.9 | F84: 86.9 | G84: 88.2 | H84: 91.6 | I84: 96.5 | J84: 100 | K84: 106.2 | L84: 113.4 | M84: 119.3 | N84: 121.2 | O84: 125.9 | P84: 131.6 | Q84: 134.2 | R84: 136.3
A85: Portugal | E85: 96 | F85: 97.9 | G85: 98.6 | H85: 97.7 | I85: 99.2 | J85: 100 | K85: 101.4 | L85: 103.8 | M85: 103.8 | N85: 100.8 | O85: 102.8 | P85: 101.5 | Q85: 98.2 | R85: 96.8
A86: Romania | E86: 75.7 | F86: 80 | G86: 84.1 | H86: 88.5 | I86: 96 | J86: 100 | K86: 107.9 | L86: 114.7 | M86: 123.1 | N86: 115 | O86: 113.7 | P86: 116.3 | Q86: 117 | R86: 121.1
A87: Slovenia | E87: 83.7 | F87: 86.2 | G87: 89.5 | H87: 92.1 | I87: 96.1 | J87: 100 | K87: 105.8 | L87: 113.2 | M87: 117 | N87: 107.8 | O87: 109.1 | P87: 109.9 | Q87: 107.1 | R87: 105.9
A88: Slovakia | E88: 78.7 | F88: 81.4 | G88: 85.2 | H88: 89.2 | I88: 93.8 | J88: 100 | K88: 108.3 | L88: 119.7 | M88: 126.6 | N88: 120.4 | O88: 125.7 | P88: 129.4 | Q88: 131.8 | R88: 133
A89: Finland | E89: 87.8 | F89: 89.8 | G89: 91.5 | H89: 93.3 | I89: 97.2 | J89: 100 | K89: 104.4 | L89: 110 | M89: 110.3 | N89: 100.9 | O89: 104.3 | P89: 107.2 | Q89: 106.1 | R89: 104.7
A90: Sweden | E90: 87.6 | F90: 88.7 | G90: 90.9 | H90: 93 | I90: 96.9 | J90: 100 | K90: 104.3 | L90: 107.8 | M90: 107.1 | N90: 101.7 | O90: 108.4 | P90: 111.6 | Q90: 112.6 | R90: 114.4
A91: United Kingdom | E91: 86.4 | F91: 88.3 | G91: 90.3 | H91: 93.9 | I91: 96.9 | J91: 100 | K91: 102.8 | L91: 106.3 | M91: 105.5 | N91: 100 | O91: 101.7 | P91: 102.8 | Q91: 103.1 | R91: 104.9
A92: Iceland | E92: 81.1 | F92: 84.3 | G92: 84.4 | H92: 86.5 | I92: 93.3 | J92: 100 | K92: 104.7 | L92: 111 | M92: 112.3 | N92: 104.9 | O92: 100.6 | P92: 103.3 | Q92: 104.8 | R92: 108.2
A93: Norway | E93: 89.7 | F93: 91.5 | G93: 92.9 | H93: 93.8 | I93: 97.5 | J93: 100 | K93: 102.3 | L93: 105 | M93: 105.1 | N93: 103.4 | O93: 103.9 | P93: 105.3 | Q93: 108.3 | R93: 109
A94: Switzerland | E94: 93.7 | F94: 94.9 | G94: 95.1 | H94: 95.1 | I94: 97.4 | J94: 100 | K94: 103.8 | L94: 107.7 | M94: 110.1 | N94: 107.9 | O94: 111.1 | P94: 113.1 | Q94: 114.3 | R94: 116.5
A95: Montenegro | E95: 79.2 | F95: 88 | G95: 89.7 | H95: 91.9 | I95: 96 | J95: 100 | K95: 108.6 | L95: 120.1 | M95: 128.5 | N95: 121.2 | O95: 124.2 | P95: 128.2 | Q95: 124.9 | R95: :
A96: Former Yugoslav Republic of Macedonia, the | E96: 92.5 | F96: 88.3 | G96: 89.1 | H96: 91.6 | I96: 95.8 | J96: 100 | K96: 105 | L96: 111.5 | M96: 117 | N96: 115.9 | O96: 119.3 | P96: 122.6 | Q96: 122.1 | R96: 125.7
A97: Serbia | E97: : | F97: 81.1 | G97: 84.7 | H97: 86.8 | I97: 94.9 | J97: 100 | K97: 103.6 | L97: 109.1 | M97: 113.3 | N97: 109.3 | O97: 110.4 | P97: 112.2 | Q97: 110.4 | R97: 113.2
A98: Turkey | E98: 80 | F98: 75.5 | G98: 80.1 | H98: 84.4 | I98: 92.2 | J98: 100 | K98: 106.9 | L98: 111.9 | M98: 112.6 | N98: 107.2 | O98: 116.8 | P98: : | Q98: : | R98: :
A99: United States | E99: 88.2 | F99: 89.1 | G99: 90.7 | H99: 93.2 | I99: 96.8 | J99: 100 | K99: 102.7 | L99: 104.5 | M99: 104.2 | N99: 101.3 | O99: 103.9 | P99: 105.5 | Q99: 108 | R99: 110.4
A100: Japan | E100: 94.2 | F100: 94.6 | G100: 94.8 | H100: 96.4 | I100: 98.7 | J100: 100 | K100: 101.7 | L100: 103.9 | M100: 102.8 | N100: 97.2 | O100: 101.7 | P100: 101.2 | Q100: 103 | R100: 104.7
A102: Special value:
A103: : | E103: not available
A106: =UPPER(E2) -> GROSS DOMESTIC PRODUCT AT MARKET PRICES
A107: =E1&", 2000–2013" -> Percentage change over previous period, 2000–2013
A109: Country | B109: Same y-axis range | D109: Country-specific range | E109: 2000 | F109: 2001 | G109: 2002 | H109: 2003 | I109: 2004 | J109: 2005 | K109: 2006 | L109: 2007 | M109: 2008 | N109: 2009 | O109: 2010 | P109: 2011 | Q109: 2012 | R109: 2013
A110: United States | E110: 4.1 | F110: 1 | G110: 1.8 | H110: 2.8 | I110: 3.8 | J110: 3.3 | K110: 2.7 | L110: 1.8 | M110: -0.3 | N110: -2.8 | O110: 2.5 | P110: 1.6 | Q110: 2.3 | R110: 2.2
A111: EU-28 | E111: 3.9 | F111: 2 | G111: 1.3 | H111: 1.5 | I111: 2.6 | J111: 2.2 | K111: 3.4 | L111: 3.2 | M111: 0.4 | N111: -4.5 | O111: 2 | P111: 1.6 | Q111: -0.4 | R111: 0.1
A112: Latvia | E112: 5.3 | F112: 7.3 | G112: 7.1 | H112: 7.7 | I112: 8.8 | J112: 10.1 | K112: 11 | L112: 10 | M112: -2.8 | N112: -17.7 | O112: -1.3 | P112: 5.3 | Q112: 5.2 | R112: 4.1
A113: Estonia | E113: 9.9 | F113: 6.2 | G113: 6.2 | H113: 8.1 | I113: 6.2 | J113: 8.9 | K113: 10.2 | L113: 7.3 | M113: -4.1 | N113: -14.1 | O113: 3.3 | P113: 8.7 | Q113: 4.5 | R113: 2.2
A114: Lithuania | E114: 3.6 | F114: 6.7 | G114: 6.8 | H114: 10.3 | I114: 7.4 | J114: 7.8 | K114: 7.8 | L114: 9.8 | M114: 2.9 | N114: -14.8 | O114: 1.6 | P114: 6 | Q114: 3.7 | R114: 3.3
A115: Turkey | E115: 6.8 | F115: -5.7 | G115: 6.2 | H115: 5.3 | I115: 9.4 | J115: 8.4 | K115: 6.9 | L115: 4.7 | M115: 0.7 | N115: -4.8 | O115: 9 | P115: : | Q115: : | R115: :
A116: Romania | E116: 2.4 | F116: 5.7 | G116: 5.1 | H116: 5.2 | I116: 8.5 | J116: 4.2 | K116: 7.9 | L116: 6.3 | M116: 7.3 | N116: -6.6 | O116: -1.1 | P116: 2.3 | Q116: 0.6 | R116: 3.5
A117: Slovakia | E117: 1.4 | F117: 3.5 | G117: 4.6 | H117: 4.8 | I117: 5.1 | J117: 6.7 | K117: 8.3 | L117: 10.5 | M117: 5.8 | N117: -4.9 | O117: 4.4 | P117: 3 | Q117: 1.8 | R117: 0.9
A118: Montenegro | E118: : | F118: 11.1 | G118: 1.9 | H118: 2.5 | I118: 4.4 | J118: 4.2 | K118: 8.6 | L118: 10.7 | M118: 6.9 | N118: -5.7 | O118: 2.5 | P118: 3.2 | Q118: -2.5 | R118: :
A119: Bulgaria | E119: 5.7 | F119: 4.2 | G119: 4.7 | H119: 5.5 | I119: 6.7 | J119: 6.4 | K119: 6.5 | L119: 6.4 | M119: 6.2 | N119: -5.5 | O119: 0.4 | P119: 1.8 | Q119: 0.6 | R119: 0.9
A120: Greece | E120: 4.5 | F120: 4.2 | G120: 3.4 | H120: 5.9 | I120: 4.4 | J120: 2.3 | K120: 5.5 | L120: 3.5 | M120: -0.2 | N120: -3.1 | O120: -4.9 | P120: -7.1 | Q120: -7 | R120: -3.9
A121: Ireland | E121: 10.6 | F121: 5 | G121: 5.4 | H121: 3.7 | I121: 4.2 | J121: 6.1 | K121: 5.5 | L121: 5 | M121: -2.2 | N121: -6.4 | O121: -1.1 | P121: 2.2 | Q121: 0.2 | R121: -0.3
A122: Iceland | E122: 4.3 | F122: 3.9 | G122: 0.1 | H122: 2.4 | I122: 7.8 | J122: 7.2 | K122: 4.7 | L122: 6 | M122: 1.2 | N122: -6.6 | O122: -4.1 | P122: 2.7 | Q122: 1.5 | R122: 3.3
A123: Slovenia | E123: 4.3 | F123: 2.9 | G123: 3.8 | H123: 2.9 | I123: 4.4 | J123: 4 | K123: 5.8 | L123: 7 | M123: 3.4 | N123: -7.9 | O123: 1.3 | P123: 0.7 | Q123: -2.5 | R123: -1.1
A124: Luxembourg | E124: 8.4 | F124: 2.5 | G124: 4.1 | H124: 1.7 | I124: 4.4 | J124: 5.3 | K124: 4.9 | L124: 6.6 | M124: -0.7 | N124: -5.6 | O124: 3.1 | P124: 1.9 | Q124: -0.2 | R124: 2.1
A125: Poland | E125: 4.3 | F125: 1.2 | G125: 1.4 | H125: 3.9 | I125: 5.3 | J125: 3.6 | K125: 6.2 | L125: 6.8 | M125: 5.1 | N125: 1.6 | O125: 3.9 | P125: 4.5 | Q125: 2 | R125: 1.6
A126: Czech Republic | E126: 4.2 | F126: 3.1 | G126: 2.1 | H126: 3.8 | I126: 4.7 | J126: 6.8 | K126: 7 | L126: 5.7 | M126: 3.1 | N126: -4.5 | O126: 2.5 | P126: 1.8 | Q126: -1 | R126: -0.9
A127: Croatia | E127: 3.8 | F127: 3.7 | G127: 4.9 | H127: 5.4 | I127: 4.1 | J127: 4.3 | K127: 4.9 | L127: 5.1 | M127: 2.1 | N127: -6.9 | O127: -2.3 | P127: -0.2 | Q127: -2.2 | R127: -0.9
A128: FYR of Macedonia | E128: 4.5 | F128: -4.5 | G128: 0.9 | H128: 2.8 | I128: 4.6 | J128: 4.4 | K128: 5 | L128: 6.1 | M128: 5 | N128: -0.9 | O128: 2.9 | P128: 2.8 | Q128: -0.4 | R128: 2.9
A129: Finland | E129: 5.3 | F129: 2.3 | G129: 1.8 | H129: 2 | I129: 4.1 | J129: 2.9 | K129: 4.4 | L129: 5.3 | M129: 0.3 | N129: -8.5 | O129: 3.4 | P129: 2.8 | Q129: -1 | R129: -1.4
A130: Cyprus | E130: 5 | F130: 4 | G130: 2.1 | H130: 1.9 | I130: 4.2 | J130: 3.9 | K130: 4.1 | L130: 5.1 | M130: 3.6 | N130: -1.9 | O130: 1.3 | P130: 0.4 | Q130: -2.4 | R130: -5.4
A131: Serbia | E131: : | F131: : | G131: 4.3 | H131: 2.5 | I131: 9.3 | J131: 5.4 | K131: 3.6 | L131: 5.4 | M131: 3.8 | N131: -3.5 | O131: 1 | P131: 1.6 | Q131: -1.5 | R131: 2.5
A132: Sweden | E132: 4.5 | F132: 1.3 | G132: 2.5 | H132: 2.3 | I132: 4.2 | J132: 3.2 | K132: 4.3 | L132: 3.3 | M132: -0.6 | N132: -5 | O132: 6.6 | P132: 2.9 | Q132: 0.9 | R132: 1.6
A133: Hungary | E133: 4.2 | F133: 3.7 | G133: 4.5 | H133: 3.9 | I133: 4.8 | J133: 4 | K133: 3.9 | L133: 0.1 | M133: 0.9 | N133: -6.8 | O133: 1.1 | P133: 1.6 | Q133: -1.7 | R133: 1.1
A134: Spain | E134: 5 | F134: 3.7 | G134: 2.7 | H134: 3.1 | I134: 3.3 | J134: 3.6 | K134: 4.1 | L134: 3.5 | M134: 0.9 | N134: -3.8 | O134: -0.2 | P134: 0.1 | Q134: -1.6 | R134: -1.2
A135: United Kingdom | E135: 4.4 | F135: 2.2 | G135: 2.3 | H135: 3.9 | I135: 3.2 | J135: 3.2 | K135: 2.8 | L135: 3.4 | M135: -0.8 | N135: -5.2 | O135: 1.7 | P135: 1.1 | Q135: 0.3 | R135: 1.7
A136: Austria | E136: 3.7 | F136: 0.9 | G136: 1.7 | H136: 0.9 | I136: 2.6 | J136: 2.4 | K136: 3.7 | L136: 3.7 | M136: 1.4 | N136: -3.8 | O136: 1.8 | P136: 2.8 | Q136: 0.9 | R136: 0.3
A137: Malta | E137: : | F137: 0 | G137: 2.4 | H137: 0.7 | I137: -0.3 | J137: 3.6 | K137: 2.6 | L137: 4.1 | M137: 3.9 | N137: -2.8 | O137: 4.3 | P137: 1.4 | Q137: 1.1 | R137: 2.9
A138: Switzerland | E138: 3.7 | F138: 1.2 | G138: 0.2 | H138: 0 | I138: 2.4 | J138: 2.7 | K138: 3.8 | L138: 3.8 | M138: 2.2 | N138: -1.9 | O138: 3 | P138: 1.8 | Q138: 1 | R138: 1.9
A139: Germany | E139: 3.1 | F139: 1.5 | G139: 0 | H139: -0.4 | I139: 1.2 | J139: 0.7 | K139: 3.7 | L139: 3.3 | M139: 1.1 | N139: -5.1 | O139: 4 | P139: 3.3 | Q139: 0.7 | R139: 0.4
A140: Netherlands | E140: 3.9 | F140: 1.9 | G140: 0.1 | H140: 0.3 | I140: 2.2 | J140: 2 | K140: 3.4 | L140: 3.9 | M140: 1.8 | N140: -3.7 | O140: 1.5 | P140: 0.9 | Q140: -1.2 | R140: -0.8
A141: Japan | E141: 2.3 | F141: 0.4 | G141: 0.3 | H141: 1.7 | I141: 2.4 | J141: 1.3 | K141: 1.7 | L141: 2.2 | M141: -1 | N141: -5.5 | O141: 4.7 | P141: -0.5 | Q141: 1.8 | R141: 1.6
A142: Norway | E142: 3.3 | F142: 2 | G142: 1.5 | H142: 1 | I142: 4 | J142: 2.6 | K142: 2.3 | L142: 2.7 | M142: 0.1 | N142: -1.6 | O142: 0.5 | P142: 1.3 | Q142: 2.9 | R142: 0.6
A143: Italy | E143: 3.7 | F143: 1.9 | G143: 0.5 | H143: 0 | I143: 1.7 | J143: 0.9 | K143: 2.2 | L143: 1.7 | M143: -1.2 | N143: -5.5 | O143: 1.7 | P143: 0.4 | Q143: -2.4 | R143: -1.9
A144: Belgium | E144: 3.7 | F144: 0.8 | G144: 1.4 | H144: 0.8 | I144: 3.3 | J144: 1.8 | K144: 2.7 | L144: 2.9 | M144: 1 | N144: -2.8 | O144: 2.3 | P144: 1.8 | Q144: -0.1 | R144: 0.2
A145: Denmark | E145: 3.5 | F145: 0.7 | G145: 0.5 | H145: 0.4 | I145: 2.3 | J145: 2.4 | K145: 3.4 | L145: 1.6 | M145: -0.8 | N145: -5.7 | O145: 1.4 | P145: 1.1 | Q145: -0.4 | R145: 0.4
A146: Portugal | E146: 3.9 | F146: 2 | G146: 0.8 | H146: -0.9 | I146: 1.6 | J146: 0.8 | K146: 1.4 | L146: 2.4 | M146: 0 | N146: -2.9 | O146: 1.9 | P146: -1.3 | Q146: -3.2 | R146: -1.4
A147: France | E147: 3.7 | F147: 1.8 | G147: 0.9 | H147: 0.9 | I147: 2.5 | J147: 1.8 | K147: 2.5 | L147: 2.3 | M147: -0.1 | N147: -3.1 | O147: 1.7 | P147: 2 | Q147: 0 | R147: 0.2
A149: Source: Eurostat

Sheet 8.8
A1: GDP and main components - Current prices [nama_gdp_c]
A3: Last update | B3: 2014-09-12T20:15:27
A4: Extracted on | B4: 2014-09-13T10:37:36.367
A5: Source of data | B5: Eurostat
A7: UNIT | B7: Million euro
A8: INDIC_NA | B8: Gross domestic product at market prices
A10: Get the data: | C10: http://goo.gl/o8uaRY
B12: =RIGHT(B13,2) -> 95 | C12: =RIGHT(C13,2) -> 96 | D12: 97 | E12: 98 | F12: 99 | G12: 00 | H12: 01 | I12: 02 | J12: 03 | K12: 04 | L12: 05 | M12: 06 | N12: 07 | O12: 08 | P12: 09 | Q12: 10 | R12: 11 | S12: 12 | T12: 13
A13: GEO/TIME | B13: 1995 | C13: 1996 | D13: 1997 | E13: 1998 | F13: 1999 | G13: 2000 | H13: 2001 | I13: 2002 | J13: 2003 | K13: 2004 | L13: 2005 | M13: 2006 | N13: 2007 | O13: 2008 | P13: 2009 | Q13: 2010 | R13: 2011 | S13: 2012 | T13: 2013
A14: Ireland | B14: 53775200000 | C14: 59016000000 | D14: 6.80734e+10 | E14: 78626100000 | F14: 90654500000 | G14: 105643600000 | H14: 117523700000 | I14: 130717100000 | J14: 140635100000 | K14: 150024500000 | L14: 162896800000 | M14: 177573500000 | N14: 189654700000 | O14: 180249500000 | P14: 162283500000 | Q14: 158096700000 | R14: 162599700000 | S14: 163938700000 | T14: 164049800000
A16: Special value:
A17: : | B17: not available
A20: ="IRELAND: "&UPPER(B8) -> IRELAND: GROSS DOMESTIC PRODUCT AT MARKET PRICES
A38: Source: Eurostat

Sheet 8.9
A1: GDP and main components - Price indices [nama_gdp_p]
A3: Last update | B3: 2014-09-08T20:15:17
A4: Extracted on | B4: 2014-09-13T10:44:29.306
A5: Source of data | B5: Eurostat
B6: Change over previous period, based on 2005=100 and the euro
A7: UNIT | B7: Price index - percentage change over previous period, based on 2005=100 and the euro
A8: INDIC_NA | B8: Gross domestic product at market prices
A10: Get the data: | C10: http://goo.gl/zJ0pue
B12: =RIGHT(B13,2) -> 95 | C12: 96 | D12: 97 | E12: 98 | F12: 99 | G12: 00 | H12: 01 | I12: 02 | J12: 03 | K12: 04 | L12: 05 | M12: 06 | N12: 07 | O12: 08 | P12: 09 | Q12: 10 | R12: 11 | S12: 12 | T12: =RIGHT(T13,2) -> 13
A13: GEO/TIME | B13: 1995 | C13: 1996 | D13: 1997 | E13: 1998 | F13: 1999 | G13: 2000 | H13: 2001 | I13: 2002 | J13: 2003 | K13: 2004 | L13: 2005 | M13: 2006 | N13: 2007 | O13: 2008 | P13: 2009 | Q13: 2010 | R13: 2011 | S13: 2012 | T13: 2013 | U13: 2014 | V13: 2015
A14: European Union (28 countries) | B14: : | C14: 3.2 | D14: 2.7 | E14: 1.7 | F14: 2 | G14: 3.2 | H14: 2.1 | I14: 2.4 | J14: 0.2 | K14: 2.4 | L14: 2.2 | M14: 2.3 | N14: 2.7 | O14: 0.2 | P14: -1.4 | Q14: 2.4 | R14: 1.4 | S14: 2.3 | T14: 0.7 | U14: : | V14: :
A15: Ireland | B15: : | C15: 2.8 | D15: 10 | E15: 0.8 | F15: 3.7 | G15: 5.3 | H15: 6 | I15: 5.5 | J15: 3.7 | K15: 2.4 | L15: 2.4 | M15: 3.3 | N15: 1.7 | O15: -2.9 | P15: -3.8 | Q15: -1.5 | R15: 0.7 | S15: 0.7 | T15: 0.4 | U15: : | V15: :
C16: =NA() ->  | D16: =NA() ->  | E16: =NA() ->  | F16: =NA() ->  | G16: =NA() ->  | H16: =NA() ->  | I16: 6 | J16: 6 | K16: 6 | L16: 6 | M16: 6 | N16: 6 | O16: 6 | P16: 6 | Q16: 6 | R16: 6 | S16: 6 | T16: 6
C17: =NA() ->  | D17: =NA() ->  | E17: =NA() ->  | F17: =NA() ->  | G17: =NA() ->  | H17: =NA() ->  | I17: -6 | J17: -6 | K17: -6 | L17: -6 | M17: -6 | N17: -6 | O17: -6 | P17: -6 | Q17: -6 | R17: -6 | S17: -6 | T17: -6
A20: IRELAND: GROSS DOMESTIC PRODUCT AT MARKET PRICES
A21: =+B6 -> Change over previous period, based on 2005=100 and the euro
A39: Source: Eurostat

Sheet 8.10
A1: Country | B1: United States of America
A2: Notes
B4: Base values | I4: Percentages | Q4: Folded axis
B6: Male | E6: Female | I6: Male | L6: Female | Q6: Male | T6: Female
A7: Year | B7: 1960 | C7: 2010 | D7: 2100 | E7: 1960 | F7: 2010 | G7: 2100 | I7: 1960 | J7: 2010 | L7: 1960 | M7: 2010 | Q7: 1960 | R7: 2010 | S7: 2100 | T7: 1960 | U7: 2010 | V7: 2100
A8: 00-04 | B8: 10582.308 | C8: 10292.738 | D8: 12421.134 | E8: 10161.953 | F8: 9885.123 | G8: 11854.909 | I8: =-B8/SUM(B$8:B$28) -> -0.1146254789 | J8: =-C8/SUM(C$8:C$28) -> -0.06714479089 | K8: =-D8/SUM(D$8:D$28) -> -0.05500686786 | L8: =E8/SUM(E$8:E$28) -> 0.1082719849 | M8: =F8/SUM(F$8:F$28) -> 0.06312964451 | N8: =G8/SUM(G$8:G$28) -> 0.05278837883 | O8: 0 | Q8: =ABS(I8) -> 0.1146254789 | R8: =ABS(J8) -> 0.06714479089 | S8: =D8/SUM(D$8:D$28) -> 0.05500686786 | T8: =ABS(L8) -> 0.1082719849 | U8: =ABS(M8) -> 0.06312964451 | V8: =G8/SUM(G$8:G$28) -> 0.05278837883
A9: 05-09 | B9: 9839.482 | C9: 10373.171 | D9: 12522.747 | E9: 9455.89 | F9: 9948.826 | G9: 11961.02 | I9: -0.1065793337 | J9: -0.06766949646 | K9: -0.05545686001 | L9: 0.1007491354 | M9: 0.06353647281 | N9: 0.05326087741 | O9: 5 | Q9: =ABS(I9) -> 0.1065793337 | R9: =ABS(J9) -> 0.06766949646 | S9: 0.05545686001 | T9: 0.1007491354 | U9: 0.06353647281 | V9: 0.05326087741
A10: 10-14 | B10: 8846.091 | C10: 10625.965 | D10: 12650.292 | E10: 8462.155 | F10: 10085.42 | G10: 12095.145 | I10: -0.09581911781 | J10: -0.06931860093 | K10: -0.05602169177 | L10: 0.09016124343 | M10: 0.06440880698 | N10: 0.05385811871 | O10: 10 | Q10: 0.09581911781 | R10: 0.06931860093 | S10: 0.05602169177 | T10: 0.09016124343 | U10: 0.06440880698 | V10: 0.05385811871
A11: 15-19 | B11: 6950.571 | C11: 11249.795 | D11: 12770.655 | E11: 6770.974 | F11: 10589.147 | G11: 12229.354 | I11: -0.07528721799 | J11: -0.07338816288 | K11: -0.05655471811 | L11: 0.07214231305 | M11: 0.06762577317 | N11: 0.05445573406 | O11: 15 | Q11: 0.07528721799 | R11: 0.07338816288 | S11: 0.05655471811 | T11: 0.07214231305 | U11: 0.06762577317 | V11: 0.05445573406
A12: 20-24 | B12: 5733.399 | C12: 11104.952 | D12: 12869.901 | E12: 5806.374 | F12: 10539.001 | G12: 12355.847 | I12: -0.06210305029 | J12: -0.07244327796 | K12: -0.05699422803 | L12: 0.06186484408 | M12: 0.06730552433 | N12: 0.05501899105 | O12: 20 | Q12: 0.06210305029 | R12: 0.07244327796 | S12: 0.05699422803 | T12: 0.06186484408 | U12: 0.06730552433 | V12: 0.05501899105
A13: 25-29 | B13: 5773.81 | C13: 10735.382 | D13: 12963.318 | E13: 5670.646 | F13: 10464.355 | G13: 12483.798 | I13: -0.06254077429 | J13: -0.07003238395 | K13: -0.05740792429 | L13: 0.06041871065 | M13: 0.06682881044 | N13: 0.05558874033 | O13: 25 | Q13: 0.06254077429 | R13: 0.07003238395 | S13: 0.05740792429 | T13: 0.06041871065 | U13: 0.06682881044 | V13: 0.05558874033
A14: 30-34 | B14: 6208.679 | C14: 10252.411 | D14: 13062.011 | E14: 6219.089 | F14: 10041.957 | G14: 12613.256 | I14: -0.06725118977 | J14: -0.06688171726 | K14: -0.05784498525 | L14: 0.06626217521 | M14: 0.06413123798 | N14: 0.05616520008 | O14: 30 | Q14: 0.06725118977 | R14: 0.06688171726 | S14: 0.05784498525 | T14: 0.06626217521 | U14: 0.06413123798 | V14: 0.05616520008
A15: 35-39 | B15: 6420.355 | C15: 10187.57 | D15: 13150.226 | E15: 6476.309 | F15: 10111.862 | G15: 12725.498 | I15: -0.06954402257 | J15: -0.06645872627 | K15: -0.0582356445 | L15: 0.06900276257 | M15: 0.06457767429 | N15: 0.05666499921 | O15: 35 | Q15: 0.06954402257 | R15: 0.06645872627 | S15: 0.0582356445 | T15: 0.06900276257 | U15: 0.06457767429 | V15: 0.05666499921
A16: 40-44 | B16: 5956.669 | C16: 10731.714 | D16: 13196.434 | E16: 6033.334 | F16: 10513.201 | G16: 12791.562 | I16: -0.06452146701 | J16: -0.07000845571 | K16: -0.05844027616 | L16: 0.06428302193 | M16: 0.06714075705 | N16: 0.05695917368 | O16: 40 | Q16: 0.06452146701 | R16: 0.07000845571 | S16: 0.05844027616 | T16: 0.06428302193 | U16: 0.06714075705 | V16: 0.05695917368
A17: 45-49 | B17: 5575.95 | C17: 11387.889 | D17: 13135.913 | E17: 5707.635 | F17: 11403.056 | G17: 12755.056 | I17: -0.06039759369 | J17: -0.07428902062 | K17: -0.05817225952 | L17: 0.06081281525 | M17: 0.07282366356 | N17: 0.05679661717 | O17: 45 | Q17: 0.06039759369 | R17: 0.07428902062 | S17: 0.05817225952 | T17: 0.06081281525 | U17: 0.07282366356 | V17: 0.05679661717
A18: 50-54 | B18: 5046.925 | C18: 11125.289 | D18: 12973.421 | E18: 5313.903 | F18: 11280.753 | G18: 12626.227 | I18: -0.05466729894 | J18: -0.0725759466 | K18: -0.05745266532 | L18: 0.05661774122 | M18: 0.0720425964 | N18: 0.05622295827 | O18: 50 | Q18: 0.05466729894 | R18: 0.0725759466 | S18: 0.05745266532 | T18: 0.05661774122 | U18: 0.0720425964 | V18: 0.05622295827
A19: 55-59 | B19: 4207.839 | C19: 9707.054 | D19: 12773.011 | E19: 4323.071 | F19: 10153.655 | G19: 12477.007 | I19: -0.04557848443 | J19: -0.0633240748 | K19: -0.05656515164 | L19: 0.04606077965 | M19: 0.06484457812 | N19: 0.05555850088 | O19: 55 | Q19: 0.04557848443 | R19: 0.0633240748 | S19: 0.05656515164 | T19: 0.04606077965 | U19: 0.06484457812 | V19: 0.05555850088
A20: 60-64 | B20: 3580.073 | C20: 8032.095 | D20: 12546.351 | E20: 4025.445 | F20: 8731.368 | G20: 12325.63 | I20: -0.03877864659 | J20: -0.05239746112 | K20: -0.05556139009 | L20: 0.04288968077 | M20: 0.05576138586 | N20: 0.05488443865 | O20: 60 | Q20: 0.03877864659 | R20: 0.05239746112 | S20: 0.05556139009 | T20: 0.04288968077 | U20: 0.05576138586 | V20: 0.05488443865
A21: 65-69 | B21: 2993.141 | C21: 5770.877 | D21: 12224.427 | E21: 3406.729 | F21: 6569.788 | G21: 12106.836 | I21: -0.0324211146 | J21: -0.03764638033 | K21: -0.05413575287 | L21: 0.03629748246 | M21: 0.04195682552 | N21: 0.05391017722 | O21: 65 | Q21: 0.0324211146 | R21: 0.03764638033 | S21: 0.05413575287 | T21: 0.03629748246 | U21: 0.04195682552 | V21: 0.05391017722
A22: 70-74 | B22: 2146.557 | C22: 4397.713 | D22: 11770.913 | E22: 2590.364 | F22: 5045.114 | G22: 11796.584 | I22: -0.02325108323 | J22: -0.0286885297 | K22: -0.05212737065 | L22: 0.02759940455 | M22: 0.03221975623 | N22: 0.05252866513 | O22: 70 | Q22: 0.02325108323 | R22: 0.0286885297 | S22: 0.05212737065 | T22: 0.02759940455 | U22: 0.03221975623 | V22: 0.05252866513
A23: 75-79 | B23: 1402.988 | C23: 3195.516 | D23: 10956.916 | E23: 1862.635 | F23: 4109.636 | G23: 11192.905 | I23: -0.01519689007 | J23: -0.02084598419 | K23: -0.04852259307 | L23: 0.0198457116 | M23: 0.02624548625 | N23: 0.04984056051 | O23: 75 | Q23: 0.01519689007 | R23: 0.02084598419 | S23: 0.04852259307 | T23: 0.0198457116 | U23: 0.02624548625 | V23: 0.04984056051
A24: 80-84 | B24: 678.751 | C24: 2339.016 | D24: 9459.655 | E24: 904.887 | F24: 3478.547 | G24: 9995.321 | I24: -0.007352097331 | J24: -0.01525859691 | K24: -0.04189198768 | L24: 0.00964124825 | M24: 0.02221514447 | N24: 0.04450787361 | O24: 80 | Q24: 0.007352097331 | R24: 0.01525859691 | S24: 0.04189198768 | T24: 0.00964124825 | U24: 0.02221514447 | V24: 0.04450787361
A25: 85-89 | B25: 281.821 | C25: 1252.636 | D25: 7164.635 | E25: 456.453 | F25: 2257.717 | G25: 8063.936 | I25: -0.003052629642 | J25: -0.008171584886 | K25: -0.03172851454 | L25: 0.004863343917 | M25: 0.01441852283 | N25: 0.03590766563 | O25: 85 | Q25: 0.003052629642 | R25: 0.008171584886 | S25: 0.03172851454 | T25: 0.004863343917 | U25: 0.01441852283 | V25: 0.03590766563
A26: 90-94 | B26: 79.567 | C26: 436.105 | D26: 4636.085 | E26: 164.563 | F26: 1040.648 | G26: 5862.16 | I26: -0.0008618540943 | J26: -0.002844935821 | K26: -0.02053085612 | L26: 0.001753360072 | M26: 0.006645920167 | N26: 0.02610344144 | O26: 90 | Q26: 0.0008618540943 | R26: 0.002844935821 | S26: 0.02053085612 | T26: 0.001753360072 | U26: 0.006645920167 | V26: 0.02610344144
A27: 95-99 | B27: 14.182 | C27: 84.225 | D27: 2006.34 | E27: 38.04 | F27: 284.129 | G27: 3078.739 | I27: -0.0001536166346 | J27: -0.0005494427248 | K27: -0.008885056651 | L27: 0.0004053026327 | M27: 0.001814541181 | N27: 0.01370922718 | O27: 95 | Q27: 0.0001536166346 | R27: 0.0005494427248 | S27: 0.008885056651 | T27: 0.0004053026327 | U27: 0.001814541181 | V27: 0.01370922718
A28: 100+ | B28: 1.573 | C28: 9.57 | D28: 556.218 | E28: 5.344 | F28: 51.184 | G28: 1183.43 | I28: -1.703842661e-05 | J28: -6.24300015e-05 | K28: -0.002463205858 | L28: 5.693841402e-05 | M28: 0.0003268778471 | N28: 0.005269660961 | O28: 100 | Q28: 1.703842661e-05 | R28: 6.24300015e-05 | S28: 0.002463205858 | T28: 5.693841402e-05 | U28: 0.0003268778471 | V28: 0.005269660961
E33: POPULATION AGE STRUCTURE IN THE U.S.: 1960 VS. 2010 VS. 2100 | L33: FOLDED POPULATION PYRAMID
E48: Source: United States Population Division

Sheet 8.12
A1: State or Region | B1: 2010 | I1: Series for labels
B2: Population | C2: Density | D2: StateCode | E2: Area | F2: Region | G2: Density | H2: Lollipop | I2: Y | J2: X
A3: Alaska | B3: 710231 | C3: 1.2 | D3: =VLOOKUP(A3,'8.4'!$A$12:$J$62,10,FALSE) -> AK | E3: 570640.95 | F3: =TRIM(MID(VLOOKUP(A3,'US Regions'!$B$23:$D$73,3,FALSE),13,500)) -> Pacific | G3: =B3/E3 -> 1.244619756 | H3: =NA() ->  | I3: 0 | J3: 1250 | L3: POPULATION DENSITY PER STATE, 2010
A4: Wyoming | B4: 563626 | C4: 5.8 | D4: =VLOOKUP(A4,'8.4'!$A$12:$J$62,10,FALSE) -> WY | E4: 97093.14 | F4: =TRIM(MID(VLOOKUP(A4,'US Regions'!$B$23:$D$73,3,FALSE),13,500)) -> Mountain | G4: 5.805003319 | H4: =NA() ->  | I4: 1 | J4: 1250
A5: Montana | B5: 989415 | C5: 6.8 | D5: =VLOOKUP(A5,'8.4'!$A$12:$J$62,10,FALSE) -> MT | E5: 145545.8 | F5: =TRIM(MID(VLOOKUP(A5,'US Regions'!$B$23:$D$73,3,FALSE),13,500)) -> Mountain | G5: 6.797963253 | H5: =NA() ->  | I5: 2 | J5: 1250
A6: North Dakota | B6: 672591 | C6: 9.7 | D6: =VLOOKUP(A6,'8.4'!$A$12:$J$62,10,FALSE) -> ND | E6: 69000.8 | F6: =TRIM(MID(VLOOKUP(A6,'US Regions'!$B$23:$D$73,3,FALSE),13,500)) -> West North Central | G6: 9.747582637 | H6: =NA() ->  | I6: 3 | J6: 1250
A7: South Dakota | B7: 814180 | C7: 10.7 | D7: =VLOOKUP(A7,'8.4'!$A$12:$J$62,10,FALSE) -> SD | E7: 75811 | F7: =TRIM(MID(VLOOKUP(A7,'US Regions'!$B$23:$D$73,3,FALSE),13,500)) -> West North Central | G7: 10.73960243 | H7: =NA() ->  | I7: 4 | J7: 1250
A8: New Mexico | B8: 2059179 | C8: 17 | D8: =VLOOKUP(A8,'8.4'!$A$12:$J$62,10,FALSE) -> NM | E8: 121298.15 | F8: =TRIM(MID(VLOOKUP(A8,'US Regions'!$B$23:$D$73,3,FALSE),13,500)) -> Mountain | G8: 16.97617812 | H8: =NA() ->  | I8: 5 | J8: 1250
A9: Idaho | B9: 1567582 | C9: 19 | D9: =VLOOKUP(A9,'8.4'!$A$12:$J$62,10,FALSE) -> ID | E9: 82643.12 | F9: =TRIM(MID(VLOOKUP(A9,'US Regions'!$B$23:$D$73,3,FALSE),13,500)) -> Mountain | G9: 18.96808833 | H9: =NA() ->  | I9: 6 | J9: 1250
A10: Nebraska | B10: 1826341 | C10: 23.8 | D10: =VLOOKUP(A10,'8.4'!$A$12:$J$62,10,FALSE) -> NE | E10: 76824.17 | F10: =TRIM(MID(VLOOKUP(A10,'US Regions'!$B$23:$D$73,3,FALSE),13,500)) -> West North Central | G10: 23.77300009 | H10: =NA() ->  | I10: 7 | J10: 1250
A11: Nevada | B11: 2700551 | C11: 24.6 | D11: =VLOOKUP(A11,'8.4'!$A$12:$J$62,10,FALSE) -> NV | E11: 109781.18 | F11: =TRIM(MID(VLOOKUP(A11,'US Regions'!$B$23:$D$73,3,FALSE),13,500)) -> Mountain | G11: 24.59939855 | H11: =NA() ->  | I11: 8 | J11: 1250
A12: Utah | B12: 2763885 | C12: 33.6 | D12: =VLOOKUP(A12,'8.4'!$A$12:$J$62,10,FALSE) -> UT | E12: 82169.62 | F12: =TRIM(MID(VLOOKUP(A12,'US Regions'!$B$23:$D$73,3,FALSE),13,500)) -> Mountain | G12: 33.63633664 | H12: =NA() ->  | I12: 9 | J12: 1250
A13: Kansas | B13: 2853118 | C13: 34.9 | D13: =VLOOKUP(A13,'8.4'!$A$12:$J$62,10,FALSE) -> KS | E13: 81758.72 | F13: =TRIM(MID(VLOOKUP(A13,'US Regions'!$B$23:$D$73,3,FALSE),13,500)) -> West North Central | G13: 34.89680367 | H13: =NA() ->  | I13: 10 | J13: 1250
A14: Oregon | B14: 3831074 | C14: 39.9 | D14: =VLOOKUP(A14,'8.4'!$A$12:$J$62,10,FALSE) -> OR | E14: 95988.01 | F14: =TRIM(MID(VLOOKUP(A14,'US Regions'!$B$23:$D$73,3,FALSE),13,500)) -> Pacific | G14: 39.91200568 | H14: =NA() ->  | I14: 11 | J14: 1250
A15: Maine | B15: 1328361 | C15: 43.1 | D15: =VLOOKUP(A15,'8.4'!$A$12:$J$62,10,FALSE) -> ME | E15: 30842.92 | F15: =TRIM(MID(VLOOKUP(A15,'US Regions'!$B$23:$D$73,3,FALSE),13,500)) -> New England | G15: 43.06858754 | H15: =NA() ->  | I15: 12 | J15: 1250
A16: Colorado | B16: 5029196 | C16: 48.5 | D16: =VLOOKUP(A16,'8.4'!$A$12:$J$62,10,FALSE) -> CO | E16: 103641.89 | F16: =TRIM(MID(VLOOKUP(A16,'US Regions'!$B$23:$D$73,3,FALSE),13,500)) -> Mountain | G16: 48.52474226 | H16: =NA() ->  | I16: 13 | J16: 1250
A17: Iowa | B17: 3046355 | C17: 54.5 | D17: =VLOOKUP(A17,'8.4'!$A$12:$J$62,10,FALSE) -> IA | E17: 55857.13 | F17: =TRIM(MID(VLOOKUP(A17,'US Regions'!$B$23:$D$73,3,FALSE),13,500)) -> West North Central | G17: 54.53833736 | H17: =NA() ->  | I17: 14 | J17: 1250
A18: Oklahoma | B18: 3751351 | C18: 54.7 | D18: =VLOOKUP(A18,'8.4'!$A$12:$J$62,10,FALSE) -> OK | E18: 68594.92 | F18: =TRIM(MID(VLOOKUP(A18,'US Regions'!$B$23:$D$73,3,FALSE),13,500)) -> West South Central | G18: 54.68846673 | H18: =NA() ->  | I18: 15 | J18: 1250
A19: Arkansas | B19: 2915918 | C19: 56 | D19: =VLOOKUP(A19,'8.4'!$A$12:$J$62,10,FALSE) -> AR | E19: 52035.48 | F19: =TRIM(MID(VLOOKUP(A19,'US Regions'!$B$23:$D$73,3,FALSE),13,500)) -> West South Central | G19: 56.0371116 | H19: =NA() ->  | I19: 16 | J19: 1250
A20: Arizona | B20: 6392017 | C20: 56.3 | D20: =VLOOKUP(A20,'8.4'!$A$12:$J$62,10,FALSE) -> AZ | E20: 113594.08 | F20: =TRIM(MID(VLOOKUP(A20,'US Regions'!$B$23:$D$73,3,FALSE),13,500)) -> Mountain | G20: 56.2706877 | H20: =NA() ->  | I20: 17 | J20: 1250
A21: Mississippi | B21: 2967297 | C21: 63.2 | D21: =VLOOKUP(A21,'8.4'!$A$12:$J$62,10,FALSE) -> MS | E21: 46923.27 | F21: =TRIM(MID(VLOOKUP(A21,'US Regions'!$B$23:$D$73,3,FALSE),13,500)) -> East South Central | G21: 63.23721684 | H21: =NA() ->  | I21: 18 | J21: 1250
A22: Minnesota | B22: 5303925 | C22: 66.6 | D22: =VLOOKUP(A22,'8.4'!$A$12:$J$62,10,FALSE) -> MN | E22: 79626.74 | F22: =TRIM(MID(VLOOKUP(A22,'US Regions'!$B$23:$D$73,3,FALSE),13,500)) -> West North Central | G22: 66.6098474 | H22: =NA() ->  | I22: 19 | J22: 1250
A23: Vermont | B23: 625741 | C23: 67.9 | D23: =VLOOKUP(A23,'8.4'!$A$12:$J$62,10,FALSE) -> VT | E23: 9216.66 | F23: =TRIM(MID(VLOOKUP(A23,'US Regions'!$B$23:$D$73,3,FALSE),13,500)) -> New England | G23: 67.89238184 | H23: =NA() ->  | I23: 20 | J23: 1250
A24: West Virginia | B24: 1852994 | C24: 77.1 | D24: =VLOOKUP(A24,'8.4'!$A$12:$J$62,10,FALSE) -> WV | E24: 24038.21 | F24: =TRIM(MID(VLOOKUP(A24,'US Regions'!$B$23:$D$73,3,FALSE),13,500)) -> South Atlantic | G24: 77.08535702 | H24: =NA() ->  | I24: 21 | J24: 1250
A25: Missouri | B25: 5988927 | C25: 87.1 | D25: =VLOOKUP(A25,'8.4'!$A$12:$J$62,10,FALSE) -> MO | E25: 68741.52 | F25: =TRIM(MID(VLOOKUP(A25,'US Regions'!$B$23:$D$73,3,FALSE),13,500)) -> West North Central | G25: 87.12241161 | H25: =NA() ->  | I25: 22 | J25: 1250
A26: Alabama | B26: 4779736 | C26: 94.4 | D26: =VLOOKUP(A26,'8.4'!$A$12:$J$62,10,FALSE) -> AL | E26: 50645.33 | F26: =TRIM(MID(VLOOKUP(A26,'US Regions'!$B$23:$D$73,3,FALSE),13,500)) -> East South Central | G26: 94.37663848 | H26: =NA() ->  | I26: 23 | J26: 1250
A27: Texas | B27: 25145561 | C27: 96.3 | D27: =VLOOKUP(A27,'8.4'!$A$12:$J$62,10,FALSE) -> TX | E27: 261231.71 | F27: =TRIM(MID(VLOOKUP(A27,'US Regions'!$B$23:$D$73,3,FALSE),13,500)) -> West South Central | G27: 96.25769016 | H27: =NA() ->  | I27: 24 | J27: 1250
A28: Washington | B28: 6724540 | C28: 101.2 | D28: =VLOOKUP(A28,'8.4'!$A$12:$J$62,10,FALSE) -> WA | E28: 66455.52 | F28: =TRIM(MID(VLOOKUP(A28,'US Regions'!$B$23:$D$73,3,FALSE),13,500)) -> Pacific | G28: 101.1885845 | H28: =NA() ->  | I28: 25 | J28: 1250
A29: Louisiana | B29: 4533372 | C29: 104.9 | D29: =VLOOKUP(A29,'8.4'!$A$12:$J$62,10,FALSE) -> LA | E29: 43203.9 | F29: =TRIM(MID(VLOOKUP(A29,'US Regions'!$B$23:$D$73,3,FALSE),13,500)) -> West South Central | G29: 104.9296938 | H29: =NA() ->  | I29: 26 | J29: 1250
A30: Wisconsin | B30: 5686986 | C30: 105 | D30: =VLOOKUP(A30,'8.4'!$A$12:$J$62,10,FALSE) -> WI | E30: 54157.8 | F30: =TRIM(MID(VLOOKUP(A30,'US Regions'!$B$23:$D$73,3,FALSE),13,500)) -> East North Central | G30: 105.0076997 | H30: =NA() ->  | I30: 27 | J30: 1250
A31: Kentucky | B31: 4339367 | C31: 109.9 | D31: =VLOOKUP(A31,'8.4'!$A$12:$J$62,10,FALSE) -> KY | E31: 39486.34 | F31: =TRIM(MID(VLOOKUP(A31,'US Regions'!$B$23:$D$73,3,FALSE),13,500)) -> East South Central | G31: 109.8953967 | H31: =NA() ->  | I31: 28 | J31: 1250
A32: New Hampshire | B32: 1316470 | C32: 147 | D32: =VLOOKUP(A32,'8.4'!$A$12:$J$62,10,FALSE) -> NH | E32: 8952.65 | F32: =TRIM(MID(VLOOKUP(A32,'US Regions'!$B$23:$D$73,3,FALSE),13,500)) -> New England | G32: 147.0480807 | H32: =NA() ->  | I32: 29 | J32: 1250
A33: South Carolina | B33: 4625364 | C33: 153.9 | D33: =VLOOKUP(A33,'8.4'!$A$12:$J$62,10,FALSE) -> SC | E33: 30060.7 | F33: =TRIM(MID(VLOOKUP(A33,'US Regions'!$B$23:$D$73,3,FALSE),13,500)) -> South Atlantic | G33: 153.8674748 | H33: =NA() ->  | I33: 30 | J33: 1250
A34: Tennessee | B34: 6346105 | C34: 153.9 | D34: =VLOOKUP(A34,'8.4'!$A$12:$J$62,10,FALSE) -> TN | E34: 41234.9 | F34: =TRIM(MID(VLOOKUP(A34,'US Regions'!$B$23:$D$73,3,FALSE),13,500)) -> East South Central | G34: 153.9013069 | H34: =NA() ->  | I34: 31 | J34: 1250
A35: Georgia | B35: 9687653 | C35: 168.4 | D35: =VLOOKUP(A35,'8.4'!$A$12:$J$62,10,FALSE) -> GA | E35: 57513.49 | F35: =TRIM(MID(VLOOKUP(A35,'US Regions'!$B$23:$D$73,3,FALSE),13,500)) -> South Atlantic | G35: 168.4414039 | H35: =NA() ->  | I35: 32 | J35: 1250
A36: Michigan | B36: 9883640 | C36: 174.8 | D36: =VLOOKUP(A36,'8.4'!$A$12:$J$62,10,FALSE) -> MI | E36: 56538.9 | F36: =TRIM(MID(VLOOKUP(A36,'US Regions'!$B$23:$D$73,3,FALSE),13,500)) -> East North Central | G36: 174.8113246 | H36: =NA() ->  | I36: 33 | J36: 1250
A37: Indiana | B37: 6483802 | C37: 181 | D37: =VLOOKUP(A37,'8.4'!$A$12:$J$62,10,FALSE) -> IN | E37: 35826.11 | F37: =TRIM(MID(VLOOKUP(A37,'US Regions'!$B$23:$D$73,3,FALSE),13,500)) -> East North Central | G37: 180.9797938 | H37: =NA() ->  | I37: 34 | J37: 1250
A38: North Carolina | B38: 9535483 | C38: 196.1 | D38: =VLOOKUP(A38,'8.4'!$A$12:$J$62,10,FALSE) -> NC | E38: 48617.91 | F38: =TRIM(MID(VLOOKUP(A38,'US Regions'!$B$23:$D$73,3,FALSE),13,500)) -> South Atlantic | G38: 196.131076 | H38: =NA() ->  | I38: 35 | J38: 1250
A39: Virginia | B39: 8001024 | C39: 202.6 | D39: =VLOOKUP(A39,'8.4'!$A$12:$J$62,10,FALSE) -> VA | E39: 39490.09 | F39: =TRIM(MID(VLOOKUP(A39,'US Regions'!$B$23:$D$73,3,FALSE),13,500)) -> South Atlantic | G39: 202.6084012 | H39: =NA() ->  | I39: 36 | J39: 1250
A40: Hawaii | B40: 1360301 | C40: 211.8 | D40: =VLOOKUP(A40,'8.4'!$A$12:$J$62,10,FALSE) -> HI | E40: 6422.63 | F40: =TRIM(MID(VLOOKUP(A40,'US Regions'!$B$23:$D$73,3,FALSE),13,500)) -> Pacific | G40: 211.7981263 | H40: =NA() ->  | I40: 37 | J40: 1250
A41: Illinois | B41: 12830632 | C41: 231.1 | D41: =VLOOKUP(A41,'8.4'!$A$12:$J$62,10,FALSE) -> IL | E41: 55518.93 | F41: =TRIM(MID(VLOOKUP(A41,'US Regions'!$B$23:$D$73,3,FALSE),13,500)) -> East North Central | G41: 231.1037334 | H41: =NA() ->  | I41: 38 | J41: 1250
A42: California | B42: 37253956 | C42: 239.1 | D42: =VLOOKUP(A42,'8.4'!$A$12:$J$62,10,FALSE) -> CA | E42: 155779.22 | F42: =TRIM(MID(VLOOKUP(A42,'US Regions'!$B$23:$D$73,3,FALSE),13,500)) -> Pacific | G42: 239.145863 | H42: =NA() ->  | I42: 39 | J42: 1250
A43: Ohio | B43: 11536504 | C43: 282.3 | D43: =VLOOKUP(A43,'8.4'!$A$12:$J$62,10,FALSE) -> OH | E43: 40860.69 | F43: =TRIM(MID(VLOOKUP(A43,'US Regions'!$B$23:$D$73,3,FALSE),13,500)) -> East North Central | G43: 282.337474 | H43: =NA() ->  | I43: 40 | J43: 1250
A44: Pennsylvania | B44: 12702379 | C44: 283.9 | D44: =VLOOKUP(A44,'8.4'!$A$12:$J$62,10,FALSE) -> PA | E44: 44742.7 | F44: =TRIM(MID(VLOOKUP(A44,'US Regions'!$B$23:$D$73,3,FALSE),13,500)) -> Mid-Atlantic | G44: 283.8983566 | H44: =NA() ->  | I44: 41 | J44: 1250
A45: Florida | B45: 18801310 | C45: 350.6 | D45: =VLOOKUP(A45,'8.4'!$A$12:$J$62,10,FALSE) -> FL | E45: 53624.76 | F45: =TRIM(MID(VLOOKUP(A45,'US Regions'!$B$23:$D$73,3,FALSE),13,500)) -> South Atlantic | G45: 350.6087486 | H45: =NA() ->  | I45: 42 | J45: 1250
A46: New York | B46: 19378102 | C46: 411.2 | D46: =VLOOKUP(A46,'8.4'!$A$12:$J$62,10,FALSE) -> NY | E46: 47126.4 | F46: =TRIM(MID(VLOOKUP(A46,'US Regions'!$B$23:$D$73,3,FALSE),13,500)) -> Mid-Atlantic | G46: 411.1941926 | H46: =NA() ->  | I46: 43 | J46: 1250
A47: Delaware | B47: 897934 | C47: 460.8 | D47: =VLOOKUP(A47,'8.4'!$A$12:$J$62,10,FALSE) -> DE | E47: 1948.54 | F47: =TRIM(MID(VLOOKUP(A47,'US Regions'!$B$23:$D$73,3,FALSE),13,500)) -> South Atlantic | G47: 460.8240016 | H47: =NA() ->  | I47: 44 | J47: 1250
A48: Maryland | B48: 5773552 | C48: 594.8 | D48: =VLOOKUP(A48,'8.4'!$A$12:$J$62,10,FALSE) -> MD | E48: 9707.24 | F48: =TRIM(MID(VLOOKUP(A48,'US Regions'!$B$23:$D$73,3,FALSE),13,500)) -> South Atlantic | G48: 594.7676167 | H48: =+G48 -> 594.7676167 | I48: 45 | J48: 1250
A49: Connecticut | B49: 3574097 | C49: 738.1 | D49: =VLOOKUP(A49,'8.4'!$A$12:$J$62,10,FALSE) -> CT | E49: 4842.36 | F49: =TRIM(MID(VLOOKUP(A49,'US Regions'!$B$23:$D$73,3,FALSE),13,500)) -> New England | G49: 738.0898983 | H49: =NA() ->  | I49: 46 | J49: 1250
A50: Massachusetts | B50: 6547629 | C50: 839.4 | D50: =VLOOKUP(A50,'8.4'!$A$12:$J$62,10,FALSE) -> MA | E50: 7800.06 | F50: =TRIM(MID(VLOOKUP(A50,'US Regions'!$B$23:$D$73,3,FALSE),13,500)) -> New England | G50: 839.4331582 | H50: =NA() ->  | I50: 47 | J50: 1250
A51: Rhode Island | B51: 1052567 | C51: 1018.1 | D51: =VLOOKUP(A51,'8.4'!$A$12:$J$62,10,FALSE) -> RI | E51: 1033.81 | F51: =TRIM(MID(VLOOKUP(A51,'US Regions'!$B$23:$D$73,3,FALSE),13,500)) -> New England | G51: 1018.143566 | H51: =NA() ->  | I51: 48 | J51: 1250
A52: New Jersey | B52: 8791894 | C52: 1195.5 | D52: =VLOOKUP(A52,'8.4'!$A$12:$J$62,10,FALSE) -> NJ | E52: 7354.22 | F52: =TRIM(MID(VLOOKUP(A52,'US Regions'!$B$23:$D$73,3,FALSE),13,500)) -> Mid-Atlantic | G52: 1195.489664 | H52: =NA() ->  | I52: 49 | J52: 1250
A53: District of Columbia | B53: 601723 | C53: 0 | D53: =VLOOKUP(A53,'8.4'!$A$12:$J$62,10,FALSE) -> DC | E53: 61.05 | F53: =TRIM(MID(VLOOKUP(A53,'US Regions'!$B$23:$D$73,3,FALSE),13,500)) -> South Atlantic | G53: 9856.232596 | H53: =NA() ->  | I53: 50 | J53: 1250
L59: Source: U.S. Census Bureau

Sheet 8.13-8.14
A1: Table 1101. Quintiles of income before taxes: Annual expenditure means, shares, standard errors, and coefficient of variation, Consumer Expenditure Survey, 3rd quarter 2013 through 2nd quarter 2014 | I1: Get the data (PDF): | L1: http://goo.gl/6PW6vT
Y2: WEIGHT OF MAJOR EXPENDITURE ITEMS BY LEVEL OF INCOME | AG2: ANNUAL MEAN EXPENDITURE
A3: Item | B3: All consumer units | C3: Lowest 20 percent | D3: Second 20 percent | E3: Third 20 percent | F3: Fourth 20 percent | G3: Highest 20 percent | O3: Bubbles | S3: Slope | Y3: Consumer Expenditure Survey, 3rd quarter 2013 through 2nd quarter 2014 | AG3: Consumer Expenditure Survey,
A4: Number of consumer units (in thousands) | B4: 126420 | C4: 25206 | D4: 25337 | E4: 25323 | F4: 25341 | G4: 25212 | AG4: 3rd quarter 2013 through 2nd quarter 2014
A5: Lower limit | B5: n.a. | C5: n.a. | D5: 17890 | E5: 35073 | F5: 57829 | G5: 96074 | S5: Lowest 20% | T5: Highest 20% | U5: Lowest 20% | V5: Highest 20%
O6: Y | P6: Label | Q6: X | R6: Size | S6: =SUM(S7:S20) -> 22982 | T6: =SUM(T7:T20) -> 100979 | U6: =SUM(U7:U20) -> 100 | V6: 100
A7: Consumer unit characteristics: | O7: 6665 | P7: Food | Q7: 0 | R7: 1 | S7: 3685 | T7: 11261 | U7: =S7/S$6*100 -> 16.0342877 | V7: =T7/T$6*100 -> 11.15182365
O8: 450 | P8: Alcoholic beverages | Q8: 0 | R8: 1 | S8: 181 | T8: 970 | U8: 0.7875728831 | V8: 0.9605957674
A9: Income before taxes | O9: 17377 | P9: Housing | Q9: 0 | R9: 1 | S9: 9319 | T9: 31034 | U9: 40.5491254 | V9: 30.73312273
A10: Mean | B10: 64432 | C10: 9818 | D10: 26369 | E10: 45724 | F10: 74410 | G10: 166048 | O10: 1674 | P10: Apparel and services | Q10: 0 | R10: 1 | S10: 732 | T10: 3339 | U10: 3.185101384 | V10: 3.306628111
A11: SE | B11: 1002.97 | C11: 193.95 | D11: 268.66 | E11: 400.74 | F11: 437.8 | G11: 3118.6 | O11: 9104 | P11: Transportation | Q11: 0 | R11: 1 | S11: 3365 | T11: 17033 | U11: 14.64189366 | V11: 16.86786362
A12: CV(%) | B12: 1.56 | C12: 1.98 | D12: 1.02 | E12: 0.88 | F12: 0.59 | G12: 1.88 | O12: 3919 | P12: Healthcare | Q12: 0 | R12: 1 | S12: 1912 | T12: 6402 | U12: 8.319554434 | V12: 6.339932065
A13: Income after taxes | O13: 2560 | P13: Entertainment | Q13: 0 | R13: 1 | S13: 1028 | T13: 5420 | U13: 4.473065878 | V13: 5.367452639
A14: Mean | B14: 56437 | C14: 10254 | D14: 26901 | E14: 43389 | F14: 66824 | G14: 134959 | O14: 602 | P14: Personal care | Q14: 0 | R14: 1 | S14: 260 | T14: 1138 | U14: 1.131320164 | V14: 1.126966993
A15: SE | B15: 774.9 | C15: 187.73 | D15: 275.27 | E15: 410.92 | F15: 436.54 | G15: 2196.67 | O15: 101 | P15: Reading | Q15: 0 | R15: 1 | S15: 42 | T15: 203 | U15: 0.1827517187 | V15: 0.2010318977
A16: CV(%) | B16: 1.37 | C16: 1.83 | D16: 1.02 | E16: 0.95 | F16: 0.65 | G16: 1.63 | O16: 1143 | P16: Education | Q16: 0 | R16: 1 | S16: 818 | T16: 2946 | U16: 3.559307284 | V16: 2.917438279
O17: 315 | P17: Tobacco products | Q17: 0 | R17: 1 | S17: 274 | T17: 271 | U17: 1.192237403 | V17: 0.2683726319
A18: Age of reference person | B18: 50.2 | C18: 51.4 | D18: 53.4 | E18: 49.2 | F18: 48.1 | G18: 48.7 | O18: 683 | P18: Miscellaneous | Q18: 0 | R18: 1 | S18: 286 | T18: 1352 | U18: 1.24445218 | V18: 1.338892245
O19: 1790 | P19: Cash contributions | Q19: 0 | R19: 1 | S19: 591 | T19: 3900 | U19: 2.571577757 | V19: 3.862189168
A20: Average number in consumer unit: | O20: 5551 | P20: Insurance and pensions | Q20: 0 | R20: 1 | S20: 489 | T20: 15710 | U20: 2.127752154 | V20: 15.55769021
A21: People | B21: 2.5 | C21: 1.7 | D21: 2.1 | E21: 2.5 | F21: 2.8 | G21: 3.2
A22: Children under 18 | B22: 0.6 | C22: 0.4 | D22: 0.5 | E22: 0.6 | F22: 0.7 | G22: 0.8
A23: Adults 65 and older | B23: 0.4 | C23: 0.4 | D23: 0.5 | E23: 0.4 | F23: 0.3 | G23: 0.2
A24: Earners | B24: 1.3 | C24: 0.5 | D24: 0.8 | E24: 1.3 | F24: 1.7 | G24: 2.1
A25: Vehicles | B25: 1.8 | C25: 0.9 | D25: 1.4 | E25: 1.9 | F25: 2.3 | G25: 2.8
A27: Percent distribution:
A29: Reference person:
A30: Men | B30: 48 | C30: 38 | D30: 44 | E30: 49 | F30: 53 | G30: 55
A31: Women | B31: 52 | C31: 62 | D31: 56 | E31: 51 | F31: 47 | G31: 45
A33: Housing tenure:
A34: Homeowner | B34: 63 | C34: 40 | D34: 54 | E34: 61 | F34: 75 | G34: 87
A35: With mortgage | B35: 37 | C35: 13 | D35: 21 | E35: 33 | F35: 52 | G35: 67
A36: Without mortgage | B36: 26 | C36: 27 | D36: 33 | E36: 28 | F36: 23 | G36: 20
A37: Renter | B37: 37 | C37: 60 | D37: 46 | E37: 39 | F37: 25 | G37: 13
A39: Race of reference person:
A40: Black or African-American | B40: 13 | C40: 20 | D40: 15 | E40: 13 | F40: 9 | G40: 6
A41: White, Asian, and all other races | B41: 87 | C41: 80 | D41: 85 | E41: 87 | F41: 91 | G41: 94 | Y41: Source: Bureau of Labor Statistics
A43: Hispanic or Latino origin of reference person: | AG43: Source: Bureau of Labor Statistics
A44: Hispanic or Latino | B44: 13 | C44: 13 | D44: 16 | E44: 15 | F44: 11 | G44: 7
A45: Not Hispanic or Latino | B45: 87 | C45: 87 | D45: 84 | E45: 85 | F45: 89 | G45: 93
A47: Education of reference person:
A48: Elementary (1-8) | B48: 4 | C48: 8 | D48: 6 | E48: 4 | F48: 2 | G48: 1
A49: High school (9-12) | B49: 33 | C49: 43 | D49: 44 | E49: 36 | F49: 26 | G49: 15
A50: College | B50: 63 | C50: 48 | D50: 50 | E50: 60 | F50: 71 | G50: 84
A51: Never attended and other | B51: a/ | C51: 1 | D51: a/ | E51: a/ | F51: a/ | G51: a/
A53: At least one vehicle owned or leased | B53: 87 | C53: 63 | D53: 85 | E53: 93 | F53: 97 | G53: 97
A55: Average annual expenditures
A56: Mean | B56: 51933 | C56: 22981 | D56: 32778 | E56: 43739 | F56: 59250 | G56: 100979
A57: SE | B57: 555.65 | C57: 507.34 | D57: 444.47 | E57: 415.95 | F57: 681.52 | G57: 1187.88
A58: CV(%) | B58: 1.07 | C58: 2.21 | D58: 1.36 | E58: 0.95 | F58: 1.15 | G58: 1.18
A60: Food | AT60: =+J60 -> 0 | AU60: =IF($I60=1,B61,"") ->  | AV60: =IF($I60=1,C61,"") -> 
A61: Mean | B61: 6665 | C61: 3685 | D61: 4683 | E61: 5850 | F61: 7841 | G61: 11261 | AT61: =+J61 -> 0 | AU61: =IF($I61=1,B62,"") ->  | AV61: =IF($I61=1,C62,"") ->  | AW61: =IF($I61=1,D62,"") ->  | AX61: =IF($I61=1,E62,"") ->  | AY61: =IF($I61=1,F62,"") ->  | AZ61: =IF($I61=1,G62,"") -> 
A62: Share | B62: 12.8 | C62: 16 | D62: 14.3 | E62: 13.4 | F62: 13.2 | G62: 11.2 | AT62: 0
A63: SE | B63: 97.31 | C63: 87 | D63: 147.17 | E63: 164.64 | F63: 174.11 | G63: 217.29 | AT63: 0
A64: CV(%) | B64: 1.46 | C64: 2.36 | D64: 3.14 | E64: 2.81 | F64: 2.22 | G64: 1.93 | AT64: 0
A65: Food at home | AT65: 0
A66: Mean | B66: 4003 | C66: 2531 | D66: 3075 | E66: 3637 | F66: 4658 | G66: 6113 | AT66: 0
A67: Share | B67: 7.7 | C67: 11 | D67: 9.4 | E67: 8.3 | F67: 7.9 | G67: 6.1 | AT67: 0
A68: SE | B68: 66.83 | C68: 70.81 | D68: 109.54 | E68: 110.01 | F68: 109.4 | G68: 139.83 | AT68: 0
A69: CV(%) | B69: 1.67 | C69: 2.8 | D69: 3.56 | E69: 3.02 | F69: 2.35 | G69: 2.29 | AT69: 0
A70: Cereals and bakery products | AT70: 0
A71: Mean | B71: 534 | C71: 344 | D71: 409 | E71: 489 | F71: 614 | G71: 812 | AT71: 0
A72: Share | B72: 1 | C72: 1.5 | D72: 1.2 | E72: 1.1 | F72: 1 | G72: 0.8 | AT72: 0
A73: SE | B73: 10.21 | C73: 12.2 | D73: 18.28 | E73: 15.89 | F73: 18.78 | G73: 26.73 | AT73: 0
A74: CV(%) | B74: 1.91 | C74: 3.55 | D74: 4.47 | E74: 3.25 | F74: 3.06 | G74: 3.29 | AT74: 0
A75: Cereals and cereal products | AT75: 0
A76: Mean | B76: 180 | C76: 122 | D76: 141 | E76: 160 | F76: 212 | G76: 263 | AT76: 0
A77: Share | B77: 0.3 | C77: 0.5 | D77: 0.4 | E77: 0.4 | F77: 0.4 | G77: 0.3 | AT77: 0
A78: SE | B78: 3.83 | C78: 5.3 | D78: 7.86 | E78: 7.17 | F78: 9.54 | G78: 9.69 | AT78: 0
A79: CV(%) | B79: 2.13 | C79: 4.33 | D79: 5.57 | E79: 4.49 | F79: 4.5 | G79: 3.68 | AT79: 0
A80: Bakery products | AT80: 0
A81: Mean | B81: 354 | C81: 221 | D81: 268 | E81: 329 | F81: 402 | G81: 549 | AT81: 0
A82: Share | B82: 0.7 | C82: 1 | D82: 0.8 | E82: 0.8 | F82: 0.7 | G82: 0.5 | AT82: 0
A83: SE | B83: 7.47 | C83: 8.75 | D83: 12.16 | E83: 10.99 | F83: 12.68 | G83: 19.96 | AT83: 0
A84: CV(%) | B84: 2.11 | C84: 3.95 | D84: 4.54 | E84: 3.34 | F84: 3.15 | G84: 3.64 | AT84: 0
A85: Meats, poultry, fish, and eggs | AT85: 0
A86: Mean | B86: 883 | C86: 583 | D86: 713 | E86: 805 | F86: 1018 | G86: 1295 | AT86: 0
A87: Share | B87: 1.7 | C87: 2.5 | D87: 2.2 | E87: 1.8 | F87: 1.7 | G87: 1.3 | AT87: 0
A88: SE | B88: 16.85 | C88: 23.59 | D88: 34.86 | E88: 29.23 | F88: 31.67 | G88: 37.45 | AT88: 0
A89: CV(%) | B89: 1.91 | C89: 4.04 | D89: 4.89 | E89: 3.63 | F89: 3.11 | G89: 2.89 | AT89: 0
A90: Beef | AT90: 0
A91: Mean | B91: 225 | C91: 137 | D91: 186 | E91: 212 | F91: 263 | G91: 328 | AT91: 0
A92: Share | B92: 0.4 | C92: 0.6 | D92: 0.6 | E92: 0.5 | F92: 0.4 | G92: 0.3 | AT92: 0
A93: SE | B93: 5.41 | C93: 8.04 | D93: 12.21 | E93: 12.32 | F93: 10.2 | G93: 17.59 | AT93: 0
A94: CV(%) | B94: 2.4 | C94: 5.85 | D94: 6.58 | E94: 5.81 | F94: 3.88 | G94: 5.36 | AT94: 0
A95: Pork | AT95: 0
A96: Mean | B96: 175 | C96: 117 | D96: 138 | E96: 156 | F96: 216 | G96: 247 | AT96: 0
A97: Share | B97: 0.3 | C97: 0.5 | D97: 0.4 | E97: 0.4 | F97: 0.4 | G97: 0.2 | AT97: 0
A98: SE | B98: 5.04 | C98: 7.83 | D98: 8.71 | E98: 9.27 | F98: 11.33 | G98: 11.49 | AT98: 0
A99: CV(%) | B99: 2.88 | C99: 6.7 | D99: 6.3 | E99: 5.93 | F99: 5.23 | G99: 4.65 | AT99: 0
A100: Other meats | AT100: 0
A101: Mean | B101: 122 | C101: 76 | D101: 90 | E101: 114 | F101: 149 | G101: 181 | AT101: 0
A102: Share | B102: 0.2 | C102: 0.3 | D102: 0.3 | E102: 0.3 | F102: 0.3 | G102: 0.2 | AT102: 0
A103: SE | B103: 3.53 | C103: 4.07 | D103: 6.19 | E103: 5.26 | F103: 8.22 | G103: 8.85 | AT103: 0
A104: CV(%) | B104: 2.9 | C104: 5.36 | D104: 6.91 | E104: 4.61 | F104: 5.52 | G104: 4.88 | AT104: 0
A105: Poultry | AT105: 0
A106: Mean | B106: 176 | C106: 132 | D106: 150 | E106: 152 | F106: 193 | G106: 253 | AT106: 0
A107: Share | B107: 0.3 | C107: 0.6 | D107: 0.5 | E107: 0.3 | F107: 0.3 | G107: 0.3 | AT107: 0
A108: SE | B108: 4.24 | C108: 6.6 | D108: 10.4 | E108: 9.3 | F108: 8.5 | G108: 12.22 | AT108: 0
A109: CV(%) | B109: 2.41 | C109: 5.01 | D109: 6.92 | E109: 6.12 | F109: 4.41 | G109: 4.83 | AT109: 0
A110: Fish and seafood | AT110: 0
A111: Mean | B111: 127 | C111: 80 | D111: 99 | E111: 115 | F111: 134 | G111: 209 | AT111: 0
A112: Share | B112: 0.2 | C112: 0.3 | D112: 0.3 | E112: 0.3 | F112: 0.2 | G112: 0.2 | AT112: 0
A113: SE | B113: 4.09 | C113: 5.6 | D113: 7.23 | E113: 8.68 | F113: 10.75 | G113: 10.04 | AT113: 0
A114: CV(%) | B114: 3.21 | C114: 6.97 | D114: 7.33 | E114: 7.52 | F114: 8.03 | G114: 4.81 | AT114: 0
A115: Eggs | AT115: 0
A116: Mean | B116: 57 | C116: 41 | D116: 50 | E116: 55 | F116: 63 | G116: 77 | AT116: 0
A117: Share | B117: 0.1 | C117: 0.2 | D117: 0.2 | E117: 0.1 | F117: 0.1 | G117: 0.1 | AT117: 0
A118: SE | B118: 1.19 | C118: 1.89 | D118: 2.76 | E118: 2.8 | F118: 2.9 | G118: 3.19 | AT118: 0
A119: CV(%) | B119: 2.07 | C119: 4.64 | D119: 5.49 | E119: 5.07 | F119: 4.62 | G119: 4.14 | AT119: 0
A120: Dairy products | AT120: 0
A121: Mean | B121: 420 | C121: 266 | D121: 323 | E121: 386 | F121: 494 | G121: 630 | AT121: 0
A122: Share | B122: 0.8 | C122: 1.2 | D122: 1 | E122: 0.9 | F122: 0.8 | G122: 0.6 | AT122: 0
A123: SE | B123: 7.97 | C123: 7.43 | D123: 12.48 | E123: 13.47 | F123: 18.07 | G123: 17.84 | AT123: 0
A124: CV(%) | B124: 1.9 | C124: 2.79 | D124: 3.86 | E124: 3.49 | F124: 3.65 | G124: 2.83 | AT124: 0
A125: Fresh milk and cream | AT125: =+J125 -> 0 | AU125: =IF($I125=1,B126,"") ->  | AV125: =IF($I125=1,C126,"") ->  | AW125: =IF($I125=1,D126,"") ->  | AX125: =IF($I125=1,E126,"") ->  | AY125: =IF($I125=1,F126,"") ->  | AZ125: =IF($I125=1,G126,"") -> 
A126: Mean | B126: 148 | C126: 102 | D126: 122 | E126: 146 | F126: 167 | G126: 204 | AT126: 0
A127: Share | B127: 0.3 | C127: 0.4 | D127: 0.4 | E127: 0.3 | F127: 0.3 | G127: 0.2 | AT127: 0
A128: SE | B128: 3.24 | C128: 3.87 | D128: 5.28 | E128: 7.62 | F128: 6.21 | G128: 6.54 | AT128: 0
A129: CV(%) | B129: 2.19 | C129: 3.78 | D129: 4.34 | E129: 5.24 | F129: 3.72 | G129: 3.2 | AT129: 0
A130: Other dairy products | AT130: 0
A131: Mean | B131: 272 | C131: 164 | D131: 202 | E131: 240 | F131: 327 | G131: 426 | AT131: 0
A132: Share | B132: 0.5 | C132: 0.7 | D132: 0.6 | E132: 0.5 | F132: 0.6 | G132: 0.4 | AT132: 0
A133: SE | B133: 6.2 | C133: 6 | D133: 10.77 | E133: 9.27 | F133: 14.41 | G133: 13.16 | AT133: 0
A134: CV(%) | B134: 2.28 | C134: 3.66 | D134: 5.34 | E134: 3.86 | F134: 4.4 | G134: 3.09 | AT134: 0
A135: Fruits and vegetables | AT135: 0
A136: Mean | B136: 770 | C136: 471 | D136: 578 | E136: 700 | F136: 896 | G136: 1203 | AT136: 0
A137: Share | B137: 1.5 | C137: 2 | D137: 1.8 | E137: 1.6 | F137: 1.5 | G137: 1.2 | AT137: 0
A138: SE | B138: 15.01 | C138: 16.86 | D138: 21.03 | E138: 25.28 | F138: 28.06 | G138: 32.28 | AT138: 0
A139: CV(%) | B139: 1.95 | C139: 3.58 | D139: 3.64 | E139: 3.61 | F139: 3.13 | G139: 2.68 | AT139: 0
A140: Fresh fruits | AT140: 0
A141: Mean | B141: 278 | C141: 159 | D141: 203 | E141: 251 | F141: 323 | G141: 453 | AT141: 0
A142: Share | B142: 0.5 | C142: 0.7 | D142: 0.6 | E142: 0.6 | F142: 0.5 | G142: 0.4 | AT142: 0
A143: SE | B143: 5.58 | C143: 7.53 | D143: 8.93 | E143: 10.99 | F143: 14.07 | G143: 13.49 | AT143: 0
A144: CV(%) | B144: 2.01 | C144: 4.73 | D144: 4.4 | E144: 4.39 | F144: 4.35 | G144: 2.98 | AT144: 0
A145: Fresh vegetables | AT145: 0
A146: Mean | B146: 244 | C146: 150 | D146: 179 | E146: 219 | F146: 283 | G146: 386 | AT146: 0
A147: Share | B147: 0.5 | C147: 0.7 | D147: 0.5 | E147: 0.5 | F147: 0.5 | G147: 0.4 | AT147: 0
A148: SE | B148: 4.88 | C148: 6.5 | D148: 6.56 | E148: 9.61 | F148: 8.1 | G148: 11.26 | AT148: 0
A149: CV(%) | B149: 2 | C149: 4.34 | D149: 3.66 | E149: 4.38 | F149: 2.86 | G149: 2.92 | AT149: 0
A150: Processed fruits | AT150: 0
A151: Mean | B151: 115 | C151: 74 | D151: 89 | E151: 104 | F151: 136 | G151: 170 | AT151: 0
A152: Share | B152: 0.2 | C152: 0.3 | D152: 0.3 | E152: 0.2 | F152: 0.2 | G152: 0.2 | AT152: 0
A153: SE | B153: 3.46 | C153: 3.68 | D153: 5.05 | E153: 5.43 | F153: 8 | G153: 6.92 | AT153: 0
A154: CV(%) | B154: 3.01 | C154: 5 | D154: 5.65 | E154: 5.21 | F154: 5.87 | G154: 4.07 | AT154: 0
A155: Processed vegetables | AT155: 0
A156: Mean | B156: 133 | C156: 88 | D156: 106 | E156: 126 | F156: 154 | G156: 194 | AT156: 0
A157: Share | B157: 0.3 | C157: 0.4 | D157: 0.3 | E157: 0.3 | F157: 0.3 | G157: 0.2 | AT157: 0
A158: SE | B158: 3.71 | C158: 5.33 | D158: 5.85 | E158: 6.68 | F158: 6.97 | G158: 10.38 | AT158: 0
A159: CV(%) | B159: 2.78 | C159: 6.07 | D159: 5.52 | E159: 5.3 | F159: 4.54 | G159: 5.36 | AT159: 0
A160: Other food at home | AT160: 0
A161: Mean | B161: 1397 | C161: 867 | D161: 1052 | E161: 1257 | F161: 1636 | G161: 2174 | AT161: 0
A162: Share | B162: 2.7 | C162: 3.8 | D162: 3.2 | E162: 2.9 | F162: 2.8 | G162: 2.2 | AT162: 0
A163: SE | B163: 27.46 | C163: 29.05 | D163: 40.16 | E163: 48.06 | F163: 45.03 | G163: 59.37 | AT163: 0
A164: CV(%) | B164: 1.97 | C164: 3.35 | D164: 3.82 | E164: 3.82 | F164: 2.75 | G164: 2.73 | AT164: 0
A165: Sugar and other sweets | AT165: 0
A166: Mean | B166: 142 | C166: 86 | D166: 114 | E166: 124 | F166: 160 | G166: 226 | AT166: 0
A167: Share | B167: 0.3 | C167: 0.4 | D167: 0.3 | E167: 0.3 | F167: 0.3 | G167: 0.2 | AT167: 0
A168: SE | B168: 3.7 | C168: 5.44 | D168: 6.01 | E168: 5.85 | F168: 5.52 | G168: 12.87 | AT168: 0
A169: CV(%) | B169: 2.6 | C169: 6.29 | D169: 5.28 | E169: 4.72 | F169: 3.44 | G169: 5.69 | AT169: 0
A170: Fats and oils | AT170: 0
A171: Mean | B171: 117 | C171: 79 | D171: 94 | E171: 109 | F171: 130 | G171: 175 | AT171: 0
A172: Share | B172: 0.2 | C172: 0.3 | D172: 0.3 | E172: 0.2 | F172: 0.2 | G172: 0.2 | AT172: 0
A173: SE | B173: 3.71 | C173: 4.33 | D173: 6.23 | E173: 5.38 | F173: 5.17 | G173: 8.4 | AT173: 0
A174: CV(%) | B174: 3.16 | C174: 5.48 | D174: 6.6 | E174: 4.95 | F174: 3.99 | G174: 4.8 | AT174: 0
A175: Miscellaneous foods | AT175: 0
A176: Mean | B176: 712 | C176: 429 | D176: 526 | E176: 637 | F176: 857 | G176: 1111 | AT176: 0
A177: Share | B177: 1.4 | C177: 1.9 | D177: 1.6 | E177: 1.5 | F177: 1.4 | G177: 1.1 | AT177: 0
A178: SE | B178: 15.23 | C178: 17.97 | D178: 20.81 | E178: 28.97 | F178: 29.48 | G178: 39.64 | AT178: 0
A179: CV(%) | B179: 2.14 | C179: 4.19 | D179: 3.96 | E179: 4.55 | F179: 3.44 | G179: 3.57 | AT179: 0
A180: Nonalcoholic beverages | AT180: 0
A181: Mean | B181: 377 | C181: 259 | D181: 292 | E181: 352 | F181: 442 | G181: 540 | AT181: 0
A182: Share | B182: 0.7 | C182: 1.1 | D182: 0.9 | E182: 0.8 | F182: 0.7 | G182: 0.5 | AT182: 0
A183: SE | B183: 8.67 | C183: 10.4 | D183: 14.82 | E183: 20.36 | F183: 17.18 | G183: 21.13 | AT183: 0
A184: CV(%) | B184: 2.3 | C184: 4.01 | D184: 5.08 | E184: 5.78 | F184: 3.89 | G184: 3.91 | AT184: 0
A185: Food prepared by consumer unit on out-of-town trips | AT185: 0
A186: Mean | B186: 48 | C186: 13 | D186: 25 | E186: 35 | F186: 48 | G186: 122 | AT186: 0
A187: Share | B187: 0.1 | C187: 0.1 | D187: 0.1 | E187: 0.1 | F187: 0.1 | G187: 0.1 | AT187: 0
A188: SE | B188: 2.96 | C188: 1.71 | D188: 3.85 | E188: 5.58 | F188: 3.77 | G188: 8.47 | AT188: 0
A189: CV(%) | B189: 6.11 | C189: 13.69 | D189: 15.17 | E189: 15.89 | F189: 7.92 | G189: 6.96 | AT189: =+J189 -> 0 | AU189: =IF($I189=1,B190,"") ->  | AV189: =IF($I189=1,C190,"") ->  | AW189: =IF($I189=1,D190,"") ->  | AX189: =IF($I189=1,E190,"") ->  | AY189: =IF($I189=1,F190,"") ->  | AZ189: =IF($I189=1,G190,"") -> 
A190: Food away from home | AT190: 0
A191: Mean | B191: 2661 | C191: 1154 | D191: 1609 | E191: 2212 | F191: 3182 | G191: 5148 | AT191: 0
A192: Share | B192: 5.1 | C192: 5 | D192: 4.9 | E192: 5.1 | F192: 5.4 | G192: 5.1 | AT192: 0
A193: SE | B193: 43.47 | C193: 59.39 | D193: 69.2 | E193: 94.99 | F193: 87.77 | G193: 120.61 | AT193: 0
A194: CV(%) | B194: 1.63 | C194: 5.15 | D194: 4.3 | E194: 4.29 | F194: 2.76 | G194: 2.34 | AT194: 0
AT195: 0
A196: Alcoholic beverages | AT196: 0
A197: Mean | B197: 450 | C197: 181 | D197: 241 | E197: 354 | F197: 503 | G197: 970 | AT197: 0
A198: Share | B198: 0.9 | C198: 0.8 | D198: 0.7 | E198: 0.8 | F198: 0.8 | G198: 1 | AT198: 0
A199: SE | B199: 17.78 | C199: 22.02 | D199: 20.09 | E199: 28.4 | F199: 28.59 | G199: 55.76 | AT199: 0
A200: CV(%) | B200: 3.95 | C200: 12.18 | D200: 8.35 | E200: 8.02 | F200: 5.68 | G200: 5.75 | AT200: 0
AT201: 0
A202: Housing | AT202: 0
A203: Mean | B203: 17377 | C203: 9319 | D203: 12336 | E203: 15120 | F203: 19099 | G203: 31034 | AT203: 0
A204: Share | B204: 33.5 | C204: 40.6 | D204: 37.6 | E204: 34.6 | F204: 32.2 | G204: 30.7 | AT204: 0
A205: SE | B205: 194.33 | C205: 210.99 | D205: 171.57 | E205: 177.9 | F205: 267.15 | G205: 378.78 | AT205: 0
A206: CV(%) | B206: 1.12 | C206: 2.26 | D206: 1.39 | E206: 1.18 | F206: 1.4 | G206: 1.22 | AT206: 0
A207: Shelter | AT207: 0
A208: Mean | B208: 10275 | C208: 5673 | D208: 7195 | E208: 8779 | F208: 11043 | G208: 18703 | AT208: 0
A209: Share | B209: 19.8 | C209: 24.7 | D209: 21.9 | E209: 20.1 | F209: 18.6 | G209: 18.5 | AT209: 0
... 592 more rows

Sheet 8.16-8.18
A1: This is a very simple speedometer using a donut chart. It displays
A2: the needle in the yellow range, but it can be be modified for | M2: Bullet charts
A3: displaying values in other ranges.
N4: Low
N5: 1 | O5: 0 | Q5: 2 | R5: 0 | T5: 3 | U5: 0 | W5: 4 | X5: 0 | Z5: 5 | AA5: 0
A6: =+B6 -> 180 | B6: 180 | C6: 180 | D6: 180 | E6: 180 | F6: 180 | G6: 180 | N6: 1 | O6: =RANDBETWEEN(40,60) -> 46 | Q6: 2 | R6: =RANDBETWEEN(40,60) -> 50 | T6: 3 | U6: =RANDBETWEEN(40,60) -> 42 | W6: 4 | X6: =RANDBETWEEN(40,60) -> 53 | Z6: 5 | AA6: =RANDBETWEEN(40,60) -> 53
A7: 60 | B7: 60 | C7: 60 | D7: 60 | E7: 60 | F7: 60 | G7: 60 | N7: Average
A8: 57 | B8: 57 | C8: 57 | D8: 57 | E8: 57 | F8: 57 | G8: 57 | H8: -these must sum 60 | N8: 1 | O8: =+O6 -> 46 | Q8: 2 | R8: =+R6 -> 50 | T8: 3 | U8: =+U6 -> 42 | W8: 4 | X8: =+X6 -> 53 | Z8: 5 | AA8: =+AA6 -> 53
A9: 2 | B9: 2 | C9: 2 | D9: 2 | E9: 2 | F9: 2 | G9: 2 | H9: ->needle | N9: 1 | O9: =RANDBETWEEN(O8,O8+RANDBETWEEN(2,100)) -> 68 | Q9: 2 | R9: =RANDBETWEEN(R8,R8+RANDBETWEEN(2,100)) -> 55 | T9: 3 | U9: =RANDBETWEEN(U8,U8+RANDBETWEEN(2,100)) -> 80 | W9: 4 | X9: =RANDBETWEEN(X8,X8+RANDBETWEEN(2,100)) -> 67 | Z9: 5 | AA9: =RANDBETWEEN(AA8,AA8+RANDBETWEEN(2,100)) -> 101
A10: 1 | B10: 1 | C10: 1 | D10: 1 | E10: 1 | F10: 1 | G10: =60-G8-G9 -> 1 | N10: High
A11: 60 | B11: 60 | C11: 60 | D11: 60 | E11: 60 | F11: 60 | G11: 60 | N11: 1 | O11: =+O9 -> 68 | Q11: 2 | R11: =+R9 -> 55 | T11: 3 | U11: =+U9 -> 80 | W11: 4 | X11: =+X9 -> 67 | Z11: 5 | AA11: =+AA9 -> 101
N12: 1 | O12: 180 | Q12: 2 | R12: 180 | T12: 3 | U12: 180 | W12: 4 | X12: 180 | Z12: 5 | AA12: 180
N13: Actual
N14: 1 | O14: 0 | Q14: 2 | R14: 0 | T14: 3 | U14: 0 | W14: 4 | X14: 0 | Z14: 5 | AA14: 0
N15: 1 | O15: =RANDBETWEEN(O14,O12) -> 98 | Q15: 2 | R15: =RANDBETWEEN(R14,R12) -> 154 | T15: 3 | U15: =RANDBETWEEN(U14,U12) -> 16 | W15: 4 | X15: =RANDBETWEEN(X14,X12) -> 173 | Z15: 5 | AA15: =RANDBETWEEN(AA14,AA12) -> 18
N16: Target
N17: 1 | O17: =RANDBETWEEN(O11,O12) -> 85 | Q17: 2 | R17: =RANDBETWEEN(R11,R12) -> 69 | T17: 3 | U17: =RANDBETWEEN(U11,U12) -> 88 | W17: 4 | X17: =RANDBETWEEN(X11,X12) -> 110 | Z17: 5 | AA17: =RANDBETWEEN(AA11,AA12) -> 145
N18: Alarm
N19: 1 | O19: =IF(O15<O6,-10,NA()) ->  | Q19: 2 | R19: =IF(R15<R6,-10,NA()) ->  | T19: 3 | U19: =IF(U15<U6,-10,NA()) -> -10 | W19: 4 | X19: =IF(X15<X6,-10,NA()) ->  | Z19: 5 | AA19: =IF(AA15<AA6,-10,NA()) -> -10
L26: =+X15/100 -> 1.73
N32: KPI 1
N33: KPI 2
N34: KPI 3
N35: KPI 4
N36: KPI 5
M42: These are a few examples of bullet charts using a scatterplot with large line widths to simulate bars
M43: They also include na alarm (red dot). The data above is randomly generated, so if you can't see the alarm just keep pressing F9.
M44: Excel doesn't include a vertical marker but, since you can use an image as a marker, just make a vertical line (this ons is 10x2 pixels).

Sheet US Regions
A1: Region 1: Northeast
A2: Division 1: New England (Connecticut | B2: Maine | C2: Massachusetts | D2: New Hampshire | E2: Rhode Island | F2: Vermont
A3: Division 2: Mid-Atlantic (New Jersey | B3: New York | C3: Pennsylvania
A4: Region 2: Midwest
A5: Division 3: East North Central (Illinois | B5: Indiana | C5: Michigan | D5: Ohio | E5: Wisconsin
A6: Division 4: West North Central (Iowa | B6: Kansas | C6: Minnesota | D6: Missouri | E6: Nebraska | F6: North Dakota | G6: South Dakota
A7: Region 3: South
A8: Division 5: South Atlantic (Delaware | B8: Florida | C8: Georgia | D8: Maryland | E8: North Carolina | F8: South Carolina | G8: Virginia | H8: Washington D.C. | I8: West Virginia
A9: Division 6: East South Central (Alabama | B9: Kentucky | C9: Mississippi | D9: Tennessee
A10: Division 7: West South Central (Arkansas | B10: Louisiana | C10: Oklahoma | D10: Texas
A11: Region 4: West
A12: Division 8: Mountain (Arizona | B12: Colorado | C12: Idaho | D12: Montana | E12: Nevada | F12: New Mexico | G12: Utah | H12: Wyoming
A13: Division 9: Pacific (Alaska | B13: California | C13: Hawaii | D13: Oregon | E13: Washington
F21: State Code
B22: State | C22: Region | D22: Division
B23: Connecticut | C23: Region 1: Northeast | D23: Division 1: New England | E23: =VALUE(MID(C23,8,1)) -> 1 | F23: CT
B24: Maine | C24: Region 1: Northeast | D24: Division 1: New England | E24: =VALUE(MID(C24,8,1)) -> 1 | F24: ME
B25: Massachusetts | C25: Region 1: Northeast | D25: Division 1: New England | E25: 1 | F25: MA
B26: New Hampshire | C26: Region 1: Northeast | D26: Division 1: New England | E26: 1 | F26: NH
B27: Rhode Island | C27: Region 1: Northeast | D27: Division 1: New England | E27: 1 | F27: RI
B28: Vermont | C28: Region 1: Northeast | D28: Division 1: New England | E28: 1 | F28: VT
B29: New Jersey | C29: Region 1: Northeast | D29: Division 2: Mid-Atlantic | E29: 1 | F29: NJ
B30: New York | C30: Region 1: Northeast | D30: Division 2: Mid-Atlantic | E30: 1 | F30: NY
B31: Pennsylvania | C31: Region 1: Northeast | D31: Division 2: Mid-Atlantic | E31: 1 | F31: PA
B32: Illinois | C32: Region 2: Midwest | D32: Division 3: East North Central | E32: 2 | F32: IL
B33: Indiana | C33: Region 2: Midwest | D33: Division 3: East North Central | E33: 2 | F33: IN
B34: Michigan | C34: Region 2: Midwest | D34: Division 3: East North Central | E34: 2 | F34: MI
B35: Ohio | C35: Region 2: Midwest | D35: Division 3: East North Central | E35: 2 | F35: OH
B36: Wisconsin | C36: Region 2: Midwest | D36: Division 3: East North Central | E36: 2 | F36: WI
B37: Iowa | C37: Region 2: Midwest | D37: Division 4: West North Central | E37: 2 | F37: IA
B38: Kansas | C38: Region 2: Midwest | D38: Division 4: West North Central | E38: 2 | F38: KS
B39: Minnesota | C39: Region 2: Midwest | D39: Division 4: West North Central | E39: 2 | F39: MN
B40: Missouri | C40: Region 2: Midwest | D40: Division 4: West North Central | E40: 2 | F40: MO
B41: Nebraska | C41: Region 2: Midwest | D41: Division 4: West North Central | E41: 2 | F41: NE
B42: North Dakota | C42: Region 2: Midwest | D42: Division 4: West North Central | E42: 2 | F42: ND
B43: South Dakota | C43: Region 2: Midwest | D43: Division 4: West North Central | E43: 2 | F43: SD
B44: Delaware | C44: Region 3: South | D44: Division 5: South Atlantic | E44: 3 | F44: DE
B45: Florida | C45: Region 3: South | D45: Division 5: South Atlantic | E45: 3 | F45: FL
B46: Georgia | C46: Region 3: South | D46: Division 5: South Atlantic | E46: 3 | F46: GA
B47: Maryland | C47: Region 3: South | D47: Division 5: South Atlantic | E47: 3 | F47: MD
B48: North Carolina | C48: Region 3: South | D48: Division 5: South Atlantic | E48: 3 | F48: NC
B49: South Carolina | C49: Region 3: South | D49: Division 5: South Atlantic | E49: 3 | F49: SC
B50: Virginia | C50: Region 3: South | D50: Division 5: South Atlantic | E50: 3 | F50: VA
A51: Washington D.C. | B51: District of Columbia | C51: Region 3: South | D51: Division 5: South Atlantic | E51: 3 | F51: DC
B52: West Virginia | C52: Region 3: South | D52: Division 5: South Atlantic | E52: 3 | F52: WV
B53: Alabama | C53: Region 3: South | D53: Division 6: East South Central | E53: 3 | F53: AL
B54: Kentucky | C54: Region 3: South | D54: Division 6: East South Central | E54: 3 | F54: KY
B55: Mississippi | C55: Region 3: South | D55: Division 6: East South Central | E55: 3 | F55: MS
B56: Tennessee | C56: Region 3: South | D56: Division 6: East South Central | E56: 3 | F56: TN
B57: Arkansas | C57: Region 3: South | D57: Division 7: West South Central | E57: 3 | F57: AR
B58: Louisiana | C58: Region 3: South | D58: Division 7: West South Central | E58: 3 | F58: LA
B59: Oklahoma | C59: Region 3: South | D59: Division 7: West South Central | E59: 3 | F59: OK
B60: Texas | C60: Region 3: South | D60: Division 7: West South Central | E60: 3 | F60: TX
B61: Arizona | C61: Region 4: West | D61: Division 8: Mountain | E61: 4 | F61: AZ
B62: Colorado | C62: Region 4: West | D62: Division 8: Mountain | E62: 4 | F62: CO
B63: Idaho | C63: Region 4: West | D63: Division 8: Mountain | E63: 4 | F63: ID
B64: Montana | C64: Region 4: West | D64: Division 8: Mountain | E64: 4 | F64: MT
B65: Nevada | C65: Region 4: West | D65: Division 8: Mountain | E65: 4 | F65: NV
B66: New Mexico | C66: Region 4: West | D66: Division 8: Mountain | E66: 4 | F66: NM
B67: Utah | C67: Region 4: West | D67: Division 8: Mountain | E67: 4 | F67: UT
B68: Wyoming | C68: Region 4: West | D68: Division 8: Mountain | E68: 4 | F68: WY
B69: Alaska | C69: Region 4: West | D69: Division 9: Pacific | E69: 4 | F69: AK
B70: California | C70: Region 4: West | D70: Division 9: Pacific | E70: 4 | F70: CA
B71: Hawaii | C71: Region 4: West | D71: Division 9: Pacific | E71: 4 | F71: HI
B72: Oregon | C72: Region 4: West | D72: Division 9: Pacific | E72: 4 | F72: OR
B73: Washington | C73: Region 4: West | D73: Division 9: Pacific | E73: 4 | F73: WA
